Workbook

Sheet Obsah
F2: 100
D4: B5.1 Střední školy celkem
D5: Zdroje dat jsou uvedeny v zápatí jednotlivých tabulek
D7: Text | F7: Obsah
D9: Tabulka 1 | F9: ='B5.1.1'!H4&" "&'B5.1.1'!D5 -> Střední vzdělávání – žáci, podíl na odpovídající věkové populaci ve školním roce 2008/09 až 2018/19
D11: Tabulka 2 | F11: ='B5.1.2'!H4&" "&'B5.1.2'!D5 -> Střední školy – školy ve školním roce 2008/09 až 2018/19 – podle formy vzdělávání a zřizovatele
D13: Tabulka 3 | F13: ='B5.1.3'!H4&" "&'B5.1.3'!D5 -> Střední školy – školy ve školním roce 2008/09 až 2018/19 – podle území
D15: Tabulka 4 | F15: ='B5.1.4'!H4&" "&'B5.1.4'!D5 -> Střední školy, denní forma vzdělávání – třídy ve školním roce 2008/09 až 2018/19 – podle druhu vzdělávání a zřizovatele
D17: Tabulka 5 | F17: ='B5.1.5'!H4&" "&'B5.1.5'!D5 -> Střední školy – žáci, nově přijatí a absolventi ve školním roce 2008/09 až 2018/19 – podle formy vzdělávání a zřizovatele
D19: Tabulka 6 | F19: ='B5.1.6'!H4&" "&'B5.1.6'!D5 -> Střední školy – žáci, nově přijatí a absolventi ve školním roce 2008/09 až 2018/19 – podle zřizovatele
D21: Tabulka 7 | F21: ='B5.1.7'!H4&" "&'B5.1.7'!D5 -> Střední školy – žáci, nově přijatí a absolventi ve školním roce 2008/09 až 2018/19 – podle zřizovatele a druhu vzdělávání
D23: Tabulka 8 | F23: ='B5.1.8'!H4&" "&'B5.1.8'!D5 -> Střední školy – dívky, nově přijaté a absolventky ve školním roce 2008/09 až 2018/19 – podle zřizovatele a druhu vzdělávání
D25: Tabulka 9 | F25: ='B5.1.9'!H4&" "&'B5.1.9'!D5 -> Střední školy, denní forma vzdělávání – žáci, nově přijatí a absolventi ve školním roce 2008/09 až 2018/19 – podle zřizovatele a druhu vzdělávání
D27: Tabulka 10 | F27: ='B5.1.10'!H4&" "&'B5.1.10'!D5 -> Střední školy, ostatní formy vzdělávání – žáci, nově přijatí a absolventi ve školním roce 2008/09 až 2018/19 – podle zřizovatele a druhu vzdělávání
D29: Tabulka 11 | F29: ='B5.1.11'!H4&" "&'B5.1.11'!D5 -> Střední školy – počet podaných přihlášek v 1. kole přijímacího řízení do denní formy vzdělávání ve školním roce 2008/09 až 2018/19 – podle zřizovatele a druhu vzdělávání
D31: Tabulka 12 | F31: ='B5.1.12'!H4&" "&'B5.1.12'!D5 -> Střední školy – počet přijatých přihlášek v 1. kole přijímacího řízení do denní formy vzdělávání ve školním roce 2008/09 až 2018/19 – podle zřizovatele a druhu vzdělávání
D33: Tabulka 13 | F33: ='B5.1.13'!H4&" "&'B5.1.13'!D5 -> Střední školy – úspěšnost v 1. kole přijímacího řízení do denní formy vzdělávání ve školním roce 2008/09 až 2018/19 – podle zřizovatele a druhu vzdělávání
D35: Tabulka 14 | F35: ='B5.1.14'!H4&" "&'B5.1.14'!D5 -> Střední školy – žáci ve školním roce 2008/09 až 2018/19 – podle území a formy vzdělávání
D37: Tabulka 15 | F37: ='B5.1.15'!H4&" "&'B5.1.15'!D5 -> Střední školy – nově přijatí ve školním roce 2008/09 až 2018/19 – podle území a formy vzdělávání
D39: Tabulka 16 | F39: ='B5.1.16'!H4&" "&'B5.1.16'!D5 -> Střední školy – absolventi ve školním roce 2008/09 až 2018/19 – podle území a formy vzdělávání
D41: Tabulka 17 | F41: ='B5.1.17'!H4&" "&'B5.1.17'!D5 -> Střední školy – učitelé/učitelky (přepočtené počty) ve školním roce 2008/09 až 2018/19 – podle zřizovatele
D43: Tabulka 18 | F43: ='B5.1.18'!H4&" "&'B5.1.18'!D5 -> SŠ včetně konzervatoří – struktura učitelů v letech 2011 až 2018 – podle nejvyššího dosaženého vzdělání
D45: Tabulka 19 | F45: ='B5.1.19'!H4&" "&'B5.1.19'!D5 -> SŠ včetně konzervatoří – struktura učitelů v letech 2011 až 2018 – podle věku
D47: Tabulka 20 | F47: ='B5.1.20'!H4&" "&'B5.1.20'!D5 -> Střední školy včetně konzervatoří a VOŠ – přepočtené počty zaměstnanců v letech 2008 až 2018
D49: Tabulka 21 | F49: ='B5.1.21'!H4&" "&'B5.1.21'!D5 -> Střední školy včetně konzervatoří a VOŠ – průměrné měsíční mzdy zaměstnanců v letech 2008 až 2018
D51: Tabulka 22 | F51: ='B5.1.22'!$H$4&" "&'B5.1.22'!$D$5 -> Střední vzdělávání – výdaje na střední vzdělávání, konzervatoře a VOŠ v letech 2008 až 2018
E52: Obrazová příloha
D54: Graf 1 | F54: ='GB1'!$H$4&" "&'GB1'!$D$5 -> SŠ, denní forma vzdělávání – žáci na úrovni středního vzdělávání vzhledem k populaci 15–18letých ve školním roce 2008/09 až 2018/19
D56: Graf 2 | F56: ='GB2'!$H$4&" "&'GB2'!$D$5 -> Střední školy – struktura škol ve školním roce 2008/09 až 2018/19 – podle zřizovatele
D58: Graf 3 | F58: ='GB3'!$H$4&" "&'GB3'!$D$5 -> Střední školy – struktura žáků ve školním roce 2008/09 až 2018/19
D60: Graf 4 | F60: ='GB4'!$H$4&" "&'GB4'!$D$5 -> Střední školy – struktura nově přijatých do oborů středního vzdělávání s maturitní zkouškou a oborů středního vzdělávání a středního vzdělávání s výučním listem ve školním roce 2008/09 až 2018/19
D62: Graf 5 | F62: ='GB5'!$H$4&" "&'GB5'!$D$5 -> Střední školy včetně VOŠ a konzervatoří – všichni zřizovatelé – přepočtené počty zaměstnanců a učitelů a jejich průměrné měsíční nominální a reálné mzdy v letech 2008 až 2018

Sheet B5.1.1
D4: Tab. B5.1.1: | H4: Střední vzdělávání – žáci, podíl na odpovídající věkové populaci
D5: ve školním roce 2008/09 až 2018/19
J7: 2003/04 | K7: 2004/05 | L7: 2005/06 | M7: 2006/07 | N7: 2007/08 | O7: 2008/09 | P7: 2009/10 | Q7: 2010/11 | R7: 2011/12 | S7: 2012/13 | T7: 2013/14 | U7: 2014/15 | V7: 2015/16 | W7: 2016/17 | X7: 2017/18 | Y7: 2018/19
E12: Žáci v oborech středního vzdělávání s mat. zkouškou | J12: 372100 | K12: 378445 | L12: 383150 | M12: 389556 | N12: 389837 | O12: 390410 | P12: 385714 | Q12: 368678 | R12: 349286 | S12: 328412 | T12: 313130 | U12: 306092 | V12: 303305 | W12: 304824 | X12: 306661 | Y12: 308460
F13: z toho nižší stupeň víceletých gymnázií | J13: 42190 | K13: 42514 | L13: 43114 | M13: 42965 | N13: 42829 | O13: 42330 | P13: 41639 | Q13: 41152 | R13: 40885 | S13: 40549 | T13: 40419 | U13: 40409 | V13: 40495 | W13: 40980 | X13: 41260 | Y13: 41611
E14: Žáci ve stř. vzděl. a stř. vzděl. s výučním listem | J14: 149299 | K14: 143644 | L14: 137455 | M14: 131403 | N14: 123741 | O14: 116669 | P14: 113833 | Q14: 108646 | R14: 103660 | S14: 100173 | T14: 96571 | U14: 93601 | V14: 90705 | W14: 88354 | X14: 86342 | Y14: 85653
E15: Žáci v ročnících odpovídajících střední škole celkem | J15: 479209 | K15: 479575 | L15: 477491 | M15: 477994 | N15: 470749 | O15: 464749 | P15: 457908 | Q15: 436172 | R15: 412061 | S15: 388036 | T15: 369282 | U15: 359284 | V15: 353515 | W15: 352198 | X15: 351743 | Y15: 352502
E16: Podíl na populaci 15–18letých | J16: 0.9071392334 | K16: 0.919263171 | L16: 0.9174403412 | M16: 0.9193465249 | N16: 0.9203645883 | O16: 0.9189648252 | P16: 0.9471946649 | Q16: 0.9664576455 | R16: 0.9865494794 | S16: 1.001496944 | T16: 0.9958121537 | U16: 0.986204057 | V16: 0.9694612109 | W16: 0.9634953029 | X16: 0.9521982886 | Y16: 0.9393865907
D17: Komentáře: | Y17: Zdroj: databáze MŠMT, ČSÚ
E18: Data za denní formu vzdělávání a bez zkráceného a nástavbového studia.
O26: 121586 | P26: 107819 | Q26: 96946 | R26: 91006 | S26: 90847 | T26: 90391 | U26: 89606 | V26: 91183 | W26: 92013 | X26: 93977 | Y26: 95037
O27: 122366 | P27: 121887 | Q27: 108074 | R27: 96677 | S27: 91102 | T27: 90933 | U27: 90526 | V27: 89772 | W27: 91393 | X27: 92228 | Y27: 94185
O28: 130021 | P28: 122935 | Q28: 122528 | R28: 107752 | S28: 96985 | T28: 91494 | U28: 91520 | V28: 91176 | W28: 90270 | X28: 92008 | Y28: 92839
O29: 131758 | P29: 130795 | Q29: 123762 | R29: 122244 | S29: 108522 | T29: 98017 | U29: 92658 | V29: 92520 | W29: 91866 | X29: 91188 | Y29: 93186
O30: =SUM(O26:O29) -> 505731 | P30: =SUM(P26:P29) -> 483436 | Q30: =SUM(Q26:Q29) -> 451310 | R30: =SUM(R26:R29) -> 417679 | S30: 387456 | T30: 370835 | U30: 364310 | V30: 364651 | W30: 365542 | X30: 369401 | Y30: 375247
O32: =O34/O30 -> 0.9189648252 | P32: =P34/P30 -> 0.9471946649 | Q32: =Q34/Q30 -> 0.9664576455 | R32: 0.9865494794 | S32: 1.001496944 | T32: 0.9958121537 | U32: 0.986204057 | V32: 0.9694612109 | W32: 0.9634953029 | X32: 0.9521982886 | Y32: 0.9393865907
O34: =O12-O13+O14 -> 464749 | P34: =P12-P13+P14 -> 457908 | Q34: =Q12-Q13+Q14 -> 436172 | R34: 412061 | S34: 388036 | T34: 369282 | U34: 359284 | V34: 353515 | W34: 352198 | X34: 351743 | Y34: 352502

Sheet B5.1.2
D4: Tab. B5.1.2: | H4: Střední školy – školy
B5: 0 | D5: ve školním roce 2008/09 až 2018/19 – podle formy vzdělávání a zřizovatele
D7: Forma vzdělávání Zřizovatel | J7: 2003/04 | K7: 2004/05 | L7: 2005/06 | M7: 2006/07 | N7: 2007/08 | O7: 2008/09 | P7: 2009/10 | Q7: 2010/11 | R7: 2011/12 | S7: 2012/13 | T7: 2013/14 | U7: 2014/15 | V7: 2015/16 | W7: 2016/17 | X7: 2017/18 | Y7: 2018/19
J11: 1) | K11: 1) | L11: 1)
E12: Celkem | J12: 2006 | K12: 1966 | L12: 2004 | M12: 1482 | N12: 1447 | O12: 1438 | P12: 1433 | Q12: 1423 | R12: 1393 | S12: 1347 | T12: 1331 | U12: 1310 | V12: 1304 | W12: 1307 | X12: 1308 | Y12: 1290
E13: v tom | F13: veřejný | J13: 1606 | K13: 1563 | L13: 1596 | M13: 1122 | N13: 1082 | O13: 1069 | P13: 1065 | Q13: 1062 | R13: 1035 | S13: 997 | T13: 988 | U13: 972 | V13: 972 | W13: 973 | X13: 977 | Y13: 962
F14: v tom | G14: MŠMT | J14: 57 | K14: 57 | L14: 58 | M14: 32 | N14: 32 | O14: 35 | P14: 35 | Q14: 35 | R14: 34 | S14: 32 | T14: 32 | U14: 31 | V14: 31 | W14: 30 | X14: 30 | Y14: 29
G15: obec | J15: 16 | K15: 18 | L15: 18 | M15: 19 | N15: 20 | O15: 20 | P15: 22 | Q15: 25 | R15: 24 | S15: 24 | T15: 25 | U15: 26 | V15: 27 | W15: 27 | X15: 28 | Y15: 28
G16: jiný resort | J16: 9 | K16: 9 | L16: 10 | M16: 5 | N16: 5 | O16: 4 | P16: 4 | Q16: 4 | R16: 4 | S16: 4 | T16: 4 | U16: 3 | V16: 3 | W16: 4 | X16: 4 | Y16: 4
G17: kraj | J17: 1524 | K17: 1479 | L17: 1510 | M17: 1066 | N17: 1025 | O17: 1010 | P17: 1004 | Q17: 998 | R17: 973 | S17: 937 | T17: 927 | U17: 912 | V17: 911 | W17: 912 | X17: 915 | Y17: 901
F18: neveřejný | J18: 400 | K18: 403 | L18: 408 | M18: 360 | N18: 365 | O18: 369 | P18: 368 | Q18: 361 | R18: 358 | S18: 350 | T18: 343 | U18: 338 | V18: 332 | W18: 334 | X18: 331 | Y18: 328
F19: v tom | G19: privátní sektor | J19: 361 | K19: 363 | L19: 367 | M19: 324 | N19: 329 | O19: 333 | P19: 332 | Q19: 325 | R19: 321 | S19: 313 | T19: 306 | U19: 299 | V19: 293 | W19: 294 | X19: 291 | Y19: 286
G20: církev | J20: 39 | K20: 40 | L20: 41 | M20: 36 | N20: 36 | O20: 36 | P20: 36 | Q20: 36 | R20: 37 | S20: 37 | T20: 37 | U20: 39 | V20: 39 | W20: 40 | X20: 40 | Y20: 42
E21: Denní forma vzdělávání | J21: 1991 | K21: 1953 | L21: 1991 | M21: 1475 | N21: 1439 | O21: 1432 | P21: 1427 | Q21: 1416 | R21: 1384 | S21: 1337 | T21: 1323 | U21: 1299 | V21: 1294 | W21: 1297 | X21: 1297 | Y21: 1279
E22: v tom | F22: veřejný | J22: 1602 | K22: 1560 | L22: 1593 | M22: 1122 | N22: 1081 | O22: 1069 | P22: 1065 | Q22: 1062 | R22: 1035 | S22: 997 | T22: 988 | U22: 971 | V22: 971 | W22: 972 | X22: 975 | Y22: 960
F23: v tom | G23: MŠMT | J23: 57 | K23: 57 | L23: 58 | M23: 32 | N23: 32 | O23: 35 | P23: 35 | Q23: 35 | R23: 34 | S23: 32 | T23: 32 | U23: 31 | V23: 31 | W23: 30 | X23: 30 | Y23: 29
G24: obec | J24: 16 | K24: 18 | L24: 18 | M24: 19 | N24: 20 | O24: 20 | P24: 22 | Q24: 25 | R24: 24 | S24: 24 | T24: 25 | U24: 26 | V24: 27 | W24: 27 | X24: 27 | Y24: 27
G25: jiný resort | J25: 9 | K25: 9 | L25: 10 | M25: 5 | N25: 4 | O25: 4 | P25: 4 | Q25: 4 | R25: 4 | S25: 4 | T25: 4 | U25: 2 | V25: 2 | W25: 3 | X25: 3 | Y25: 3
G26: kraj | J26: 1520 | K26: 1476 | L26: 1507 | M26: 1066 | N26: 1025 | O26: 1010 | P26: 1004 | Q26: 998 | R26: 973 | S26: 937 | T26: 927 | U26: 912 | V26: 911 | W26: 912 | X26: 915 | Y26: 901
F27: neveřejný | J27: 389 | K27: 393 | L27: 398 | M27: 353 | N27: 358 | O27: 363 | P27: 362 | Q27: 354 | R27: 349 | S27: 340 | T27: 335 | U27: 328 | V27: 323 | W27: 325 | X27: 322 | Y27: 319
F28: v tom | G28: privátní sektor | J28: 350 | K28: 353 | L28: 357 | M28: 317 | N28: 322 | O28: 327 | P28: 326 | Q28: 318 | R28: 312 | S28: 303 | T28: 298 | U28: 289 | V28: 284 | W28: 285 | X28: 282 | Y28: 277
G29: církev | J29: 39 | K29: 40 | L29: 41 | M29: 36 | N29: 36 | O29: 36 | P29: 36 | Q29: 36 | R29: 37 | S29: 37 | T29: 37 | U29: 39 | V29: 39 | W29: 40 | X29: 40 | Y29: 42
E30: Ostatní formy vzdělávání | J30: 470 | K30: 481 | L30: 479 | M30: 434 | N30: 423 | O30: 440 | P30: 434 | Q30: 440 | R30: 417 | S30: 404 | T30: 383 | U30: 362 | V30: 371 | W30: 340 | X30: 319 | Y30: 302
E31: v tom | F31: veřejný | J31: 321 | K31: 334 | L31: 333 | M31: 288 | N31: 274 | O31: 278 | P31: 269 | Q31: 270 | R31: 253 | S31: 244 | T31: 235 | U31: 217 | V31: 225 | W31: 201 | X31: 188 | Y31: 178
F32: v tom | G32: MŠMT | J32: 0 | K32: 0 | L32: 0 | M32: 0 | N32: 0 | O32: 0 | P32: 0 | Q32: 0 | R32: 0 | S32: 0 | T32: 0 | U32: 0 | V32: 0 | W32: 0 | X32: 0 | Y32: 0
G33: obec | J33: 0 | K33: 0 | L33: 0 | M33: 0 | N33: 0 | O33: 0 | P33: 0 | Q33: 0 | R33: 0 | S33: 0 | T33: 1 | U33: 1 | V33: 2 | W33: 2 | X33: 2 | Y33: 2
G34: jiný resort | J34: 3 | K34: 4 | L34: 4 | M34: 3 | N34: 3 | O34: 1 | P34: 2 | Q34: 2 | R34: 2 | S34: 2 | T34: 2 | U34: 2 | V34: 2 | W34: 2 | X34: 2 | Y34: 2
G35: kraj | J35: 318 | K35: 330 | L35: 329 | M35: 285 | N35: 271 | O35: 277 | P35: 267 | Q35: 268 | R35: 251 | S35: 242 | T35: 232 | U35: 214 | V35: 221 | W35: 197 | X35: 184 | Y35: 174
F36: neveřejný | J36: 149 | K36: 147 | L36: 146 | M36: 146 | N36: 149 | O36: 162 | P36: 165 | Q36: 170 | R36: 164 | S36: 160 | T36: 148 | U36: 145 | V36: 146 | W36: 139 | X36: 131 | Y36: 124
F37: v tom | G37: privátní sektor | J37: 147 | K37: 144 | L37: 144 | M37: 144 | N37: 147 | O37: 160 | P37: 163 | Q37: 167 | R37: 160 | S37: 154 | T37: 141 | U37: 138 | V37: 138 | W37: 130 | X37: 123 | Y37: 117
G38: církev | J38: 2 | K38: 3 | L38: 2 | M38: 2 | N38: 2 | O38: 2 | P38: 2 | Q38: 3 | R38: 4 | S38: 6 | T38: 7 | U38: 7 | V38: 8 | W38: 9 | X38: 8 | Y38: 7
Y39: Zdroj: databáze MŠMT

Sheet B5.1.3
D4: Tab. B5.1.3: | H4: Střední školy – školy
B5: 0 | D5: ve školním roce 2008/09 až 2018/19 – podle území
D7: Území | J7: 2003/04 | K7: 2004/05 | L7: 2005/06 | M7: 2006/07 | N7: 2007/08 | O7: 2008/09 | P7: 2009/10 | Q7: 2010/11 | R7: 2011/12 | S7: 2012/13 | T7: 2013/14 | U7: 2014/15 | V7: 2015/16 | W7: 2016/17 | X7: 2017/18 | Y7: 2018/19
J11: 1) | K11: 1) | L11: 1)
E12: Česká republika | H12: CZ0 | J12: 2006 | K12: 1966 | L12: 2004 | M12: 1482 | N12: 1447 | O12: 1438 | P12: 1433 | Q12: 1423 | R12: 1393 | S12: 1347 | T12: 1331 | U12: 1310 | V12: 1304 | W12: 1307 | X12: 1308 | Y12: 1290
E13: Praha | H13: CZ01 | J13: 232 | K13: 231 | L13: 240 | M13: 204 | N13: 200 | O13: 204 | P13: 202 | Q13: 200 | R13: 196 | S13: 193 | T13: 193 | U13: 189 | V13: 188 | W13: 185 | X13: 183 | Y13: 185
F14: Hlavní město Praha | H14: CZ010 | J14: 232 | K14: 231 | L14: 240 | M14: 204 | N14: 200 | O14: 204 | P14: 202 | Q14: 200 | R14: 196 | S14: 193 | T14: 193 | U14: 189 | V14: 188 | W14: 185 | X14: 183 | Y14: 185
E15: Střední Čechy | H15: CZ02 | J15: 197 | K15: 195 | L15: 195 | M15: 148 | N15: 151 | O15: 150 | P15: 151 | Q15: 153 | R15: 155 | S15: 154 | T15: 151 | U15: 152 | V15: 152 | W15: 153 | X15: 153 | Y15: 152
F16: Středočeský kraj | H16: CZ020 | J16: 197 | K16: 195 | L16: 195 | M16: 148 | N16: 151 | O16: 150 | P16: 151 | Q16: 153 | R16: 155 | S16: 154 | T16: 151 | U16: 152 | V16: 152 | W16: 153 | X16: 153 | Y16: 152
E17: Jihozápad | H17: CZ03 | J17: 229 | K17: 228 | L17: 234 | M17: 169 | N17: 161 | O17: 160 | P17: 159 | Q17: 158 | R17: 153 | S17: 146 | T17: 145 | U17: 145 | V17: 144 | W17: 145 | X17: 144 | Y17: 144
F18: Jihočeský kraj | H18: CZ031 | J18: 140 | K18: 139 | L18: 142 | M18: 106 | N18: 98 | O18: 98 | P18: 97 | Q18: 96 | R18: 96 | S18: 90 | T18: 89 | U18: 90 | V18: 90 | W18: 90 | X18: 89 | Y18: 89
F19: Plzeňský kraj | H19: CZ032 | J19: 89 | K19: 89 | L19: 92 | M19: 63 | N19: 63 | O19: 62 | P19: 62 | Q19: 62 | R19: 57 | S19: 56 | T19: 56 | U19: 55 | V19: 54 | W19: 55 | X19: 55 | Y19: 55
E20: Severozápad | H20: CZ04 | J20: 240 | K20: 237 | L20: 254 | M20: 171 | N20: 162 | O20: 155 | P20: 156 | Q20: 150 | R20: 142 | S20: 132 | T20: 134 | U20: 132 | V20: 131 | W20: 133 | X20: 132 | Y20: 127
F21: Karlovarský kraj | H21: CZ041 | J21: 63 | K21: 63 | L21: 70 | M21: 43 | N21: 40 | O21: 39 | P21: 39 | Q21: 38 | R21: 38 | S21: 38 | T21: 38 | U21: 38 | V21: 37 | W21: 38 | X21: 37 | Y21: 32
F22: Ústecký kraj | H22: CZ042 | J22: 177 | K22: 174 | L22: 184 | M22: 128 | N22: 122 | O22: 116 | P22: 117 | Q22: 112 | R22: 104 | S22: 94 | T22: 96 | U22: 94 | V22: 94 | W22: 95 | X22: 95 | Y22: 95
E23: Severovýchod | H23: CZ05 | J23: 310 | K23: 305 | L23: 310 | M23: 241 | N23: 220 | O23: 217 | P23: 217 | Q23: 216 | R23: 207 | S23: 208 | T23: 205 | U23: 204 | V23: 206 | W23: 206 | X23: 208 | Y23: 196
F24: Liberecký kraj | H24: CZ051 | J24: 84 | K24: 82 | L24: 87 | M24: 61 | N24: 54 | O24: 54 | P24: 53 | Q24: 53 | R24: 52 | S24: 51 | T24: 51 | U24: 50 | V24: 50 | W24: 49 | X24: 49 | Y24: 48
F25: Královéhradecký kraj | H25: CZ052 | J25: 126 | K25: 122 | L25: 121 | M25: 90 | N25: 88 | O25: 84 | P25: 85 | Q25: 84 | R25: 81 | S25: 82 | T25: 81 | U25: 81 | V25: 82 | W25: 83 | X25: 84 | Y25: 74
F26: Pardubický kraj | H26: CZ053 | J26: 100 | K26: 101 | L26: 102 | M26: 90 | N26: 78 | O26: 79 | P26: 79 | Q26: 79 | R26: 74 | S26: 75 | T26: 73 | U26: 73 | V26: 74 | W26: 74 | X26: 75 | Y26: 74
E27: Jihovýchod | H27: CZ06 | J27: 333 | K27: 304 | L27: 311 | M27: 217 | N27: 218 | O27: 218 | P27: 216 | Q27: 216 | R27: 219 | S27: 204 | T27: 201 | U27: 188 | V27: 186 | W27: 188 | X27: 188 | Y27: 188
F28: Kraj Vysočina | H28: CZ063 | J28: 110 | K28: 101 | L28: 104 | M28: 70 | N28: 72 | O28: 72 | P28: 72 | Q28: 73 | R28: 75 | S28: 76 | T28: 75 | U28: 65 | V28: 63 | W28: 63 | X28: 63 | Y28: 65
F29: Jihomoravský kraj | H29: CZ064 | J29: 223 | K29: 203 | L29: 207 | M29: 147 | N29: 146 | O29: 146 | P29: 144 | Q29: 143 | R29: 144 | S29: 128 | T29: 126 | U29: 123 | V29: 123 | W29: 125 | X29: 125 | Y29: 123
E30: Střední Morava | H30: CZ07 | J30: 255 | K30: 254 | L30: 243 | M30: 179 | N30: 179 | O30: 178 | P30: 179 | Q30: 178 | R30: 174 | S30: 168 | T30: 163 | U30: 161 | V30: 160 | W30: 162 | X30: 164 | Y30: 163
F31: Olomoucký kraj | H31: CZ071 | J31: 137 | K31: 137 | L31: 129 | M31: 96 | N31: 97 | O31: 100 | P31: 100 | Q31: 100 | R31: 100 | S31: 97 | T31: 96 | U31: 94 | V31: 93 | W31: 94 | X31: 96 | Y31: 94
F32: Zlínský kraj | H32: CZ072 | J32: 118 | K32: 117 | L32: 114 | M32: 83 | N32: 82 | O32: 78 | P32: 79 | Q32: 78 | R32: 74 | S32: 71 | T32: 67 | U32: 67 | V32: 67 | W32: 68 | X32: 68 | Y32: 69
E33: Moravskoslezsko | H33: CZ08 | J33: 210 | K33: 212 | L33: 217 | M33: 153 | N33: 156 | O33: 156 | P33: 153 | Q33: 152 | R33: 147 | S33: 142 | T33: 139 | U33: 139 | V33: 137 | W33: 135 | X33: 136 | Y33: 135
F34: Moravskoslezský kraj | H34: CZ080 | J34: 210 | K34: 212 | L34: 217 | M34: 153 | N34: 156 | O34: 156 | P34: 153 | Q34: 152 | R34: 147 | S34: 142 | T34: 139 | U34: 139 | V34: 137 | W34: 135 | X34: 136 | Y34: 135
Y35: Zdroj: databáze MŠMT

Sheet B5.1.4
D4: Tab. B5.1.4: | H4: Střední školy, denní forma vzdělávání – třídy
B5: 0 | D5: ve školním roce 2008/09 až 2018/19 – podle druhu vzdělávání a zřizovatele
D7: Druh vzdělávání Zřizovatel | J7: 2003/04 | K7: 2004/05 | L7: 2005/06 | M7: 2006/07 | N7: 2007/08 | O7: 2008/09 | P7: 2009/10 | Q7: 2010/11 | R7: 2011/12 | S7: 2012/13 | T7: 2013/14 | U7: 2014/15 | V7: 2015/16 | W7: 2016/17 | X7: 2017/18 | Y7: 2018/19
E12: Celkem | J12: 21909 | K12: 21879 | L12: 21797 | M12: 21805 | N12: 21726 | O12: 21640 | P12: 21540 | Q12: 21176.34 | R12: 20400.16 | S12: 19440.28 | T12: 18822.23 | U12: 18455.03 | V12: 18269.16 | W12: 18127.39 | X12: 18088.37 | Y12: 18164.14
E13: v tom | F13: veřejný | J13: 18781 | K13: 18700 | L13: 18560 | M13: 18483 | N13: 18364 | O13: 18251 | P13: 18041 | Q13: 17789.26 | R13: 17199.21 | S13: 16375.22 | T13: 15806.27 | U13: 15432.05 | V13: 15240.11 | W13: 15034.38 | X13: 14916.22 | Y13: 14970.15
F14: v tom | G14: MŠMT | J14: 186 | K14: 201 | L14: 209 | M14: 210 | N14: 215 | O14: 224 | P14: 219 | Q14: 214.01 | R14: 225 | S14: 206.01 | T14: 203.02 | U14: 211 | V14: 219.01 | W14: 217 | X14: 213 | Y14: 213
G15: obec | J15: 102 | K15: 124 | L15: 125 | M15: 134 | N15: 134 | O15: 137 | P15: 144 | Q15: 157.01 | R15: 168 | S15: 157.01 | T15: 167 | U15: 169.01 | V15: 176 | W15: 178 | X15: 179 | Y15: 176.99
G16: jiný resort | J16: 102 | K16: 80 | L16: 60 | M16: 24 | N16: 34 | O16: 37 | P16: 42 | Q16: 37 | R16: 37 | S16: 37 | T16: 27 | U16: 26 | V16: 27 | W16: 31 | X16: 35 | Y16: 40
G17: kraj | J17: 18391 | K17: 18295 | L17: 18166 | M17: 18115 | N17: 17981 | O17: 17853 | P17: 17636 | Q17: 17381.24 | R17: 16769.21 | S17: 15975.2 | T17: 15409.25 | U17: 15026.04 | V17: 14818.1 | W17: 14608.38 | X17: 14489.22 | Y17: 14540.16
F18: neveřejný | J18: 3128 | K18: 3179 | L18: 3237 | M18: 3322 | N18: 3362 | O18: 3389 | P18: 3499 | Q18: 3387.08 | R18: 3200.95 | S18: 3065.06 | T18: 3015.96 | U18: 3022.98 | V18: 3029.05 | W18: 3093.01 | X18: 3172.15 | Y18: 3193.99
F19: v tom | G19: privátní sektor | J19: 2804 | K19: 2848 | L19: 2900 | M19: 2981 | N19: 3007 | O19: 3027 | P19: 3127 | Q19: 3013.08 | R19: 2827.96 | S19: 2688.06 | T19: 2635.95 | U19: 2636.98 | V19: 2641.06 | W19: 2697 | X19: 2768.14 | Y19: 2789.98
G20: církev | J20: 324 | K20: 331 | L20: 337 | M20: 341 | N20: 355 | O20: 362 | P20: 372 | Q20: 374 | R20: 372.99 | S20: 377 | T20: 380.01 | U20: 386 | V20: 387.99 | W20: 396.01 | X20: 404.01 | Y20: 404.01
E21: Střední vzdělávání | J21: 40 | K21: 37 | L21: 242 | M21: 227 | N21: 215 | O21: 220 | P21: 231.2 | Q21: 247.9 | R21: 257.3 | S21: 247.71 | T21: 265.67 | U21: 277.43 | V21: 309.14 | W21: 329.6 | X21: 361.23 | Y21: 380.06
E22: v tom | F22: veřejný | J22: 26 | K22: 22 | L22: 209 | M22: 194 | N22: 182 | O22: 186 | P22: 187.2 | Q22: 202.9 | R22: 215.3 | S22: 204.73 | T22: 216.68 | U22: 225.43 | V22: 251.14 | W22: 246.59 | X22: 260.22 | Y22: 265.05
F23: v tom | G23: MŠMT | J23: 0 | K23: 0 | L23: 43 | M23: 40 | N23: 42 | O23: 46 | P23: 41.2 | Q23: 39.9 | R23: 37.6 | S23: 23 | T23: 20.01 | U23: 22 | V23: 25 | W23: 21 | X23: 19 | Y23: 20
G24: obec | J24: 0 | K24: 0 | L24: 3 | M24: 4 | N24: 5 | O24: 5 | P24: 6 | Q24: 9 | R24: 10 | S24: 9 | T24: 7 | U24: 9 | V24: 10 | W24: 10.04 | X24: 10 | Y24: 10
G25: jiný resort | J25: 0 | K25: 0 | L25: 0 | M25: 0 | N25: 0 | O25: 0 | P25: 0 | Q25: 0 | R25: 0 | S25: 0 | T25: 0 | U25: 0 | V25: 0 | W25: 0 | X25: 0 | Y25: 0
G26: kraj | J26: 26 | K26: 22 | L26: 163 | M26: 150 | N26: 135 | O26: 135 | P26: 140 | Q26: 154 | R26: 167.7 | S26: 172.73 | T26: 189.67 | U26: 194.43 | V26: 216.14 | W26: 215.55 | X26: 231.22 | Y26: 235.05
F27: neveřejný | J27: 14 | K27: 15 | L27: 33 | M27: 33 | N27: 33 | O27: 34 | P27: 44 | Q27: 45 | R27: 42 | S27: 42.98 | T27: 48.99 | U27: 52 | V27: 58 | W27: 83.01 | X27: 101.01 | Y27: 115.01
F28: v tom | G28: privátní sektor | J28: 5 | K28: 5 | L28: 19 | M28: 20 | N28: 22 | O28: 23 | P28: 29 | Q28: 29 | R28: 26 | S28: 23.99 | T28: 28 | U28: 28 | V28: 33 | W28: 53 | X28: 69 | Y28: 85.01
G29: církev | J29: 9 | K29: 10 | L29: 14 | M29: 13 | N29: 11 | O29: 11 | P29: 15 | Q29: 16 | R29: 16 | S29: 18.99 | T29: 20.99 | U29: 24 | V29: 25 | W29: 30.01 | X29: 32.01 | Y29: 30
E30: Střední vzdělávání s výučním listem1) | J30: 5419 | K30: 5163 | L30: 6370 | M30: 6164 | N30: 5929.3 | O30: 5682 | P30: 5497.2 | Q30: 5389.98 | R30: 5139.29 | S30: 4929.05 | T30: 4847.02 | U30: 4789.93 | V30: 4731.29 | W30: 4607.33 | X30: 4502.98 | Y30: 4491.79
E31: v tom | F31: veřejný | J31: 4821 | K31: 4600 | L31: 5742 | M31: 5542 | N31: 5329.3 | O31: 5098 | P31: 4889.2 | Q31: 4793.91 | R31: 4590.32 | S31: 4373.02 | T31: 4296.07 | U31: 4238.91 | V31: 4182.29 | W31: 4042.31 | X31: 3918.89 | Y31: 3905.79
F32: v tom | G32: MŠMT | J32: 0 | K32: 0 | L32: 140 | M32: 142 | N32: 144 | O32: 146 | P32: 144 | Q32: 140.01 | R32: 151 | S32: 150.01 | T32: 151.01 | U32: 160 | V32: 165.01 | W32: 163 | X32: 159 | Y32: 157
G33: obec | J33: 9 | K33: 9 | L33: 10 | M33: 17 | N33: 14.2 | O33: 14 | P33: 16.6 | Q33: 17.47 | R33: 21 | S33: 23.01 | T33: 25 | U33: 27.01 | V33: 26 | W33: 25.96 | X33: 28 | Y33: 28.99
G34: jiný resort | J34: 12 | K34: 12 | L34: 14 | M34: 0 | N34: 14 | O34: 14 | P34: 16 | Q34: 10 | R34: 10 | S34: 11 | T34: 1 | U34: 0 | V34: 0 | W34: 0 | X34: 0 | Y34: 0
G35: kraj | J35: 4800 | K35: 4579 | L35: 5578 | M35: 5383 | N35: 5157.1 | O35: 4924 | P35: 4712.6 | Q35: 4626.43 | R35: 4408.32 | S35: 4189 | T35: 4119.06 | U35: 4051.9 | V35: 3991.28 | W35: 3853.35 | X35: 3731.89 | Y35: 3719.8
F36: neveřejný | J36: 598 | K36: 563 | L36: 628 | M36: 622 | N36: 600 | O36: 584 | P36: 608 | Q36: 596.07 | R36: 548.97 | S36: 556.03 | T36: 550.95 | U36: 551.02 | V36: 549 | W36: 565.02 | X36: 584.09 | Y36: 586
F37: v tom | G37: privátní sektor | J37: 589 | K37: 554 | L37: 615 | M37: 607 | N37: 585 | O37: 568 | P37: 591 | Q37: 578.07 | R37: 531.97 | S37: 538.03 | T37: 533.95 | U37: 534.02 | V37: 534 | W37: 550.02 | X37: 569.09 | Y37: 568.99
G38: církev | J38: 9 | K38: 9 | L38: 13 | M38: 15 | N38: 15 | O38: 16 | P38: 17 | Q38: 18 | R38: 17 | S38: 18 | T38: 17 | U38: 17 | V38: 15 | W38: 15 | X38: 15 | Y38: 17.01
E39: Střední vzdělávání s maturitní zkouškou1) | J39: 15004 | K39: 13967 | L39: 14301 | M39: 14561 | N39: 14738.7 | O39: 14899 | P39: 14981.6 | Q39: 14713.45 | R39: 14239.14 | S39: 13578.47 | T39: 13074.87 | U39: 12799.35 | V39: 12674.39 | W39: 12662.17 | X39: 12711.41 | Y39: 12804.69
E40: v tom | F40: veřejný | J40: 12683 | K40: 11715 | L40: 11951 | M40: 12113 | N40: 12219.7 | O40: 12325 | P40: 12315.6 | Q40: 12134.44 | R40: 11771.16 | S40: 11245.45 | T40: 10784.07 | U40: 10496.51 | V40: 10357.5 | W40: 10315.18 | X40: 10322.37 | Y40: 10399.72
F41: v tom | G41: MŠMT | J41: 0 | K41: 0 | L41: 25 | M41: 27 | N41: 28 | O41: 30 | P41: 31.8 | Q41: 32.1 | R41: 33.4 | S41: 30 | T41: 30 | U41: 28 | V41: 28 | W41: 30 | X41: 30 | Y41: 32
G42: obec | J42: 90 | K42: 111 | L42: 112 | M42: 113 | N42: 114.8 | O42: 118 | P42: 121.4 | Q42: 130.54 | R42: 137 | S42: 125 | T42: 135 | U42: 133 | V42: 140 | W42: 142 | X42: 141 | Y42: 138
G43: jiný resort | J43: 82 | K43: 61 | L43: 42 | M43: 23 | N43: 20 | O43: 23 | P43: 26 | Q43: 27 | R43: 27 | S43: 26 | T43: 26 | U43: 26 | V43: 27 | W43: 31 | X43: 35 | Y43: 40
G44: kraj | J44: 11396 | K44: 11543 | L44: 11772 | M44: 11950 | N44: 12056.9 | O44: 12154 | P44: 12136.4 | Q44: 11944.8 | R44: 11573.76 | S44: 11064.45 | T44: 10593.07 | U44: 10309.51 | V44: 10162.5 | W44: 10112.18 | X44: 10116.37 | Y44: 10189.72
F45: neveřejný | J45: 2190 | K45: 2252 | L45: 2350 | M45: 2448 | N45: 2519 | O45: 2574 | P45: 2666 | Q45: 2579.01 | R45: 2467.98 | S45: 2333.02 | T45: 2290.8 | U45: 2302.84 | V45: 2316.89 | W45: 2346.99 | X45: 2389.04 | Y45: 2404.97
F46: v tom | G46: privátní sektor | J46: 1894 | K46: 1950 | L46: 2042 | M46: 2137 | N46: 2192 | O46: 2241 | P46: 2328 | Q46: 2241.01 | R46: 2130.99 | S46: 1997.01 | T46: 1952.78 | U46: 1961.84 | V46: 1972.9 | W46: 1999.99 | X46: 2036.04 | Y46: 2051.97
G47: církev | J47: 296 | K47: 302 | L47: 308 | M47: 311 | N47: 327 | O47: 333 | P47: 338 | Q47: 338 | R47: 336.99 | S47: 336.01 | T47: 338.02 | U47: 341 | V47: 343.99 | W47: 347 | X47: 353 | Y47: 353
E48: Nástavbové studium | J48: 886 | K48: 899 | L48: 884 | M48: 853 | N48: 843 | O48: 839 | P48: 830 | Q48: 825.01 | R48: 764.43 | S48: 685.05 | T48: 634.67 | U48: 588.32 | V48: 554.34 | W48: 528.29 | X48: 512.75 | Y48: 487.6
E49: v tom | F49: veřejný | J49: 672 | K49: 670 | L49: 658 | M49: 634 | N49: 633 | O49: 642 | P49: 649 | Q49: 658.01 | R49: 622.43 | S49: 552.02 | T49: 509.45 | U49: 471.2 | V49: 449.18 | W49: 430.3 | X49: 414.74 | Y49: 399.59
F50: v tom | G50: MŠMT | J50: 0 | K50: 0 | L50: 1 | M50: 1 | N50: 1 | O50: 2 | P50: 2 | Q50: 2 | R50: 3 | S50: 3 | T50: 2 | U50: 1 | V50: 1 | W50: 3 | X50: 5 | Y50: 4
G51: obec | J51: 0 | K51: 0 | L51: 0 | M51: 0 | N51: 0 | O51: 0 | P51: 0 | Q51: 0 | R51: 0 | S51: 0 | T51: 0 | U51: 0 | V51: 0 | W51: 0 | X51: 0 | Y51: 0
G52: jiný resort | J52: 6 | K52: 5 | L52: 4 | M52: 1 | N52: 0 | O52: 0 | P52: 0 | Q52: 0 | R52: 0 | S52: 0 | T52: 0 | U52: 0 | V52: 0 | W52: 0 | X52: 0 | Y52: 0
G53: kraj | J53: 666 | K53: 665 | L53: 653 | M53: 632 | N53: 632 | O53: 640 | P53: 647 | Q53: 656.01 | R53: 619.43 | S53: 549.02 | T53: 507.45 | U53: 470.2 | V53: 448.18 | W53: 427.3 | X53: 409.74 | Y53: 395.59
F54: neveřejný | J54: 214 | K54: 229 | L54: 226 | M54: 219 | N54: 210 | O54: 197 | P54: 181 | Q54: 167 | R54: 142 | S54: 133.03 | T54: 125.22 | U54: 117.12 | V54: 105.16 | W54: 97.99 | X54: 98.01 | Y54: 88.01
F55: v tom | G55: privátní sektor | J55: 212 | K55: 227 | L55: 224 | M55: 217 | N55: 208 | O55: 195 | P55: 179 | Q55: 165 | R55: 139 | S55: 129.03 | T55: 121.22 | U55: 113.12 | V55: 101.16 | W55: 93.99 | X55: 94.01 | Y55: 84.01
G56: církev | J56: 2 | K56: 2 | L56: 2 | M56: 2 | N56: 2 | O56: 2 | P56: 2 | Q56: 2 | R56: 3 | S56: 4 | T56: 4 | U56: 4 | V56: 4 | W56: 4 | X56: 4 | Y56: 4
D57: Komentáře: | Y57: Zdroj: databáze MŠMT
D58: 1) | E58: Včetně zkráceného studia.

Sheet B5.1.5
D4: Tab. B5.1.5: | H4: Střední školy – žáci, nově přijatí a absolventi
B5: 18 | D5: ve školním roce 2008/09 až 2018/19 – podle formy vzdělávání a zřizovatele
D7: Forma vzdělávání Zřizovatel | J7: 2003/04 | K7: 2004/05 | L7: 2005/06 | M7: 2006/07 | N7: 2007/08 | O7: 2008/09 | P7: 2009/10 | Q7: 2010/11 | R7: 2011/12 | S7: 2012/13 | T7: 2013/14 | U7: 2014/15 | V7: 2015/16 | W7: 2016/17 | X7: 2017/18 | Y7: 2018/19
D12: Žáci
E13: Celkem | J13: 576615 | K13: 579505 | L13: 577605 | M13: 576585 | N13: 569267 | O13: 564326 | P13: 556260 | Q13: 532918 | R13: 501220 | S13: 470754 | T13: 448792 | U13: 435542 | V13: 427107 | W13: 424849 | X13: 421535 | Y13: 420814
E14: v tom | F14: veřejný | J14: 492735 | K14: 494362 | L14: 491504 | M14: 488851 | N14: 481687 | O14: 476245 | P14: 468233 | Q14: 451472 | R14: 427513 | S14: 402765 | T14: 383898 | U14: 370935 | V14: 362298 | W14: 358169 | X14: 353759 | Y14: 352861
F15: v tom | G15: MŠMT | J15: 1557 | K15: 1499 | L15: 1544 | M15: 1498 | N15: 1582 | O15: 1572 | P15: 1610 | Q15: 1535 | R15: 1494 | S15: 1372 | T15: 1298 | U15: 1202 | V15: 1223 | W15: 1190 | X15: 1117 | Y15: 1110
G16: obec | J16: 2456 | K16: 3023 | L16: 3115 | M16: 3294 | N16: 3300 | O16: 3335 | P16: 3400 | Q16: 3461 | R16: 3470 | S16: 3116 | T16: 3285 | U16: 3268 | V16: 3447 | W16: 3437 | X16: 3529 | Y16: 3572
G17: jiný resort | J17: 1958 | K17: 1776 | L17: 1372 | M17: 835 | N17: 918 | O17: 935 | P17: 1089 | Q17: 1144 | R17: 1090 | S17: 1089 | T17: 1167 | U17: 1173 | V17: 1240 | W17: 1360 | X17: 1459 | Y17: 1584
G18: kraj | J18: 486764 | K18: 488064 | L18: 485473 | M18: 483224 | N18: 475887 | O18: 470403 | P18: 462134 | Q18: 445332 | R18: 421459 | S18: 397188 | T18: 378148 | U18: 365292 | V18: 356388 | W18: 352182 | X18: 347654 | Y18: 346595
F19: privátní sektor | J19: 75162 | K19: 76347 | L19: 77124 | M19: 78581 | N19: 78230 | O19: 78734 | P19: 78730 | Q19: 72229 | R19: 64485 | S19: 58717 | T19: 55456 | U19: 54900 | V19: 54957 | W19: 56664 | X19: 57693 | Y19: 57856
F20: církev | J20: 8718 | K20: 8796 | L20: 8977 | M20: 9153 | N20: 9350 | O20: 9347 | P20: 9297 | Q20: 9217 | R20: 9222 | S20: 9272 | T20: 9438 | U20: 9707 | V20: 9852 | W20: 10016 | X20: 10083 | Y20: 10097
E21: Denní forma vzdělávání | J21: 542937 | K21: 543587 | L21: 542027 | M21: 541770 | N21: 533940 | O21: 527045 | P21: 519468 | Q21: 496966 | R21: 470347 | S21: 443719 | T21: 423863 | U21: 412532 | V21: 405631 | W21: 404087 | X21: 403018 | Y21: 403957
E22: v tom | F22: veřejný | J22: 472439 | K22: 472385 | L22: 469947 | M22: 468095 | N22: 460893 | O22: 454590 | P22: 447042 | Q22: 430319 | R22: 409153 | S22: 386493 | T22: 368732 | U22: 357694 | V22: 350248 | W22: 347136 | X22: 344591 | Y22: 345109
F23: v tom | G23: MŠMT | J23: 1557 | K23: 1499 | L23: 1544 | M23: 1498 | N23: 1582 | O23: 1572 | P23: 1610 | Q23: 1535 | R23: 1494 | S23: 1372 | T23: 1298 | U23: 1202 | V23: 1223 | W23: 1190 | X23: 1117 | Y23: 1110
G24: obec | J24: 2456 | K24: 3023 | L24: 3115 | M24: 3294 | N24: 3300 | O24: 3335 | P24: 3400 | Q24: 3461 | R24: 3470 | S24: 3116 | T24: 3244 | U24: 3252 | V24: 3418 | W24: 3418 | X24: 3461 | Y24: 3461
G25: jiný resort | J25: 1609 | K25: 1334 | L25: 1018 | M25: 654 | N25: 677 | O25: 733 | P25: 865 | Q25: 779 | R25: 755 | S25: 762 | T25: 703 | U25: 711 | V25: 710 | W25: 789 | X25: 911 | Y25: 1042
G26: kraj | J26: 466817 | K26: 466529 | L26: 464270 | M26: 462649 | N26: 455334 | O26: 448950 | P26: 441167 | Q26: 424544 | R26: 403434 | S26: 381243 | T26: 363487 | U26: 352529 | V26: 344897 | W26: 341739 | X26: 339102 | Y26: 339496
F27: privátní sektor | J27: 61916 | K27: 62535 | L27: 63230 | M27: 64677 | N27: 63808 | O27: 63233 | P27: 63224 | Q27: 57564 | R27: 52128 | S27: 48214 | T27: 45971 | U27: 45483 | V27: 45899 | W27: 47320 | X27: 48661 | Y27: 49100
F28: církev | J28: 8582 | K28: 8667 | L28: 8850 | M28: 8998 | N28: 9239 | O28: 9222 | P28: 9202 | Q28: 9083 | R28: 9066 | S28: 9012 | T28: 9160 | U28: 9355 | V28: 9484 | W28: 9631 | X28: 9766 | Y28: 9748
E29: Ostatní formy vzdělávání | J29: 33678 | K29: 35918 | L29: 35578 | M29: 34815 | N29: 35327 | O29: 37281 | P29: 36792 | Q29: 35952 | R29: 30873 | S29: 27035 | T29: 24929 | U29: 23010 | V29: 21476 | W29: 20762 | X29: 18517 | Y29: 16857
E30: v tom | F30: veřejný | J30: 20296 | K30: 21977 | L30: 21557 | M30: 20756 | N30: 20794 | O30: 21655 | P30: 21191 | Q30: 21153 | R30: 18360 | S30: 16272 | T30: 15166 | U30: 13241 | V30: 12050 | W30: 11033 | X30: 9168 | Y30: 7752
F31: v tom | G31: MŠMT | J31: 0 | K31: 0 | L31: 0 | M31: 0 | N31: 0 | O31: 0 | P31: 0 | Q31: 0 | R31: 0 | S31: 0 | T31: 0 | U31: 0 | V31: 0 | W31: 0 | X31: 0 | Y31: 0
G32: obec | J32: 0 | K32: 0 | L32: 0 | M32: 0 | N32: 0 | O32: 0 | P32: 0 | Q32: 0 | R32: 0 | S32: 0 | T32: 41 | U32: 16 | V32: 29 | W32: 19 | X32: 68 | Y32: 111
G33: jiný resort | J33: 349 | K33: 442 | L33: 354 | M33: 181 | N33: 241 | O33: 202 | P33: 224 | Q33: 365 | R33: 335 | S33: 327 | T33: 464 | U33: 462 | V33: 530 | W33: 571 | X33: 548 | Y33: 542
G34: kraj | J34: 19947 | K34: 21535 | L34: 21203 | M34: 20575 | N34: 20553 | O34: 21453 | P34: 20967 | Q34: 20788 | R34: 18025 | S34: 15945 | T34: 14661 | U34: 12763 | V34: 11491 | W34: 10443 | X34: 8552 | Y34: 7099
F35: privátní sektor | J35: 13246 | K35: 13812 | L35: 13894 | M35: 13904 | N35: 14422 | O35: 15501 | P35: 15506 | Q35: 14665 | R35: 12357 | S35: 10503 | T35: 9485 | U35: 9417 | V35: 9058 | W35: 9344 | X35: 9032 | Y35: 8756
F36: církev | J36: 136 | K36: 129 | L36: 127 | M36: 155 | N36: 111 | O36: 125 | P36: 95 | Q36: 134 | R36: 156 | S36: 260 | T36: 278 | U36: 352 | V36: 368 | W36: 385 | X36: 317 | Y36: 349
D37: Nově přijatí
E38: Celkem | J38: 168873 | K38: 167054 | L38: 162804 | M38: 166019 | N38: 160978 | O38: 158824 | P38: 153897 | Q38: 138874 | R38: 128453 | S38: 121583 | T38: 120053 | U38: 117725 | V38: 116077 | W38: 115617 | X38: 114041 | Y38: 113513
E39: v tom | F39: veřejný | J39: 143064 | K39: 141913 | L39: 138287 | M39: 139122 | N39: 135314 | O39: 133526 | P39: 129490 | Q39: 118346 | R39: 110363 | S39: 104006 | T39: 102342 | U39: 99293 | V39: 97936 | W39: 96823 | X39: 95379 | Y39: 94997
F40: v tom | G40: MŠMT | J40: 651 | K40: 663 | L40: 706 | M40: 672 | N40: 709 | O40: 674 | P40: 739 | Q40: 600 | R40: 607 | S40: 503 | T40: 432 | U40: 425 | V40: 454 | W40: 437 | X40: 371 | Y40: 395
G41: obec | J41: 486 | K41: 662 | L41: 687 | M41: 703 | N41: 729 | O41: 779 | P41: 684 | Q41: 681 | R41: 702 | S41: 686 | T41: 808 | U41: 761 | V41: 769 | W41: 764 | X41: 815 | Y41: 808
G42: jiný resort | J42: 553 | K42: 486 | L42: 330 | M42: 214 | N42: 333 | O42: 381 | P42: 452 | Q42: 417 | R42: 322 | S42: 350 | T42: 337 | U42: 317 | V42: 341 | W42: 352 | X42: 416 | Y42: 434
G43: kraj | J43: 141366 | K43: 140102 | L43: 136564 | M43: 137533 | N43: 133543 | O43: 131692 | P43: 127615 | Q43: 116648 | R43: 108732 | S43: 102467 | T43: 100765 | U43: 97790 | V43: 96372 | W43: 95270 | X43: 93777 | Y43: 93360
F44: privátní sektor | J44: 24015 | K44: 23245 | L44: 22669 | M44: 24936 | N44: 23809 | O44: 23398 | P44: 22629 | Q44: 18645 | R44: 16212 | S44: 15536 | T44: 15702 | U44: 16270 | V44: 16081 | W44: 16690 | X44: 16609 | Y44: 16441
F45: církev | J45: 1794 | K45: 1896 | L45: 1848 | M45: 1961 | N45: 1855 | O45: 1900 | P45: 1778 | Q45: 1883 | R45: 1878 | S45: 2041 | T45: 2009 | U45: 2162 | V45: 2060 | W45: 2104 | X45: 2053 | Y45: 2075
E46: Denní forma vzdělávání | J46: 153922 | K46: 151803 | L46: 149565 | M46: 152124 | N46: 146147 | O46: 143046 | P46: 139620 | Q46: 124751 | R46: 117525 | S46: 111927 | T46: 110402 | U46: 109105 | V46: 108053 | W46: 107399 | X46: 107316 | Y46: 107509
E47: v tom | F47: veřejný | J47: 133632 | K47: 131788 | L47: 129697 | M47: 130584 | N47: 126108 | O47: 123751 | P47: 120856 | Q47: 109448 | R47: 103380 | S47: 97649 | T47: 96039 | U47: 94232 | V47: 93218 | W47: 92269 | X47: 92026 | Y47: 92271
F48: v tom | G48: MŠMT | J48: 651 | K48: 663 | L48: 706 | M48: 672 | N48: 709 | O48: 674 | P48: 739 | Q48: 600 | R48: 607 | S48: 503 | T48: 432 | U48: 425 | V48: 454 | W48: 437 | X48: 371 | Y48: 395
G49: obec | J49: 503 | K49: 662 | L49: 687 | M49: 703 | N49: 729 | O49: 779 | P49: 684 | Q49: 681 | R49: 702 | S49: 686 | T49: 787 | U49: 761 | V49: 754 | W49: 762 | X49: 769 | Y49: 760
G50: jiný resort | J50: 391 | K50: 243 | L50: 193 | M50: 151 | N50: 244 | O50: 277 | P50: 339 | Q50: 230 | R50: 194 | S50: 227 | T50: 212 | U50: 211 | V50: 205 | W50: 268 | X50: 326 | Y50: 334
G51: kraj | J51: 132104 | K51: 130220 | L51: 128111 | M51: 129058 | N51: 124426 | O51: 122021 | P51: 119094 | Q51: 107937 | R51: 101877 | S51: 96233 | T51: 94608 | U51: 92835 | V51: 91805 | W51: 90802 | X51: 90560 | Y51: 90782
F52: privátní sektor | J52: 18513 | K52: 18176 | L52: 18048 | M52: 19631 | N52: 18194 | O52: 17437 | P52: 17002 | Q52: 13469 | R52: 12336 | S52: 12363 | T52: 12449 | U52: 12852 | V52: 12913 | W52: 13149 | X52: 13347 | Y52: 13297
F53: církev | J53: 1777 | K53: 1839 | L53: 1820 | M53: 1909 | N53: 1845 | O53: 1858 | P53: 1762 | Q53: 1834 | R53: 1809 | S53: 1915 | T53: 1914 | U53: 2021 | V53: 1922 | W53: 1981 | X53: 1943 | Y53: 1941
E54: Ostatní formy vzdělávání | J54: 14951 | K54: 15251 | L54: 13239 | M54: 13895 | N54: 14831 | O54: 15778 | P54: 14277 | Q54: 14123 | R54: 10928 | S54: 9656 | T54: 9651 | U54: 8620 | V54: 8024 | W54: 8218 | X54: 6725 | Y54: 6004
E55: v tom | F55: veřejný | J55: 9432 | K55: 10125 | L55: 9590 | M55: 8538 | N55: 9206 | O55: 9775 | P55: 8634 | Q55: 8898 | R55: 6983 | S55: 6357 | T55: 6303 | U55: 5061 | V55: 4718 | W55: 4554 | X55: 3353 | Y55: 2726
F56: v tom | G56: MŠMT | J56: 0 | K56: 0 | L56: 0 | M56: 0 | N56: 0 | O56: 0 | P56: 0 | Q56: 0 | R56: 0 | S56: 0 | T56: 0 | U56: 0 | V56: 0 | W56: 0 | X56: 0 | Y56: 0
G57: obec | J57: 0 | K57: 0 | L57: 0 | M57: 0 | N57: 0 | O57: 0 | P57: 0 | Q57: 0 | R57: 0 | S57: 0 | T57: 21 | U57: 0 | V57: 15 | W57: 2 | X57: 46 | Y57: 48
G58: jiný resort | J58: 162 | K58: 243 | L58: 137 | M58: 63 | N58: 89 | O58: 104 | P58: 113 | Q58: 187 | R58: 128 | S58: 123 | T58: 125 | U58: 106 | V58: 136 | W58: 84 | X58: 90 | Y58: 100
G59: kraj | J59: 9270 | K59: 9882 | L59: 8453 | M59: 8475 | N59: 9117 | O59: 9671 | P59: 8521 | Q59: 8711 | R59: 6855 | S59: 6234 | T59: 6157 | U59: 4955 | V59: 4567 | W59: 4468 | X59: 3217 | Y59: 2578
F60: privátní sektor | J60: 5502 | K60: 5069 | L60: 4621 | M60: 5305 | N60: 5615 | O60: 5961 | P60: 5627 | Q60: 5176 | R60: 3876 | S60: 3173 | T60: 3253 | U60: 3418 | V60: 3168 | W60: 3541 | X60: 3262 | Y60: 3144
F61: církev | J61: 17 | K61: 57 | L61: 28 | M61: 52 | N61: 10 | O61: 42 | P61: 16 | Q61: 49 | R61: 69 | S61: 126 | T61: 95 | U61: 141 | V61: 138 | W61: 123 | X61: 110 | Y61: 134
D62: Absolventi
E63: Celkem | J63: 131303 | K63: 132886 | L63: 132644 | M63: 130282 | N63: 125493 | O63: 123151 | P63: 116446 | Q63: 109514 | R63: 106816 | S63: 101055 | T63: 90076 | U63: 83822 | V63: 78385 | W63: 78602 | X63: 78056 | Y63: .
E64: v tom | F64: veřejný | J64: 112781 | K64: 113562 | L64: 112342 | M64: 110496 | N64: 106106 | O64: 103473 | P64: 97177 | Q64: 93432 | R64: 91041 | S64: 86542 | T64: 77714 | U64: 72296 | V64: 67275 | W64: 67115 | X64: 66152 | Y64: .
F65: v tom | G65: MŠMT | J65: 387 | K65: 358 | L65: 367 | M65: 325 | N65: 327 | O65: 339 | P65: 348 | Q65: 293 | R65: 269 | S65: 248 | T65: 291 | U65: 240 | V65: 201 | W65: 203 | X65: 197 | Y65: .
G66: obec | J66: 714 | K66: 533 | L66: 561 | M66: 613 | N66: 625 | O66: 583 | P66: 683 | Q66: 677 | R66: 637 | S66: 570 | T66: 548 | U66: 547 | V66: 526 | W66: 523 | X66: 550 | Y66: .
G67: jiný resort | J67: 633 | K67: 525 | L67: 331 | M67: 345 | N67: 214 | O67: 184 | P67: 142 | Q67: 199 | R67: 298 | S67: 230 | T67: 277 | U67: 271 | V67: 288 | W67: 310 | X67: 341 | Y67: .
G68: kraj | J68: 111047 | K68: 112146 | L68: 111083 | M68: 109213 | N68: 104940 | O68: 102367 | P68: 96004 | Q68: 92263 | R68: 89837 | S68: 85494 | T68: 76598 | U68: 71238 | V68: 66260 | W68: 66079 | X68: 65064 | Y68: .
F69: privátní sektor | J69: 16997 | K69: 17892 | L69: 18782 | M69: 18126 | N69: 17783 | O69: 18100 | P69: 17616 | Q69: 14593 | R69: 14158 | S69: 13028 | T69: 10863 | U69: 10089 | V69: 9555 | W69: 9923 | X69: 10314 | Y69: .
F70: církev | J70: 1525 | K70: 1432 | L70: 1520 | M70: 1660 | N70: 1604 | O70: 1578 | P70: 1653 | Q70: 1489 | R70: 1617 | S70: 1485 | T70: 1499 | U70: 1437 | V70: 1555 | W70: 1564 | X70: 1590 | Y70: .
E71: Denní forma vzdělávání | J71: 124903 | K71: 126270 | L71: 124633 | M71: 122239 | N71: 118420 | O71: 115506 | P71: 109080 | Q71: 103070 | R71: 100724 | S71: 95588 | T71: 85454 | U71: 79619 | V71: 74303 | W71: 74363 | X71: 74271 | Y71: .
E72: v tom | F72: veřejný | J72: 109171 | K72: 110014 | L72: 108120 | M72: 105902 | N72: 102162 | O72: 99473 | P72: 93368 | Q72: 89637 | R72: 87646 | S72: 83444 | T72: 75173 | U72: 70144 | V72: 65288 | W72: 65162 | X72: 64545 | Y72: .
F73: v tom | G73: MŠMT | J73: 387 | K73: 358 | L73: 367 | M73: 325 | N73: 327 | O73: 339 | P73: 348 | Q73: 293 | R73: 269 | S73: 248 | T73: 291 | U73: 240 | V73: 201 | W73: 203 | X73: 197 | Y73: .
G74: obec | J74: 714 | K74: 533 | L74: 561 | M74: 613 | N74: 625 | O74: 583 | P74: 683 | Q74: 677 | R74: 637 | S74: 570 | T74: 539 | U74: 547 | V74: 526 | W74: 518 | X74: 548 | Y74: .
G75: jiný resort | J75: 456 | K75: 427 | L75: 284 | M75: 255 | N75: 155 | O75: 117 | P75: 141 | Q75: 131 | R75: 177 | S75: 173 | T75: 169 | U75: 136 | V75: 139 | W75: 132 | X75: 157 | Y75: .
G76: kraj | J76: 107614 | K76: 108696 | L76: 106908 | M76: 104709 | N76: 101055 | O76: 98434 | P76: 92196 | Q76: 88536 | R76: 86563 | S76: 82453 | T76: 74174 | U76: 69221 | V76: 64422 | W76: 64309 | X76: 63643 | Y76: .
F77: privátní sektor | J77: 14242 | K77: 14832 | L77: 15007 | M77: 14711 | N77: 14667 | O77: 14479 | P77: 14068 | Q77: 11968 | R77: 11469 | S77: 10697 | T77: 8837 | U77: 8095 | V77: 7545 | W77: 7779 | X77: 8198 | Y77: .
F78: církev | J78: 1490 | K78: 1424 | L78: 1506 | M78: 1626 | N78: 1591 | O78: 1554 | P78: 1644 | Q78: 1465 | R78: 1609 | S78: 1447 | T78: 1444 | U78: 1380 | V78: 1470 | W78: 1422 | X78: 1528 | Y78: .
E79: Ostatní formy vzdělávání | J79: 6400 | K79: 6616 | L79: 8011 | M79: 8043 | N79: 7073 | O79: 7645 | P79: 7366 | Q79: 6444 | R79: 6092 | S79: 5467 | T79: 4622 | U79: 4203 | V79: 4082 | W79: 4239 | X79: 3785 | Y79: .
E80: v tom | F80: veřejný | J80: 3610 | K80: 3548 | L80: 4222 | M80: 4594 | N80: 3944 | O80: 4000 | P80: 3809 | Q80: 3795 | R80: 3395 | S80: 3098 | T80: 2541 | U80: 2152 | V80: 1987 | W80: 1953 | X80: 1607 | Y80: .
F81: v tom | G81: MŠMT | J81: 0 | K81: 0 | L81: 0 | M81: 0 | N81: 0 | O81: 0 | P81: 0 | Q81: 0 | R81: 0 | S81: 0 | T81: 0 | U81: 0 | V81: 0 | W81: 0 | X81: 0 | Y81: .
G82: obec | J82: 0 | K82: 0 | L82: 0 | M82: 0 | N82: 0 | O82: 0 | P82: 0 | Q82: 0 | R82: 0 | S82: 0 | T82: 9 | U82: 0 | V82: 0 | W82: 5 | X82: 2 | Y82: .
G83: jiný resort | J83: 177 | K83: 98 | L83: 47 | M83: 90 | N83: 59 | O83: 67 | P83: 1 | Q83: 68 | R83: 121 | S83: 57 | T83: 108 | U83: 135 | V83: 149 | W83: 178 | X83: 184 | Y83: .
G84: kraj | J84: 3433 | K84: 3450 | L84: 4175 | M84: 4504 | N84: 3885 | O84: 3933 | P84: 3808 | Q84: 3727 | R84: 3274 | S84: 3041 | T84: 2424 | U84: 2017 | V84: 1838 | W84: 1770 | X84: 1421 | Y84: .
F85: privátní sektor | J85: 2755 | K85: 3060 | L85: 3775 | M85: 3415 | N85: 3116 | O85: 3621 | P85: 3548 | Q85: 2625 | R85: 2689 | S85: 2331 | T85: 2026 | U85: 1994 | V85: 2010 | W85: 2144 | X85: 2116 | Y85: .
F86: církev | J86: 35 | K86: 8 | L86: 14 | M86: 34 | N86: 13 | O86: 24 | P86: 9 | Q86: 24 | R86: 8 | S86: 38 | T86: 55 | U86: 57 | V86: 85 | W86: 142 | X86: 62 | Y86: .
Y87: Zdroj: databáze MŠMT

Sheet B5.1.6
D4: Tab. B5.1.6: | H4: Střední školy – žáci, nově přijatí a absolventi
B5: 18 | D5: ve školním roce 2008/09 až 2018/19 – podle zřizovatele
D7: Zřizovatel | J7: 2003/04 | K7: 2004/05 | L7: 2005/06 | M7: 2006/07 | N7: 2007/08 | O7: 2008/09 | P7: 2009/10 | Q7: 2010/11 | R7: 2011/12 | S7: 2012/13 | T7: 2013/14 | U7: 2014/15 | V7: 2015/16 | W7: 2016/17 | X7: 2017/18 | Y7: 2018/19
D12: Žáci
E13: Celkem | J13: 576615 | K13: 579505 | L13: 577605 | M13: 576585 | N13: 569267 | O13: 564326 | P13: 556260 | Q13: 532918 | R13: 501220 | S13: 470754 | T13: 448792 | U13: 435542 | V13: 427107 | W13: 424849 | X13: 421535 | Y13: 420814
E14: v tom | F14: všeobecné vzdělávání v oborech gymnázií | J14: 143288 | K14: 143511 | L14: 144605 | M14: 146354 | N14: 146370 | O14: 146021 | P14: 143851 | Q14: 139066 | R14: 134965 | S14: 131013 | T14: 128527 | U14: 127666 | V14: 128045 | W14: 128994 | X14: 129554 | Y14: 130133
F15: odborné vzdělávání bez lyceí | J15: 425330 | K15: 425387 | L15: 418816 | M15: 412729 | N15: 401650 | O15: 394451 | P15: 388129 | Q15: 370740 | R15: 345155 | S15: 321013 | T15: 303474 | U15: 292206 | V15: 284038 | W15: 280862 | X15: 276913 | Y15: 275569
F16: lycea | J16: 7997 | K16: 10607 | L16: 14184 | M16: 17502 | N16: 21247 | O16: 23854 | P16: 24280 | Q16: 23112 | R16: 21100 | S16: 18728 | T16: 16791 | U16: 15670 | V16: 15024 | W16: 14993 | X16: 15068 | Y16: 15112
E17: Veřejný | J17: 492735 | K17: 494362 | L17: 491504 | M17: 488851 | N17: 481687 | O17: 476245 | P17: 468233 | Q17: 451472 | R17: 427513 | S17: 402765 | T17: 383898 | U17: 370935 | V17: 362298 | W17: 358169 | X17: 353759 | Y17: 352861
E18: v tom | F18: všeobecné vzdělávání v oborech gymnázií | J18: 126108 | K18: 126090 | L18: 126464 | M18: 127349 | N18: 127354 | O18: 126927 | P18: 125020 | Q18: 121787 | R18: 118397 | S18: 114930 | T18: 112477 | U18: 111016 | V18: 110821 | W18: 111005 | X18: 110944 | Y18: 110972
F19: odborné vzdělávání bez lyceí | J19: 359516 | K19: 358781 | L19: 352095 | M19: 345361 | N19: 334531 | O19: 326952 | P19: 320404 | Q19: 308004 | R19: 289356 | S19: 270341 | T19: 255817 | U19: 245484 | V19: 237686 | W19: 233448 | X19: 229041 | Y19: 228096
F20: lycea | J20: 7111 | K20: 9491 | L20: 12945 | M20: 16141 | N20: 19802 | O20: 22366 | P20: 22809 | Q20: 21681 | R20: 19760 | S20: 17494 | T20: 15604 | U20: 14435 | V20: 13791 | W20: 13716 | X20: 13774 | Y20: 13793
E21: Privátní sektor | J21: 75162 | K21: 76347 | L21: 77124 | M21: 78581 | N21: 78230 | O21: 78734 | P21: 78730 | Q21: 72229 | R21: 64485 | S21: 58717 | T21: 55456 | U21: 54900 | V21: 54957 | W21: 56664 | X21: 57693 | Y21: 57856
E22: v tom | F22: všeobecné vzdělávání v oborech gymnázií | J22: 10840 | K22: 10983 | L22: 11534 | M22: 12230 | N22: 12048 | O22: 12135 | P22: 11914 | Q22: 10529 | R22: 9818 | S22: 9429 | T22: 9247 | U22: 9659 | V22: 10158 | W22: 10856 | X22: 11439 | Y22: 12005
F23: odborné vzdělávání bez lyceí | J23: 63530 | K23: 64386 | L23: 64497 | M23: 65151 | N23: 64925 | O23: 65333 | P23: 65574 | Q23: 60523 | R23: 53602 | S23: 48334 | T23: 45314 | U23: 44334 | V23: 43937 | W23: 44920 | X23: 45373 | Y23: 44933
F24: lycea | J24: 792 | K24: 978 | L24: 1093 | M24: 1200 | N24: 1257 | O24: 1266 | P24: 1242 | Q24: 1177 | R24: 1065 | S24: 954 | T24: 895 | U24: 907 | V24: 862 | W24: 888 | X24: 881 | Y24: 918
E25: Církev | J25: 8718 | K25: 8796 | L25: 8977 | M25: 9153 | N25: 9350 | O25: 9347 | P25: 9297 | Q25: 9217 | R25: 9222 | S25: 9272 | T25: 9438 | U25: 9707 | V25: 9852 | W25: 10016 | X25: 10083 | Y25: 10097
E26: v tom | F26: všeobecné vzdělávání v oborech gymnázií | J26: 6340 | K26: 6438 | L26: 6607 | M26: 6775 | N26: 6968 | O26: 6959 | P26: 6917 | Q26: 6750 | R26: 6750 | S26: 6654 | T26: 6803 | U26: 6991 | V26: 7066 | W26: 7133 | X26: 7171 | Y26: 7156
F27: odborné vzdělávání bez lyceí | J27: 2284 | K27: 2220 | L27: 2224 | M27: 2217 | N27: 2194 | O27: 2166 | P27: 2151 | Q27: 2213 | R27: 2197 | S27: 2338 | T27: 2343 | U27: 2388 | V27: 2415 | W27: 2494 | X27: 2499 | Y27: 2540
F28: lycea | J28: 94 | K28: 138 | L28: 146 | M28: 161 | N28: 188 | O28: 222 | P28: 229 | Q28: 254 | R28: 275 | S28: 280 | T28: 292 | U28: 328 | V28: 371 | W28: 389 | X28: 413 | Y28: 401
D29: Nově přijatí
E30: Celkem | J30: 168873 | K30: 167054 | L30: 162804 | M30: 166019 | N30: 160978 | O30: 158824 | P30: 153897 | Q30: 138874 | R30: 128453 | S30: 121583 | T30: 120053 | U30: 117725 | V30: 116077 | W30: 115617 | X30: 114041 | Y30: 113513
E31: v tom | F31: všeobecné vzdělávání v oborech gymnázií | J31: 26546 | K31: 26777 | L31: 27538 | M31: 27718 | N31: 26738 | O31: 26544 | P31: 25256 | Q31: 23677 | R31: 23169 | S31: 22940 | T31: 23250 | U31: 23019 | V31: 23586 | W31: 23812 | X31: 23683 | Y31: 23641
F32: odborné vzdělávání bez lyceí | J32: 139168 | K32: 136457 | L32: 129952 | M32: 132232 | N32: 127638 | O32: 125753 | P32: 122758 | Q32: 110115 | R32: 100820 | S32: 94645 | T32: 92994 | U32: 90910 | V32: 88635 | W32: 87897 | X32: 86529 | Y32: 85977
F33: lycea | J33: 3159 | K33: 3820 | L33: 5314 | M33: 6069 | N33: 6602 | O33: 6527 | P33: 5883 | Q33: 5082 | R33: 4464 | S33: 3998 | T33: 3809 | U33: 3796 | V33: 3856 | W33: 3908 | X33: 3829 | Y33: 3895
E34: Veřejný | J34: 143064 | K34: 141913 | L34: 138287 | M34: 139122 | N34: 135314 | O34: 133526 | P34: 129490 | Q34: 118346 | R34: 110363 | S34: 104006 | T34: 102342 | U34: 99293 | V34: 97936 | W34: 96823 | X34: 95379 | Y34: 94997
E35: v tom | F35: všeobecné vzdělávání v oborech gymnázií | J35: 23463 | K35: 23505 | L35: 23923 | M35: 23849 | N35: 23382 | O35: 23153 | P35: 22179 | Q35: 21072 | R35: 20480 | S35: 20142 | T35: 20232 | U35: 19948 | V35: 20439 | W35: 20587 | X35: 20333 | Y35: 20279
F36: odborné vzdělávání bez lyceí | J36: 116748 | K36: 114972 | L36: 109399 | M36: 109570 | N36: 105784 | O36: 104243 | P36: 101761 | Q36: 92493 | R36: 85746 | S36: 80159 | T36: 78600 | U36: 75855 | V36: 73970 | W36: 72662 | X36: 71538 | Y36: 71171
F37: lycea | J37: 2853 | K37: 3436 | L37: 4965 | M37: 5703 | N37: 6148 | O37: 6130 | P37: 5550 | Q37: 4781 | R37: 4137 | S37: 3705 | T37: 3510 | U37: 3490 | V37: 3527 | W37: 3574 | X37: 3508 | Y37: 3547
E38: Privátní sektor | J38: 24015 | K38: 23245 | L38: 22669 | M38: 24936 | N38: 23809 | O38: 23398 | P38: 22629 | Q38: 18645 | R38: 16212 | S38: 15536 | T38: 15702 | U38: 16270 | V38: 16081 | W38: 16690 | X38: 16609 | Y38: 16441
E39: v tom | F39: všeobecné vzdělávání v oborech gymnázií | J39: 1995 | K39: 2133 | L39: 2421 | M39: 2628 | N39: 2202 | O39: 2199 | P39: 1986 | Q39: 1497 | R39: 1541 | S39: 1617 | T39: 1803 | U39: 1820 | V39: 1967 | W39: 2043 | X39: 2189 | Y39: 2223
F40: odborné vzdělávání bez lyceí | J40: 21745 | K40: 20778 | L40: 19942 | M40: 21990 | N40: 21209 | O40: 20873 | P40: 20371 | Q40: 16920 | R40: 14412 | S40: 13705 | T40: 13676 | U40: 14241 | V40: 13897 | W40: 14412 | X40: 14211 | Y40: 13976
F41: lycea | J41: 275 | K41: 334 | L41: 306 | M41: 318 | N41: 398 | O41: 326 | P41: 272 | Q41: 228 | R41: 259 | S41: 214 | T41: 223 | U41: 209 | V41: 217 | W41: 235 | X41: 209 | Y41: 242
E42: Církev | J42: 1794 | K42: 1896 | L42: 1848 | M42: 1961 | N42: 1855 | O42: 1900 | P42: 1778 | Q42: 1883 | R42: 1878 | S42: 2041 | T42: 2009 | U42: 2162 | V42: 2060 | W42: 2104 | X42: 2053 | Y42: 2075
E43: v tom | F43: všeobecné vzdělávání v oborech gymnázií | J43: 1088 | K43: 1139 | L43: 1194 | M43: 1241 | N43: 1154 | O43: 1192 | P43: 1091 | Q43: 1108 | R43: 1148 | S43: 1181 | T43: 1215 | U43: 1251 | V43: 1180 | W43: 1182 | X43: 1161 | Y43: 1139
F44: odborné vzdělávání bez lyceí | J44: 675 | K44: 707 | L44: 611 | M44: 672 | N44: 645 | O44: 637 | P44: 626 | Q44: 702 | R44: 662 | S44: 781 | T44: 718 | U44: 814 | V44: 768 | W44: 823 | X44: 780 | Y44: 830
F45: lycea | J45: 31 | K45: 50 | L45: 43 | M45: 48 | N45: 56 | O45: 71 | P45: 61 | Q45: 73 | R45: 68 | S45: 79 | T45: 76 | U45: 97 | V45: 112 | W45: 99 | X45: 112 | Y45: 106
D46: Absolventi
E47: Celkem | J47: 131303 | K47: 132886 | L47: 132644 | M47: 130282 | N47: 125493 | O47: 123151 | P47: 116446 | Q47: 109514 | R47: 106816 | S47: 101055 | T47: 90076 | U47: 83822 | V47: 78385 | W47: 78602 | X47: 78056 | Y47: .
E48: v tom | F48: všeobecné vzdělávání v oborech gymnázií | J48: 24815 | K48: 25449 | L48: 24160 | M48: 24351 | N48: 24445 | O48: 24701 | P48: 24381 | Q48: 24010 | R48: 23964 | S48: 22776 | T48: 21244 | U48: 20591 | V48: 20279 | W48: 20466 | X48: 20347 | Y48: .
F49: odborné vzdělávání bez lyceí | J49: 105502 | K49: 105793 | L49: 106387 | M49: 102913 | N49: 97550 | O49: 93754 | P49: 86906 | Q49: 79865 | R49: 77306 | S49: 73180 | T49: 64578 | U49: 59425 | V49: 54772 | W49: 54921 | X49: 54486 | Y49: .
F50: lycea | J50: 986 | K50: 1644 | L50: 2097 | M50: 3018 | N50: 3498 | O50: 4696 | P50: 5159 | Q50: 5639 | R50: 5546 | S50: 5099 | T50: 4254 | U50: 3806 | V50: 3334 | W50: 3215 | X50: 3223 | Y50: .
E51: Veřejný | J51: 112781 | K51: 113562 | L51: 112342 | M51: 110496 | N51: 106106 | O51: 103473 | P51: 97177 | Q51: 93432 | R51: 91041 | S51: 86542 | T51: 77714 | U51: 72296 | V51: 67275 | W51: 67115 | X51: 66152 | Y51: .
E52: v tom | F52: všeobecné vzdělávání v oborech gymnázií | J52: 22116 | K52: 22576 | L52: 21378 | M52: 21605 | N52: 21359 | O52: 21738 | P52: 21147 | Q52: 21258 | R52: 21064 | S52: 20214 | T52: 19104 | U52: 18425 | V52: 18224 | W52: 18226 | X52: 17986 | Y52: .
F53: odborné vzdělávání bez lyceí | J53: 89808 | K53: 89571 | L53: 89142 | M53: 86221 | N53: 81611 | O53: 77314 | P53: 71182 | Q53: 66899 | R53: 64762 | S53: 61504 | T53: 54587 | U53: 50324 | V53: 45952 | W53: 45908 | X53: 45191 | Y53: .
F54: lycea | J54: 857 | K54: 1415 | L54: 1822 | M54: 2670 | N54: 3136 | O54: 4421 | P54: 4848 | Q54: 5275 | R54: 5215 | S54: 4824 | T54: 4023 | U54: 3547 | V54: 3099 | W54: 2981 | X54: 2975 | Y54: .
E55: Privátní sektor | J55: 16997 | K55: 17892 | L55: 18782 | M55: 18126 | N55: 17783 | O55: 18100 | P55: 17616 | Q55: 14593 | R55: 14158 | S55: 13028 | T55: 10863 | U55: 10089 | V55: 9555 | W55: 9923 | X55: 10314 | Y55: .
E56: v tom | F56: všeobecné vzdělávání v oborech gymnázií | J56: 1804 | K56: 1935 | L56: 1783 | M56: 1750 | N56: 2035 | O56: 1920 | P56: 2095 | Q56: 1747 | R56: 1793 | S56: 1595 | T56: 1182 | U56: 1200 | V56: 1066 | W56: 1245 | X56: 1337 | Y56: .
F57: odborné vzdělávání bez lyceí | J57: 15064 | K57: 15758 | L57: 16754 | M57: 16054 | N57: 15431 | O57: 15949 | P57: 15254 | Q57: 12525 | R57: 12101 | S57: 11214 | T57: 9511 | U57: 8687 | V57: 8325 | W57: 8514 | X57: 8809 | Y57: .
F58: lycea | J58: 129 | K58: 199 | L58: 245 | M58: 322 | N58: 317 | O58: 231 | P58: 267 | Q58: 321 | R58: 264 | S58: 219 | T58: 170 | U58: 202 | V58: 164 | W58: 164 | X58: 168 | Y58: .
E59: Církev | J59: 1525 | K59: 1432 | L59: 1520 | M59: 1660 | N59: 1604 | O59: 1578 | P59: 1653 | Q59: 1489 | R59: 1617 | S59: 1485 | T59: 1499 | U59: 1437 | V59: 1555 | W59: 1564 | X59: 1590 | Y59: .
E60: v tom | F60: všeobecné vzdělávání v oborech gymnázií | J60: 895 | K60: 938 | L60: 999 | M60: 996 | N60: 1051 | O60: 1043 | P60: 1139 | Q60: 1005 | R60: 1107 | S60: 967 | T60: 958 | U60: 966 | V60: 989 | W60: 995 | X60: 1024 | Y60: .
F61: odborné vzdělávání bez lyceí | J61: 630 | K61: 464 | L61: 491 | M61: 638 | N61: 508 | O61: 491 | P61: 470 | Q61: 441 | R61: 443 | S61: 462 | T61: 480 | U61: 414 | V61: 495 | W61: 499 | X61: 486 | Y61: .
F62: lycea | J62: 0 | K62: 30 | L62: 30 | M62: 26 | N62: 45 | O62: 44 | P62: 44 | Q62: 43 | R62: 67 | S62: 56 | T62: 61 | U62: 57 | V62: 71 | W62: 70 | X62: 80 | Y62: .
Y63: Zdroj: databáze MŠMT

Sheet B5.1.7
D4: Tab. B5.1.7: | H4: Střední školy – žáci, nově přijatí a absolventi
B5: 18 | D5: ve školním roce 2008/09 až 2018/19 – podle zřizovatele a druhu vzdělávání
D7: Zřizovatel Druh vzdělávání | J7: 2003/04 | K7: 2004/05 | L7: 2005/06 | M7: 2006/07 | N7: 2007/08 | O7: 2008/09 | P7: 2009/10 | Q7: 2010/11 | R7: 2011/12 | S7: 2012/13 | T7: 2013/14 | U7: 2014/15 | V7: 2015/16 | W7: 2016/17 | X7: 2017/18 | Y7: 2018/19
D12: Žáci
E13: Celkem | J13: 576615 | K13: 579505 | L13: 577605 | M13: 576585 | N13: 569267 | O13: 564326 | P13: 556260 | Q13: 532918 | R13: 501220 | S13: 470754 | T13: 448792 | U13: 435542 | V13: 427107 | W13: 424849 | X13: 421535 | Y13: 420814
E14: v tom | F14: střední vzdělávání | J14: 2829 | K14: 2648 | L14: 2381 | M14: 1988 | N14: 1749 | O14: 1795 | P14: 1917 | Q14: 2107 | R14: 2053 | S14: 1965 | T14: 1965 | U14: 2040 | V14: 2201 | W14: 2404 | X14: 2612 | Y14: 2723
F15: střední vzdělávání s výučním listem1) | J15: 147891 | K15: 142697 | L15: 136603 | M15: 130847 | N15: 123550 | O15: 116401 | P15: 113609 | Q15: 108529 | R15: 103685 | S15: 100558 | T15: 97491 | U15: 94759 | V15: 91841 | W15: 89467 | X15: 87437 | Y15: 86590
F16: střední vzdělávání s maturitní zkouškou1) | J16: 382274 | K16: 389077 | L16: 393366 | M16: 400510 | N16: 400475 | O16: 401071 | P16: 396214 | Q16: 379075 | R16: 359000 | S16: 338065 | T16: 322853 | U16: 315985 | V16: 312628 | W16: 314000 | X16: 315000 | Y16: 316698
F17: nástavbové studium | J17: 43621 | K17: 45083 | L17: 45255 | M17: 43240 | N17: 43493 | O17: 45059 | P17: 44520 | Q17: 43207 | R17: 36482 | S17: 30166 | T17: 26483 | U17: 22758 | V17: 20437 | W17: 18978 | X17: 16486 | Y17: 14803
E18: Veřejný | J18: 492735 | K18: 494362 | L18: 491504 | M18: 488851 | N18: 481687 | O18: 476245 | P18: 468233 | Q18: 451472 | R18: 427513 | S18: 402765 | T18: 383898 | U18: 370935 | V18: 362298 | W18: 358169 | X18: 353759 | Y18: 352861
E19: v tom | F19: střední vzdělávání | J19: 2404 | K19: 2201 | L19: 2080 | M19: 1763 | N19: 1517 | O19: 1561 | P19: 1629 | Q19: 1786 | R19: 1709 | S19: 1626 | T19: 1578 | U19: 1619 | V19: 1714 | W19: 1749 | X19: 1811 | Y19: 1885
F20: střední vzdělávání s výučním listem | J20: 133201 | K20: 128900 | L20: 123449 | M20: 118018 | N20: 111428 | O20: 104919 | P20: 101652 | Q20: 97306 | R20: 93144 | S20: 89932 | T20: 87079 | U20: 84733 | V20: 82060 | W20: 79428 | X20: 77215 | Y20: 76775
F21: střední vzdělávání s maturitní zkouškou | J21: 328135 | K21: 333211 | L21: 335864 | M21: 340016 | N21: 339660 | O21: 339619 | P21: 334855 | Q21: 322135 | R21: 306297 | S21: 288889 | T21: 275271 | U21: 267265 | V21: 263139 | W21: 262696 | X21: 262467 | Y21: 263230
F22: nástavbové studium | J22: 28995 | K22: 30050 | L22: 30111 | M22: 29054 | N22: 29082 | O22: 30146 | P22: 30097 | Q22: 30245 | R22: 26363 | S22: 22318 | T22: 19970 | U22: 17318 | V22: 15385 | W22: 14296 | X22: 12266 | Y22: 10971
E23: Privátní sektor | J23: 75162 | K23: 76347 | L23: 77124 | M23: 78581 | N23: 78230 | O23: 78734 | P23: 78730 | Q23: 72229 | R23: 64485 | S23: 58717 | T23: 55456 | U23: 54900 | V23: 54957 | W23: 56664 | X23: 57693 | Y23: 57856
E24: v tom | F24: střední vzdělávání | J24: 204 | K24: 225 | L24: 173 | M24: 115 | N24: 116 | O24: 121 | P24: 148 | Q24: 160 | R24: 182 | S24: 157 | T24: 178 | U24: 199 | V24: 256 | W24: 396 | X24: 544 | Y24: 618
F25: střední vzdělávání s výučním listem | J25: 14481 | K25: 13611 | L25: 12873 | M25: 12501 | N25: 11809 | O25: 11181 | P25: 11645 | Q25: 10903 | R25: 10217 | S25: 10287 | T25: 10083 | U25: 9696 | V25: 9475 | W25: 9725 | X25: 9917 | Y25: 9489
F26: střední vzdělávání s maturitní zkouškou | J26: 45887 | K26: 47508 | L26: 48965 | M26: 51809 | N26: 51926 | O26: 52549 | P26: 52544 | Q26: 48234 | R26: 44020 | S26: 40490 | T26: 38740 | U26: 39628 | V26: 40261 | W26: 41945 | X26: 43086 | Y26: 43997
F27: nástavbové studium | J27: 14590 | K27: 15003 | L27: 15113 | M27: 14156 | N27: 14379 | O27: 14883 | P27: 14393 | Q27: 12932 | R27: 10066 | S27: 7783 | T27: 6455 | U27: 5377 | V27: 4965 | W27: 4598 | X27: 4146 | Y27: 3752
E28: Církev | J28: 8718 | K28: 8796 | L28: 8977 | M28: 9153 | N28: 9350 | O28: 9347 | P28: 9297 | Q28: 9217 | R28: 9222 | S28: 9272 | T28: 9438 | U28: 9707 | V28: 9852 | W28: 10016 | X28: 10083 | Y28: 10097
E29: v tom | F29: střední vzdělávání | J29: 221 | K29: 222 | L29: 128 | M29: 110 | N29: 116 | O29: 113 | P29: 140 | Q29: 161 | R29: 162 | S29: 182 | T29: 209 | U29: 222 | V29: 231 | W29: 259 | X29: 257 | Y29: 220
F30: střední vzdělávání s výučním listem | J30: 209 | K30: 186 | L30: 281 | M30: 328 | N30: 313 | O30: 301 | P30: 312 | Q30: 320 | R30: 324 | S30: 339 | T30: 329 | U30: 330 | V30: 306 | W30: 314 | X30: 305 | Y30: 326
F31: střední vzdělávání s maturitní zkouškou | J31: 8252 | K31: 8358 | L31: 8537 | M31: 8685 | N31: 8889 | O31: 8903 | P31: 8815 | Q31: 8706 | R31: 8683 | S31: 8686 | T31: 8842 | U31: 9092 | V31: 9228 | W31: 9359 | X31: 9447 | Y31: 9471
F32: nástavbové studium | J32: 36 | K32: 30 | L32: 31 | M32: 30 | N32: 32 | O32: 30 | P32: 30 | Q32: 30 | R32: 53 | S32: 65 | T32: 58 | U32: 63 | V32: 87 | W32: 84 | X32: 74 | Y32: 80
D33: Nově přijatí
E34: Celkem | J34: 168873 | K34: 167054 | L34: 162804 | M34: 166019 | N34: 160978 | O34: 158824 | P34: 153897 | Q34: 138874 | R34: 128453 | S34: 121583 | T34: 120053 | U34: 117725 | V34: 116077 | W34: 115617 | X34: 114041 | Y34: 113513
E35: v tom | F35: střední vzdělávání | J35: 1571 | K35: 1451 | L35: 1290 | M35: 982 | N35: 911 | O35: 949 | P35: 1010 | Q35: 1097 | R35: 1027 | S35: 987 | T35: 993 | U35: 842 | V35: 943 | W35: 1098 | X35: 1098 | Y35: 1010
F36: střední vzdělávání s výučním listem1) | J36: 51866 | K36: 49808 | L36: 47068 | M36: 46003 | N36: 42619 | O36: 40429 | P36: 40429 | Q36: 35985 | R36: 34926 | S36: 34441 | T36: 33129 | U36: 33029 | V36: 32010 | W36: 31112 | X36: 31376 | Y36: 31524
F37: střední vzdělávání s maturitní zkouškou1) | J37: 92291 | K37: 93006 | L37: 92800 | M37: 98079 | N37: 95037 | O37: 94717 | P37: 90458 | Q37: 80672 | R37: 75812 | S37: 72216 | T37: 72888 | U37: 72692 | V37: 72927 | W37: 73545 | X37: 73507 | Y37: 73684
F38: nástavbové studium | J38: 23145 | K38: 22789 | L38: 21646 | M38: 20955 | N38: 22411 | O38: 22729 | P38: 22000 | Q38: 21120 | R38: 16688 | S38: 13939 | T38: 13043 | U38: 11162 | V38: 10197 | W38: 9862 | X38: 8060 | Y38: 7295
E39: Veřejný | J39: 143064 | K39: 141913 | L39: 138287 | M39: 139122 | N39: 135314 | O39: 133526 | P39: 129490 | Q39: 118346 | R39: 110363 | S39: 104006 | T39: 102342 | U39: 99293 | V39: 97936 | W39: 96823 | X39: 95379 | Y39: 94997
E40: v tom | F40: střední vzdělávání | J40: 1349 | K40: 1204 | L40: 1135 | M40: 848 | N40: 821 | O40: 798 | P40: 862 | Q40: 922 | R40: 842 | S40: 828 | T40: 790 | U40: 648 | V40: 744 | W40: 734 | X40: 730 | Y40: 741
F41: střední vzdělávání s výučním listem | J41: 46859 | K41: 45249 | L41: 42737 | M41: 41380 | N41: 38488 | O41: 36507 | P41: 36212 | Q41: 32502 | R41: 31481 | S41: 30670 | T41: 29684 | U41: 29444 | V41: 28483 | W41: 27490 | X41: 27599 | Y41: 27882
F42: střední vzdělávání s maturitní zkouškou | J42: 79078 | K42: 79372 | L42: 79146 | M42: 82273 | N42: 80410 | O42: 80216 | P42: 76659 | Q42: 69200 | R42: 65058 | S42: 61684 | T42: 61603 | U42: 60480 | V42: 60847 | W42: 61002 | X42: 60956 | Y42: 60870
F43: nástavbové studium | J43: 15778 | K43: 16088 | L43: 15269 | M43: 14621 | N43: 15595 | O43: 16005 | P43: 15757 | Q43: 15722 | R43: 12982 | S43: 10824 | T43: 10265 | U43: 8721 | V43: 7862 | W43: 7597 | X43: 6094 | Y43: 5504
E44: Privátní sektor | J44: 24015 | K44: 23245 | L44: 22669 | M44: 24936 | N44: 23809 | O44: 23398 | P44: 22629 | Q44: 18645 | R44: 16212 | S44: 15536 | T44: 15702 | U44: 16270 | V44: 16081 | W44: 16690 | X44: 16609 | Y44: 16441
E45: v tom | F45: střední vzdělávání | J45: 103 | K45: 127 | L45: 99 | M45: 73 | N45: 37 | O45: 84 | P45: 80 | Q45: 75 | R45: 96 | S45: 64 | T45: 91 | U45: 85 | V45: 109 | W45: 236 | X45: 273 | Y45: 185
F46: střední vzdělávání s výučním listem | J46: 4944 | K46: 4498 | L46: 4219 | M46: 4505 | N46: 4020 | O46: 3809 | P46: 4103 | Q46: 3368 | R46: 3337 | S46: 3644 | T46: 3335 | U46: 3476 | V46: 3427 | W46: 3507 | X46: 3683 | Y46: 3522
F47: střední vzdělávání s maturitní zkouškou | J47: 11616 | K47: 11936 | L47: 11988 | M47: 14040 | N47: 12953 | O47: 12797 | P47: 12219 | Q47: 9817 | R47: 9114 | S47: 8751 | T47: 9523 | U47: 10311 | V47: 10263 | W47: 10731 | X47: 10727 | Y47: 10997
F48: nástavbové studium | J48: 7352 | K48: 6684 | L48: 6363 | M48: 6318 | N48: 6799 | O48: 6708 | P48: 6227 | Q48: 5385 | R48: 3665 | S48: 3077 | T48: 2753 | U48: 2398 | V48: 2282 | W48: 2216 | X48: 1926 | Y48: 1737
E49: Církev | J49: 1794 | K49: 1896 | L49: 1848 | M49: 1961 | N49: 1855 | O49: 1900 | P49: 1778 | Q49: 1883 | R49: 1878 | S49: 2041 | T49: 2009 | U49: 2162 | V49: 2060 | W49: 2104 | X49: 2053 | Y49: 2075
E50: v tom | F50: střední vzdělávání | J50: 119 | K50: 120 | L50: 56 | M50: 61 | N50: 53 | O50: 67 | P50: 68 | Q50: 100 | R50: 89 | S50: 95 | T50: 112 | U50: 109 | V50: 90 | W50: 128 | X50: 95 | Y50: 84
F51: střední vzdělávání s výučním listem | J51: 63 | K51: 61 | L51: 112 | M51: 118 | N51: 111 | O51: 113 | P51: 114 | Q51: 115 | R51: 108 | S51: 127 | T51: 110 | U51: 109 | V51: 100 | W51: 115 | X51: 94 | Y51: 120
F52: střední vzdělávání s maturitní zkouškou | J52: 1597 | K52: 1698 | L52: 1666 | M52: 1766 | N52: 1674 | O52: 1704 | P52: 1580 | Q52: 1655 | R52: 1640 | S52: 1781 | T52: 1762 | U52: 1901 | V52: 1817 | W52: 1812 | X52: 1824 | Y52: 1817
F53: nástavbové studium | J53: 15 | K53: 17 | L53: 14 | M53: 16 | N53: 17 | O53: 16 | P53: 16 | Q53: 13 | R53: 41 | S53: 38 | T53: 25 | U53: 43 | V53: 53 | W53: 49 | X53: 40 | Y53: 54
D54: Absolventi
E55: Celkem | J55: 131303 | K55: 132886 | L55: 132644 | M55: 130282 | N55: 125493 | O55: 123151 | P55: 116446 | Q55: 109514 | R55: 106816 | S55: 101055 | T55: 90076 | U55: 83822 | V55: 78385 | W55: 78602 | X55: 78056 | Y55: .
E56: v tom | F56: střední vzdělávání | J56: 823 | K56: 861 | L56: 741 | M56: 676 | N56: 616 | O56: 540 | P56: 498 | Q56: 576 | R56: 650 | S56: 578 | T56: 585 | U56: 583 | V56: 645 | W56: 614 | X56: 618 | Y56: .
F57: střední vzdělávání s výučním listem1) | J57: 42965 | K57: 41259 | L57: 39003 | M57: 36295 | N57: 34003 | O57: 31552 | P57: 27881 | Q57: 28493 | R57: 27985 | S57: 25433 | T57: 24689 | U57: 23642 | V57: 22095 | W57: 22244 | X57: 21917 | Y57: .
F58: střední vzdělávání s maturitní zkouškou1) | J58: 74605 | K58: 77136 | L58: 78718 | M58: 79280 | N58: 78531 | O58: 78320 | P58: 76257 | Q58: 71472 | R58: 70442 | S58: 68381 | T58: 59740 | U58: 56059 | V58: 52706 | W58: 53020 | X58: 52998 | Y58: .
F59: nástavbové studium | J59: 12910 | K59: 13630 | L59: 14182 | M59: 14031 | N59: 12343 | O59: 12739 | P59: 11810 | Q59: 8973 | R59: 7739 | S59: 6663 | T59: 5062 | U59: 3538 | V59: 2939 | W59: 2724 | X59: 2523 | Y59: .
E60: Veřejný | J60: 112781 | K60: 113562 | L60: 112342 | M60: 110496 | N60: 106106 | O60: 103473 | P60: 97177 | Q60: 93432 | R60: 91041 | S60: 86542 | T60: 77714 | U60: 72296 | V60: 67275 | W60: 67115 | X60: 66152 | Y60: .
E61: v tom | F61: střední vzdělávání | J61: 698 | K61: 752 | L61: 656 | M61: 609 | N61: 510 | O61: 479 | P61: 426 | Q61: 508 | R61: 527 | S61: 471 | T61: 473 | U61: 477 | V61: 508 | W61: 483 | X61: 472 | Y61: .
F62: střední vzdělávání s výučním listem | J62: 38586 | K62: 37106 | L62: 34998 | M62: 32702 | N62: 30499 | O62: 28024 | P62: 24824 | Q62: 25371 | R62: 25011 | S62: 22692 | T62: 22003 | U62: 20935 | V62: 19606 | W62: 19589 | X62: 19227 | Y62: .
F63: střední vzdělávání s maturitní zkouškou | J63: 64565 | K63: 66579 | L63: 67425 | M63: 67795 | N63: 66751 | O63: 66558 | P63: 64180 | Q63: 61347 | R63: 60332 | S63: 58617 | T63: 51622 | U63: 48251 | V63: 45045 | W63: 45050 | X63: 44622 | Y63: .
F64: nástavbové studium | J64: 8932 | K64: 9125 | L64: 9263 | M64: 9390 | N64: 8346 | O64: 8412 | P64: 7747 | Q64: 6206 | R64: 5171 | S64: 4762 | T64: 3616 | U64: 2633 | V64: 2116 | W64: 1993 | X64: 1831 | Y64: .
E65: Privátní sektor | J65: 16997 | K65: 17892 | L65: 18782 | M65: 18126 | N65: 17783 | O65: 18100 | P65: 17616 | Q65: 14593 | R65: 14158 | S65: 13028 | T65: 10863 | U65: 10089 | V65: 9555 | W65: 9923 | X65: 10314 | Y65: .
E66: v tom | F66: střední vzdělávání | J66: 51 | K66: 65 | L66: 42 | M66: 36 | N66: 65 | O66: 34 | P66: 38 | Q66: 46 | R66: 78 | S66: 54 | T66: 57 | U66: 65 | V66: 75 | W66: 72 | X66: 67 | Y66: .
F67: střední vzdělávání s výučním listem | J67: 4303 | K67: 4072 | L67: 3948 | M67: 3500 | N67: 3412 | O67: 3443 | P67: 2979 | Q67: 3040 | R67: 2885 | S67: 2641 | T67: 2601 | U67: 2604 | V67: 2389 | W67: 2571 | X67: 2605 | Y67: .
F68: střední vzdělávání s maturitní zkouškou | J68: 8685 | K68: 9262 | L68: 9890 | M68: 9963 | N68: 10324 | O68: 10310 | P68: 10549 | Q68: 8755 | R68: 8637 | S68: 8451 | T68: 6781 | U68: 6528 | V68: 6290 | W68: 6564 | X68: 6969 | Y68: .
F69: nástavbové studium | J69: 3958 | K69: 4493 | L69: 4902 | M69: 4627 | N69: 3982 | O69: 4313 | P69: 4050 | Q69: 2752 | R69: 2558 | S69: 1882 | T69: 1424 | U69: 892 | V69: 801 | W69: 716 | X69: 673 | Y69: .
E70: Církev | J70: 1525 | K70: 1432 | L70: 1520 | M70: 1660 | N70: 1604 | O70: 1578 | P70: 1653 | Q70: 1489 | R70: 1617 | S70: 1485 | T70: 1499 | U70: 1437 | V70: 1555 | W70: 1564 | X70: 1590 | Y70: .
E71: v tom | F71: střední vzdělávání | J71: 74 | K71: 44 | L71: 43 | M71: 31 | N71: 41 | O71: 27 | P71: 34 | Q71: 22 | R71: 45 | S71: 53 | T71: 55 | U71: 41 | V71: 62 | W71: 59 | X71: 79 | Y71: .
F72: střední vzdělávání s výučním listem | J72: 76 | K72: 81 | L72: 57 | M72: 93 | N72: 92 | O72: 85 | P72: 78 | Q72: 82 | R72: 89 | S72: 100 | T72: 85 | U72: 103 | V72: 100 | W72: 84 | X72: 85 | Y72: .
F73: střední vzdělávání s maturitní zkouškou | J73: 1355 | K73: 1295 | L73: 1403 | M73: 1522 | N73: 1456 | O73: 1452 | P73: 1528 | Q73: 1370 | R73: 1473 | S73: 1313 | T73: 1337 | U73: 1280 | V73: 1371 | W73: 1406 | X73: 1407 | Y73: .
F74: nástavbové studium | J74: 20 | K74: 12 | L74: 17 | M74: 14 | N74: 15 | O74: 14 | P74: 13 | Q74: 15 | R74: 10 | S74: 19 | T74: 22 | U74: 13 | V74: 22 | W74: 15 | X74: 19 | Y74: .
D75: Komentáře: | Y75: Zdroj: databáze MŠMT
D76: 1) | E76: Údaje za střední vzdělávání s výučním listem a za střední vzdělávání s maturitní zkouškou jsou včetně zkráceného studia, komentář platí pro všechny zřizovatele.

Sheet B5.1.8
D4: Tab. B5.1.8: | H4: Střední školy – dívky, nově přijaté a absolventky
B5: 18 | D5: ve školním roce 2008/09 až 2018/19 – podle zřizovatele a druhu vzdělávání
D7: Zřizovatel Druh vzdělávání | J7: 2003/04 | K7: 2004/05 | L7: 2005/06 | M7: 2006/07 | N7: 2007/08 | O7: 2008/09 | P7: 2009/10 | Q7: 2010/11 | R7: 2011/12 | S7: 2012/13 | T7: 2013/14 | U7: 2014/15 | V7: 2015/16 | W7: 2016/17 | X7: 2017/18 | Y7: 2018/19
D12: Dívky
E13: Celkem | J13: 284453 | K13: 287383 | L13: 287263 | M13: 287185 | N13: 283399 | O13: 281527 | P13: 275829 | Q13: 262889 | R13: 247402 | S13: 232209 | T13: 220830 | U13: 214988 | V13: 210875 | W13: 209632 | X13: 208057 | Y13: 208308
E14: v tom | F14: střední vzdělávání | J14: 1516 | K14: 1391 | L14: 1127 | M14: 1062 | N14: 928 | O14: 906 | P14: 974 | Q14: 1039 | R14: 1008 | S14: 938 | T14: 938 | U14: 929 | V14: 994 | W14: 1117 | X14: 1237 | Y14: 1280
F15: střední vzdělávání s výučním listem1) | J15: 51618 | K15: 49963 | L15: 48148 | M15: 46472 | N15: 43189 | O15: 40248 | P15: 38324 | Q15: 36139 | R15: 34492 | S15: 33579 | T15: 32847 | U15: 32481 | V15: 31799 | W15: 30794 | X15: 29856 | Y15: 29599
F16: střední vzdělávání s maturitní zkouškou1) | J16: 214228 | K16: 217398 | L16: 218828 | M16: 221107 | N16: 220123 | O16: 219892 | P16: 216187 | Q16: 206166 | R16: 195285 | S16: 183694 | T16: 175073 | U16: 171278 | V16: 169040 | W16: 169485 | X16: 169664 | Y16: 170700
F17: nástavbové studium | J17: 17091 | K17: 18631 | L17: 19160 | M17: 18544 | N17: 19159 | O17: 20481 | P17: 20344 | Q17: 19545 | R17: 16617 | S17: 13998 | T17: 11972 | U17: 10300 | V17: 9042 | W17: 8236 | X17: 7300 | Y17: 6729
E18: Veřejný | J18: 238377 | K18: 239929 | L18: 238919 | M18: 237776 | N18: 233989 | O18: 231807 | P18: 227333 | Q18: 218638 | R18: 207595 | S18: 195582 | T18: 185829 | U18: 179381 | V18: 175035 | W18: 172748 | X18: 170424 | Y18: 170203
E19: v tom | F19: střední vzdělávání | J19: 1192 | K19: 1057 | L19: 939 | M19: 921 | N19: 767 | O19: 749 | P19: 777 | Q19: 825 | R19: 781 | S19: 709 | T19: 679 | U19: 674 | V19: 707 | W19: 746 | X19: 811 | Y19: 826
F20: střední vzdělávání s výučním listem | J20: 45486 | K20: 44212 | L20: 42431 | M20: 40731 | N20: 37692 | O20: 35000 | P20: 33147 | Q20: 31333 | R20: 29945 | S20: 29186 | T20: 28488 | U20: 28120 | V20: 27538 | W20: 26463 | X20: 25513 | Y20: 25338
F21: střední vzdělávání s maturitní zkouškou | J21: 181231 | K21: 183283 | L21: 183860 | M21: 184527 | N21: 183461 | O21: 183013 | P21: 180038 | Q21: 173047 | R21: 164906 | S21: 155435 | T21: 147790 | U21: 142864 | V21: 140039 | W21: 139471 | X21: 138858 | Y21: 139291
F22: nástavbové studium | J22: 10468 | K22: 11377 | L22: 11689 | M22: 11597 | N22: 12069 | O22: 13045 | P22: 13371 | Q22: 13433 | R22: 11963 | S22: 10252 | T22: 8872 | U22: 7723 | V22: 6751 | W22: 6068 | X22: 5242 | Y22: 4748
E23: Privátní sektor | J23: 40049 | K23: 41421 | L23: 42206 | M23: 43180 | N23: 43019 | O23: 43345 | P23: 42166 | Q23: 38010 | R23: 33591 | S23: 30343 | T23: 28639 | U23: 29074 | V23: 29218 | W23: 30162 | X23: 30837 | Y23: 31309
E24: v tom | F24: střední vzdělávání | J24: 120 | K24: 127 | L24: 63 | M24: 44 | N24: 53 | O24: 59 | P24: 72 | Q24: 82 | R24: 104 | S24: 88 | T24: 101 | U24: 105 | V24: 140 | W24: 211 | X24: 270 | Y24: 321
F25: střední vzdělávání s výučním listem | J25: 5999 | K25: 5626 | L25: 5518 | M25: 5506 | N25: 5268 | O25: 5029 | P25: 4940 | Q25: 4564 | R25: 4290 | S25: 4119 | T25: 4093 | U25: 4086 | V25: 4002 | W25: 4068 | X25: 4089 | Y25: 4005
F26: střední vzdělávání s maturitní zkouškou | J26: 27337 | K26: 28440 | L26: 29180 | M26: 30703 | N26: 30626 | O26: 30837 | P26: 30198 | Q26: 27274 | R26: 24589 | S26: 22447 | T26: 21395 | U26: 22357 | V26: 22857 | W26: 23787 | X26: 24481 | Y26: 25071
F27: nástavbové studium | J27: 6593 | K27: 7228 | L27: 7445 | M27: 6927 | N27: 7072 | O27: 7420 | P27: 6956 | Q27: 6090 | R27: 4608 | S27: 3689 | T27: 3050 | U27: 2526 | V27: 2219 | W27: 2096 | X27: 1997 | Y27: 1912
E28: Církev | J28: 6027 | K28: 6033 | L28: 6138 | M28: 6229 | N28: 6391 | O28: 6375 | P28: 6330 | Q28: 6241 | R28: 6216 | S28: 6284 | T28: 6362 | U28: 6533 | V28: 6622 | W28: 6722 | X28: 6796 | Y28: 6796
E29: v tom | F29: střední vzdělávání | J29: 204 | K29: 207 | L29: 125 | M29: 97 | N29: 108 | O29: 98 | P29: 125 | Q29: 132 | R29: 123 | S29: 141 | T29: 158 | U29: 150 | V29: 147 | W29: 160 | X29: 156 | Y29: 133
F30: střední vzdělávání s výučním listem | J30: 133 | K30: 125 | L30: 199 | M30: 235 | N30: 229 | O30: 219 | P30: 237 | Q30: 242 | R30: 257 | S30: 274 | T30: 266 | U30: 275 | V30: 259 | W30: 263 | X30: 254 | Y30: 256
F31: střední vzdělávání s maturitní zkouškou | J31: 5660 | K31: 5675 | L31: 5788 | M31: 5877 | N31: 6036 | O31: 6042 | P31: 5951 | Q31: 5845 | R31: 5790 | S31: 5812 | T31: 5888 | U31: 6057 | V31: 6144 | W31: 6227 | X31: 6325 | Y31: 6338
F32: nástavbové studium | J32: 30 | K32: 26 | L32: 26 | M32: 20 | N32: 18 | O32: 16 | P32: 17 | Q32: 22 | R32: 46 | S32: 57 | T32: 50 | U32: 51 | V32: 72 | W32: 72 | X32: 61 | Y32: 69
D33: Nově přijaté
E34: Celkem | J34: 78896 | K34: 79287 | L34: 77368 | M34: 78970 | N34: 76114 | O34: 75861 | P34: 72392 | Q34: 65121 | R34: 60895 | S34: 57598 | T34: 57299 | U34: 56557 | V34: 55496 | W34: 55347 | X34: 55026 | Y34: 54588
E35: v tom | F35: střední vzdělávání | J35: 757 | K35: 697 | L35: 543 | M35: 529 | N35: 492 | O35: 470 | P35: 528 | Q35: 547 | R35: 509 | S35: 462 | T35: 479 | U35: 381 | V35: 432 | W35: 533 | X35: 532 | Y35: 464
F36: střední vzdělávání s výučním listem1) | J36: 18384 | K36: 17996 | L36: 16881 | M36: 16762 | N36: 14965 | O36: 14074 | P36: 13879 | Q36: 12339 | R36: 12271 | S36: 12024 | T36: 11697 | U36: 12127 | V36: 11519 | W36: 10861 | X36: 11086 | Y36: 11078
F37: střední vzdělávání s maturitní zkouškou1) | J37: 51010 | K37: 51414 | L37: 51231 | M37: 53155 | N37: 51132 | O37: 51354 | P37: 48705 | Q37: 43338 | R37: 40809 | S37: 39117 | T37: 39670 | U37: 39261 | V37: 39283 | W37: 39790 | X37: 39931 | Y37: 39868
F38: nástavbové studium | J38: 8745 | K38: 9180 | L38: 8713 | M38: 8524 | N38: 9525 | O38: 9963 | P38: 9280 | Q38: 8897 | R38: 7306 | S38: 5995 | T38: 5453 | U38: 4788 | V38: 4262 | W38: 4163 | X38: 3477 | Y38: 3178
E39: Veřejný | J39: 65315 | K39: 65436 | L39: 63968 | M39: 64158 | N39: 62046 | O39: 61966 | P39: 59651 | Q39: 54605 | R39: 51497 | S39: 48313 | T39: 47822 | U39: 46253 | V39: 45530 | W39: 44972 | X39: 44601 | Y39: 44210
E40: v tom | F40: střední vzdělávání | J40: 603 | K40: 521 | L40: 461 | M40: 453 | N40: 420 | O40: 369 | P40: 425 | Q40: 430 | R40: 387 | S40: 353 | T40: 341 | U40: 272 | V40: 306 | W40: 329 | X40: 339 | Y40: 303
F41: střední vzdělávání s výučním listem | J41: 16290 | K41: 16053 | L41: 14970 | M41: 14605 | N41: 13039 | O41: 12315 | P41: 11980 | Q41: 10809 | R41: 10758 | S41: 10451 | T41: 10288 | U41: 10507 | V41: 9965 | W41: 9322 | X41: 9504 | Y41: 9595
F42: střední vzdělávání s maturitní zkouškou | J42: 42904 | K42: 42925 | L42: 42882 | M42: 43466 | N42: 42345 | O42: 42598 | P42: 40700 | Q42: 36785 | R42: 34684 | S42: 32920 | T42: 32955 | U42: 31774 | V42: 31976 | W42: 32199 | X42: 32251 | Y42: 32031
F43: nástavbové studium | J43: 5518 | K43: 5937 | L43: 5655 | M43: 5634 | N43: 6242 | O43: 6684 | P43: 6546 | Q43: 6581 | R43: 5668 | S43: 4589 | T43: 4238 | U43: 3700 | V43: 3283 | W43: 3122 | X43: 2507 | Y43: 2281
E44: Privátní sektor | J44: 12270 | K44: 12502 | L44: 12057 | M44: 13401 | N44: 12689 | O44: 12571 | P44: 11500 | Q44: 9207 | R44: 8072 | S44: 7844 | T44: 8030 | U44: 8778 | V44: 8490 | W44: 8875 | X44: 8954 | Y44: 8926
E45: v tom | F45: střední vzdělávání | J45: 41 | K45: 64 | L45: 27 | M45: 26 | N45: 20 | O45: 44 | P45: 42 | Q45: 41 | R45: 58 | S45: 33 | T45: 55 | U45: 38 | V45: 72 | W45: 122 | X45: 133 | Y45: 108
F46: střední vzdělávání s výučním listem | J46: 2051 | K46: 1900 | L46: 1836 | M46: 2071 | N46: 1834 | O46: 1684 | P46: 1806 | Q46: 1437 | R46: 1427 | S46: 1473 | T46: 1319 | U46: 1528 | V46: 1473 | W46: 1443 | X46: 1509 | Y46: 1401
F47: střední vzdělávání s maturitní zkouškou | J47: 6964 | K47: 7310 | L47: 7147 | M47: 8423 | N47: 7562 | O47: 7571 | P47: 6929 | Q47: 5424 | R47: 4985 | S47: 4965 | T47: 5463 | U47: 6158 | V47: 6012 | W47: 6309 | X47: 6377 | Y47: 6564
F48: nástavbové studium | J48: 3214 | K48: 3228 | L48: 3047 | M48: 2881 | N48: 3273 | O48: 3272 | P48: 2723 | Q48: 2305 | R48: 1602 | S48: 1373 | T48: 1193 | U48: 1054 | V48: 933 | W48: 1001 | X48: 935 | Y48: 853
E49: Církev | J49: 1311 | K49: 1349 | L49: 1343 | M49: 1411 | N49: 1379 | O49: 1324 | P49: 1241 | Q49: 1309 | R49: 1326 | S49: 1441 | T49: 1447 | U49: 1526 | V49: 1476 | W49: 1500 | X49: 1471 | Y49: 1452
E50: v tom | F50: střední vzdělávání | J50: 113 | K50: 112 | L50: 55 | M50: 50 | N50: 52 | O50: 57 | P50: 61 | Q50: 76 | R50: 64 | S50: 76 | T50: 83 | U50: 71 | V50: 54 | W50: 82 | X50: 60 | Y50: 53
F51: střední vzdělávání s výučním listem | J51: 43 | K51: 43 | L51: 75 | M51: 86 | N51: 92 | O51: 75 | P51: 93 | Q51: 93 | R51: 86 | S51: 100 | T51: 90 | U51: 92 | V51: 81 | W51: 96 | X51: 73 | Y51: 82
F52: střední vzdělávání s maturitní zkouškou | J52: 1142 | K52: 1179 | L52: 1202 | M52: 1266 | N52: 1225 | O52: 1185 | P52: 1076 | Q52: 1129 | R52: 1140 | S52: 1232 | T52: 1252 | U52: 1329 | V52: 1295 | W52: 1282 | X52: 1303 | Y52: 1273
F53: nástavbové studium | J53: 13 | K53: 15 | L53: 11 | M53: 9 | N53: 10 | O53: 7 | P53: 11 | Q53: 11 | R53: 36 | S53: 33 | T53: 22 | U53: 34 | V53: 46 | W53: 40 | X53: 35 | Y53: 44
D54: Absolventky
E55: Celkem | J55: 63819 | K55: 64721 | L55: 65251 | M55: 64512 | N55: 62131 | O55: 61666 | P55: 58527 | Q55: 53253 | R55: 52564 | S55: 49961 | T55: 43907 | U55: 41162 | V55: 38602 | W55: 39079 | X55: 37949 | Y55: .
E56: v tom | F56: střední vzdělávání | J56: 453 | K56: 439 | L56: 329 | M56: 369 | N56: 356 | O56: 293 | P56: 270 | Q56: 297 | R56: 348 | S56: 288 | T56: 306 | U56: 282 | V56: 292 | W56: 270 | X56: 277 | Y56: .
F57: střední vzdělávání s výučním listem1) | J57: 15279 | K57: 14406 | L57: 13809 | M57: 13047 | N57: 11989 | O57: 11262 | P57: 9634 | Q57: 9646 | R57: 9138 | S57: 8278 | T57: 8233 | U57: 7811 | V57: 7380 | W57: 7752 | X57: 7401 | Y57: .
F58: střední vzdělávání s maturitní zkouškou1) | J58: 42784 | K58: 44154 | L58: 44921 | M58: 44802 | N58: 44303 | O58: 44278 | P58: 42969 | Q58: 39123 | R58: 39561 | S58: 38188 | T58: 33041 | U58: 31532 | V58: 29661 | W58: 29933 | X58: 29260 | Y58: .
F59: nástavbové studium | J59: 5303 | K59: 5722 | L59: 6192 | M59: 6294 | N59: 5483 | O59: 5833 | P59: 5654 | Q59: 4187 | R59: 3517 | S59: 3207 | T59: 2327 | U59: 1537 | V59: 1269 | W59: 1124 | X59: 1011 | Y59: .
E60: Veřejný | J60: 53413 | K60: 54162 | L60: 53913 | M60: 53257 | N60: 51193 | O60: 50722 | P60: 47552 | Q60: 44428 | R60: 43716 | S60: 42006 | T60: 37097 | U60: 34698 | V60: 32243 | W60: 32416 | X60: 31210 | Y60: .
E61: v tom | F61: střední vzdělávání | J61: 360 | K61: 363 | L61: 272 | M61: 326 | N61: 285 | O61: 251 | P61: 219 | Q61: 258 | R61: 266 | S61: 214 | T61: 229 | U61: 210 | V61: 210 | W61: 193 | X61: 194 | Y61: .
F62: střední vzdělávání s výučním listem | J62: 13367 | K62: 12637 | L62: 12067 | M62: 11405 | N62: 10477 | O62: 9715 | P62: 8299 | Q62: 8318 | R62: 7830 | S62: 7183 | T62: 7105 | U62: 6658 | V62: 6357 | W62: 6606 | X62: 6314 | Y62: .
F63: střední vzdělávání s maturitní zkouškou | J63: 36338 | K63: 37649 | L63: 37855 | M63: 37648 | N63: 36952 | O63: 37138 | P63: 35478 | Q63: 33121 | R63: 33351 | S63: 32367 | T63: 28171 | U63: 26726 | V63: 24780 | W63: 24840 | X63: 24012 | Y63: .
F64: nástavbové studium | J64: 3348 | K64: 3513 | L64: 3719 | M64: 3878 | N64: 3479 | O64: 3618 | P64: 3556 | Q64: 2731 | R64: 2269 | S64: 2242 | T64: 1592 | U64: 1104 | V64: 896 | W64: 777 | X64: 690 | Y64: .
E65: Privátní sektor | J65: 9280 | K65: 9494 | L65: 10192 | M65: 10043 | N65: 9819 | O65: 9810 | P65: 9776 | Q65: 7755 | R65: 7703 | S65: 6880 | T65: 5749 | U65: 5420 | V65: 5252 | W65: 5551 | X65: 5645 | Y65: .
E66: v tom | F66: střední vzdělávání | J66: 29 | K66: 37 | L66: 16 | M66: 16 | N66: 31 | O66: 18 | P66: 20 | Q66: 19 | R66: 46 | S66: 34 | T66: 33 | U66: 38 | V66: 36 | W66: 40 | X66: 37 | Y66: .
F67: střední vzdělávání s výučním listem | J67: 1867 | K67: 1711 | L67: 1697 | M67: 1572 | N67: 1451 | O67: 1486 | P67: 1273 | Q67: 1267 | R67: 1236 | S67: 1011 | T67: 1062 | U67: 1069 | V67: 938 | W67: 1071 | X67: 1017 | Y67: .
F68: střední vzdělávání s maturitní zkouškou | J68: 5445 | K68: 5548 | L68: 6021 | M68: 6050 | N68: 6341 | O68: 6100 | P68: 6391 | Q68: 5022 | R68: 5181 | S68: 4886 | T68: 3936 | U68: 3892 | V68: 3920 | W68: 4107 | X68: 4285 | Y68: .
F69: nástavbové studium | J69: 1939 | K69: 2198 | L69: 2458 | M69: 2405 | N69: 1996 | O69: 2206 | P69: 2092 | Q69: 1447 | R69: 1240 | S69: 949 | T69: 718 | U69: 421 | V69: 358 | W69: 333 | X69: 306 | Y69: .
E70: Církev | J70: 1126 | K70: 1065 | L70: 1146 | M70: 1212 | N70: 1119 | O70: 1134 | P70: 1199 | Q70: 1070 | R70: 1145 | S70: 1075 | T70: 1061 | U70: 1044 | V70: 1107 | W70: 1112 | X70: 1094 | Y70: .
E71: v tom | F71: střední vzdělávání | J71: 64 | K71: 39 | L71: 41 | M71: 27 | N71: 40 | O71: 24 | P71: 31 | Q71: 20 | R71: 36 | S71: 40 | T71: 44 | U71: 34 | V71: 46 | W71: 37 | X71: 46 | Y71: .
F72: střední vzdělávání s výučním listem | J72: 45 | K72: 58 | L72: 45 | M72: 70 | N72: 61 | O72: 61 | P72: 62 | Q72: 61 | R72: 72 | S72: 84 | T72: 66 | U72: 84 | V72: 85 | W72: 75 | X72: 70 | Y72: .
F73: střední vzdělávání s maturitní zkouškou | J73: 1001 | K73: 957 | L73: 1045 | M73: 1104 | N73: 1010 | O73: 1040 | P73: 1100 | Q73: 980 | R73: 1029 | S73: 935 | T73: 934 | U73: 914 | V73: 961 | W73: 986 | X73: 963 | Y73: .
F74: nástavbové studium | J74: 16 | K74: 11 | L74: 15 | M74: 11 | N74: 8 | O74: 9 | P74: 6 | Q74: 9 | R74: 8 | S74: 16 | T74: 17 | U74: 12 | V74: 15 | W74: 14 | X74: 15 | Y74: .
D75: Komentáře: | Y75: Zdroj: databáze MŠMT
D76: 1) | E76: Údaje za střední vzdělávání s výučním listem a za střední vzdělávání s maturitní zkouškou jsou včetně zkráceného studia, komentář platí pro všechny zřizovatele.

Sheet B5.1.9
D4: Tab. B5.1.9: | H4: Střední školy, denní forma vzdělávání – žáci, nově přijatí a absolventi
B5: 18 | D5: ve školním roce 2008/09 až 2018/19 – podle zřizovatele a druhu vzdělávání
D7: Zřizovatel Druh vzdělávání | J7: 2003/04 | K7: 2004/05 | L7: 2005/06 | M7: 2006/07 | N7: 2007/08 | O7: 2008/09 | P7: 2009/10 | Q7: 2010/11 | R7: 2011/12 | S7: 2012/13 | T7: 2013/14 | U7: 2014/15 | V7: 2015/16 | W7: 2016/17 | X7: 2017/18 | Y7: 2018/19
D12: Žáci
E13: Celkem | J13: 542937 | K13: 543587 | L13: 542027 | M13: 541770 | N13: 533940 | O13: 527045 | P13: 519468 | Q13: 496966 | R13: 470347 | S13: 443719 | T13: 423863 | U13: 412532 | V13: 405631 | W13: 404087 | X13: 403018 | Y13: 403957
E14: v tom | F14: střední vzdělávání | J14: 2790 | K14: 2586 | L14: 2296 | M14: 1852 | N14: 1692 | O14: 1675 | P14: 1802 | Q14: 1962 | R14: 1966 | S14: 1940 | T14: 1933 | U14: 2000 | V14: 2162 | W14: 2369 | X14: 2579 | Y14: 2690
F15: střední vzdělávání s výučním listem1) | J15: 146509 | K15: 141058 | L15: 135162 | M15: 129567 | N15: 122135 | O15: 115063 | P15: 112230 | Q15: 107036 | R15: 102184 | S15: 98892 | T15: 95555 | U15: 92759 | V15: 89654 | W15: 86964 | X15: 84864 | Y15: 84002
F16: střední vzdělávání s maturitní zkouškou1) | J16: 372100 | K16: 378445 | L16: 383150 | M16: 389629 | N16: 389881 | O16: 390460 | P16: 385737 | Q16: 368709 | R16: 349354 | S16: 328530 | T16: 313413 | U16: 306406 | V16: 303559 | W16: 305009 | X16: 306491 | Y16: 308613
F17: nástavbové studium | J17: 21538 | K17: 21498 | L17: 21419 | M17: 20722 | N17: 20232 | O17: 19847 | P17: 19699 | Q17: 19259 | R17: 16843 | S17: 14357 | T17: 12962 | U17: 11367 | V17: 10256 | W17: 9745 | X17: 9084 | Y17: 8652
E18: Veřejný | J18: 472439 | K18: 472385 | L18: 469947 | M18: 468095 | N18: 460893 | O18: 454590 | P18: 447042 | Q18: 430319 | R18: 409153 | S18: 386493 | T18: 368732 | U18: 357694 | V18: 350248 | W18: 347136 | X18: 344591 | Y18: 345109
E19: v tom | F19: střední vzdělávání | J19: 2369 | K19: 2161 | L19: 2020 | M19: 1627 | N19: 1460 | O19: 1441 | P19: 1514 | Q19: 1656 | R19: 1651 | S19: 1626 | T19: 1578 | U19: 1619 | V19: 1714 | W19: 1749 | X19: 1811 | Y19: 1885
F20: střední vzdělávání s výučním listem | J20: 132388 | K20: 127863 | L20: 122598 | M20: 117302 | N20: 110582 | O20: 104091 | P20: 100801 | Q20: 96380 | R20: 92146 | S20: 88899 | T20: 85850 | U20: 83463 | V20: 80666 | W20: 77877 | X20: 75613 | Y20: 75153
F21: střední vzdělávání s maturitní zkouškou | J21: 320844 | K21: 325719 | L21: 328818 | M21: 333092 | N21: 332903 | O21: 333155 | P21: 328608 | Q21: 316172 | R21: 300839 | S21: 283670 | T21: 270129 | U21: 262778 | V21: 258975 | W21: 259030 | X21: 259262 | Y21: 260499
F22: nástavbové studium | J22: 16838 | K22: 16642 | L22: 16511 | M22: 16074 | N22: 15948 | O22: 15903 | P22: 16119 | Q22: 16111 | R22: 14517 | S22: 12298 | T22: 11175 | U22: 9834 | V22: 8893 | W22: 8480 | X22: 7905 | Y22: 7572
E23: Privátní sektor | J23: 61916 | K23: 62535 | L23: 63230 | M23: 64677 | N23: 63808 | O23: 63233 | P23: 63224 | Q23: 57564 | R23: 52128 | S23: 48214 | T23: 45971 | U23: 45483 | V23: 45899 | W23: 47320 | X23: 48661 | Y23: 49100
E24: v tom | F24: střední vzdělávání | J24: 200 | K24: 203 | L24: 148 | M24: 115 | N24: 116 | O24: 121 | P24: 148 | Q24: 145 | R24: 153 | S24: 132 | T24: 146 | U24: 159 | V24: 217 | W24: 361 | X24: 511 | Y24: 585
F25: střední vzdělávání s výučním listem | J25: 13912 | K25: 13009 | L25: 12283 | M25: 11937 | N25: 11240 | O25: 10671 | P25: 11117 | Q25: 10336 | R25: 9714 | S25: 9654 | T25: 9376 | U25: 8966 | V25: 8682 | W25: 8792 | X25: 8963 | Y25: 8548
F26: střední vzdělávání s maturitní zkouškou | J26: 43140 | K26: 44497 | L26: 45922 | M26: 48007 | N26: 48200 | O26: 48527 | P26: 48409 | Q26: 43965 | R26: 39988 | S26: 36434 | T26: 34720 | U26: 34888 | V26: 35724 | W26: 36986 | X26: 38082 | Y26: 38967
F27: nástavbové studium | J27: 4664 | K27: 4826 | L27: 4877 | M27: 4618 | N27: 4252 | O27: 3914 | P27: 3550 | Q27: 3118 | R27: 2273 | S27: 1994 | T27: 1729 | U27: 1470 | V27: 1276 | W27: 1181 | X27: 1105 | Y27: 1000
E28: Církev | J28: 8582 | K28: 8667 | L28: 8850 | M28: 8998 | N28: 9239 | O28: 9222 | P28: 9202 | Q28: 9083 | R28: 9066 | S28: 9012 | T28: 9160 | U28: 9355 | V28: 9484 | W28: 9631 | X28: 9766 | Y28: 9748
E29: v tom | F29: střední vzdělávání | J29: 221 | K29: 222 | L29: 128 | M29: 110 | N29: 116 | O29: 113 | P29: 140 | Q29: 161 | R29: 162 | S29: 182 | T29: 209 | U29: 222 | V29: 231 | W29: 259 | X29: 257 | Y29: 220
F30: střední vzdělávání s výučním listem | J30: 209 | K30: 186 | L30: 281 | M30: 328 | N30: 313 | O30: 301 | P30: 312 | Q30: 320 | R30: 324 | S30: 339 | T30: 329 | U30: 330 | V30: 306 | W30: 295 | X30: 288 | Y30: 301
F31: střední vzdělávání s maturitní zkouškou | J31: 8116 | K31: 8229 | L31: 8410 | M31: 8530 | N31: 8778 | O31: 8778 | P31: 8720 | Q31: 8572 | R31: 8527 | S31: 8426 | T31: 8564 | U31: 8740 | V31: 8860 | W31: 8993 | X31: 9147 | Y31: 9147
F32: nástavbové studium | J32: 36 | K32: 30 | L32: 31 | M32: 30 | N32: 32 | O32: 30 | P32: 30 | Q32: 30 | R32: 53 | S32: 65 | T32: 58 | U32: 63 | V32: 87 | W32: 84 | X32: 74 | Y32: 80
D33: Nově přijatí
E34: Celkem | J34: 153922 | K34: 151803 | L34: 149565 | M34: 152124 | N34: 146147 | O34: 143046 | P34: 139620 | Q34: 124751 | R34: 117525 | S34: 111927 | T34: 110402 | U34: 109105 | V34: 108053 | W34: 107399 | X34: 107316 | Y34: 107509
E35: v tom | F35: střední vzdělávání | J35: 1559 | K35: 1411 | L35: 1243 | M35: 905 | N35: 881 | O35: 883 | P35: 943 | Q35: 1010 | R35: 1007 | S35: 978 | T35: 971 | U35: 826 | V35: 922 | W35: 1078 | X35: 1082 | Y35: 993
F36: střední vzdělávání s výučním listem1) | J36: 51338 | K36: 49040 | L36: 46507 | M36: 45488 | N36: 42093 | O36: 39898 | P36: 39906 | Q36: 35434 | R36: 34304 | S36: 33818 | T36: 32433 | U36: 32237 | V36: 31173 | W36: 30177 | X36: 30328 | Y36: 30435
F37: střední vzdělávání s maturitní zkouškou1) | J37: 89081 | K37: 89695 | L37: 90092 | M37: 94557 | N37: 91767 | O37: 91357 | P37: 87457 | Q37: 77706 | R37: 73040 | S37: 69340 | T37: 69962 | U37: 69746 | V37: 70156 | W37: 70700 | X37: 70796 | Y37: 71224
F38: nástavbové studium | J38: 11944 | K38: 11657 | L38: 11723 | M38: 11174 | N38: 11406 | O38: 10908 | P38: 11314 | Q38: 10601 | R38: 9174 | S38: 7791 | T38: 7036 | U38: 6296 | V38: 5802 | W38: 5444 | X38: 5110 | Y38: 4857
E39: Veřejný | J39: 133632 | K39: 131788 | L39: 129697 | M39: 130584 | N39: 126108 | O39: 123751 | P39: 120856 | Q39: 109448 | R39: 103380 | S39: 97649 | T39: 96039 | U39: 94232 | V39: 93218 | W39: 92269 | X39: 92026 | Y39: 92271
E40: v tom | F40: střední vzdělávání | J40: 1337 | K40: 1179 | L40: 1088 | M40: 771 | N40: 791 | O40: 732 | P40: 795 | Q40: 850 | R40: 842 | S40: 828 | T40: 790 | U40: 648 | V40: 744 | W40: 734 | X40: 730 | Y40: 741
F41: střední vzdělávání s výučním listem | J41: 46476 | K41: 44652 | L41: 42319 | M41: 41045 | N41: 38108 | O41: 36119 | P41: 35890 | Q41: 32095 | R41: 31052 | S41: 30300 | T41: 29210 | U41: 28899 | V41: 27931 | W41: 26872 | X41: 26893 | Y41: 27156
F42: střední vzdělávání s maturitní zkouškou | J42: 76587 | K42: 76881 | L42: 77157 | M42: 79998 | N42: 78144 | O42: 78005 | P42: 74810 | Q42: 67477 | R42: 63430 | S42: 59874 | T42: 59849 | U42: 59215 | V42: 59465 | W42: 59895 | X42: 59943 | Y42: 60115
F43: nástavbové studium | J43: 9232 | K43: 9076 | L43: 9133 | M43: 8770 | N43: 9065 | O43: 8895 | P43: 9361 | Q43: 9026 | R43: 8056 | S43: 6647 | T43: 6190 | U43: 5470 | V43: 5078 | W43: 4768 | X43: 4460 | Y43: 4259
E44: Privátní sektor | J44: 18513 | K44: 18176 | L44: 18048 | M44: 19631 | N44: 18194 | O44: 17437 | P44: 17002 | Q44: 13469 | R44: 12336 | S44: 12363 | T44: 12449 | U44: 12852 | V44: 12913 | W44: 13149 | X44: 13347 | Y44: 13297
E45: v tom | F45: střední vzdělávání | J45: 103 | K45: 112 | L45: 99 | M45: 73 | N45: 37 | O45: 84 | P45: 80 | Q45: 60 | R45: 76 | S45: 55 | T45: 69 | U45: 69 | V45: 88 | W45: 216 | X45: 257 | Y45: 168
F46: střední vzdělávání s výučním listem | J46: 4799 | K46: 4327 | L46: 4076 | M46: 4325 | N46: 3874 | O46: 3666 | P46: 3902 | Q46: 3224 | R46: 3144 | S46: 3391 | T46: 3113 | U46: 3229 | V46: 3142 | W46: 3209 | X46: 3341 | Y46: 3171
F47: střední vzdělávání s maturitní zkouškou | J47: 10914 | K47: 11173 | L47: 11297 | M47: 12845 | N47: 11959 | O47: 11690 | P47: 11083 | Q47: 8623 | R47: 8039 | S47: 7811 | T47: 8446 | U47: 8771 | V47: 9012 | W47: 9097 | X47: 9139 | Y47: 9414
F48: nástavbové studium | J48: 2697 | K48: 2564 | L48: 2576 | M48: 2388 | N48: 2324 | O48: 1997 | P48: 1937 | Q48: 1562 | R48: 1077 | S48: 1106 | T48: 821 | U48: 783 | V48: 671 | W48: 627 | X48: 610 | Y48: 544
E49: Církev | J49: 1777 | K49: 1839 | L49: 1820 | M49: 1909 | N49: 1845 | O49: 1858 | P49: 1762 | Q49: 1834 | R49: 1809 | S49: 1915 | T49: 1914 | U49: 2021 | V49: 1922 | W49: 1981 | X49: 1943 | Y49: 1941
E50: v tom | F50: střední vzdělávání | J50: 119 | K50: 120 | L50: 56 | M50: 61 | N50: 53 | O50: 67 | P50: 68 | Q50: 100 | R50: 89 | S50: 95 | T50: 112 | U50: 109 | V50: 90 | W50: 128 | X50: 95 | Y50: 84
F51: střední vzdělávání s výučním listem | J51: 63 | K51: 61 | L51: 112 | M51: 118 | N51: 111 | O51: 113 | P51: 114 | Q51: 115 | R51: 108 | S51: 127 | T51: 110 | U51: 109 | V51: 100 | W51: 96 | X51: 94 | Y51: 108
F52: střední vzdělávání s maturitní zkouškou | J52: 1580 | K52: 1641 | L52: 1638 | M52: 1714 | N52: 1664 | O52: 1662 | P52: 1564 | Q52: 1606 | R52: 1571 | S52: 1655 | T52: 1667 | U52: 1760 | V52: 1679 | W52: 1708 | X52: 1714 | Y52: 1695
F53: nástavbové studium | J53: 15 | K53: 17 | L53: 14 | M53: 16 | N53: 17 | O53: 16 | P53: 16 | Q53: 13 | R53: 41 | S53: 38 | T53: 25 | U53: 43 | V53: 53 | W53: 49 | X53: 40 | Y53: 54
D54: Absolventi
E55: Celkem | J55: 124903 | K55: 126270 | L55: 124633 | M55: 122239 | N55: 118420 | O55: 115506 | P55: 109080 | Q55: 103070 | R55: 100724 | S55: 95588 | T55: 85454 | U55: 79619 | V55: 74303 | W55: 74363 | X55: 74271 | Y55: .
E56: v tom | F56: střední vzdělávání | J56: 810 | K56: 852 | L56: 717 | M56: 653 | N56: 558 | O56: 522 | P56: 458 | Q56: 530 | R56: 586 | S56: 567 | T56: 578 | U56: 569 | V56: 632 | W56: 604 | X56: 605 | Y56: .
F57: střední vzdělávání s výučním listem1) | J57: 42430 | K57: 40752 | L57: 38559 | M57: 35822 | N57: 33547 | O57: 31082 | P57: 27558 | Q57: 27972 | R57: 27531 | S57: 24994 | T57: 24080 | U57: 22929 | V57: 21335 | W57: 21304 | X57: 20902 | Y57: .
F58: střední vzdělávání s maturitní zkouškou1) | J58: 73331 | K58: 75851 | L58: 77084 | M58: 77622 | N58: 76946 | O58: 76636 | P58: 74812 | Q58: 70149 | R58: 68917 | S58: 66789 | T58: 58093 | U58: 54146 | V58: 50782 | W58: 50810 | X58: 51154 | Y58: .
F59: nástavbové studium | J59: 8332 | K59: 8815 | L59: 8273 | M59: 8142 | N59: 7369 | O59: 7266 | P59: 6252 | Q59: 4419 | R59: 3690 | S59: 3238 | T59: 2703 | U59: 1975 | V59: 1554 | W59: 1645 | X59: 1610 | Y59: .
E60: Veřejný | J60: 109171 | K60: 110014 | L60: 108120 | M60: 105902 | N60: 102162 | O60: 99473 | P60: 93368 | Q60: 89637 | R60: 87646 | S60: 83444 | T60: 75173 | U60: 70144 | V60: 65288 | W60: 65162 | X60: 64545 | Y60: .
E61: v tom | F61: střední vzdělávání | J61: 685 | K61: 743 | L61: 632 | M61: 586 | N61: 452 | O61: 461 | P61: 386 | Q61: 462 | R61: 472 | S61: 471 | T61: 473 | U61: 477 | V61: 508 | W61: 483 | X61: 472 | Y61: .
F62: střední vzdělávání s výučním listem | J62: 38236 | K62: 36803 | L62: 34806 | M62: 32378 | N62: 30223 | O62: 27740 | P62: 24674 | Q62: 25078 | R62: 24701 | S62: 22389 | T62: 21603 | U62: 20464 | V62: 19065 | W62: 18928 | X62: 18579 | Y62: .
F63: střední vzdělávání s maturitní zkouškou | J63: 63663 | K63: 65720 | L63: 66435 | M63: 66761 | N63: 65766 | O63: 65614 | P63: 63371 | Q63: 60453 | R63: 59414 | S63: 57807 | T63: 50856 | U63: 47469 | V63: 44414 | W63: 44341 | X63: 44130 | Y63: .
F64: nástavbové studium | J64: 6587 | K64: 6748 | L64: 6247 | M64: 6177 | N64: 5721 | O64: 5658 | P64: 4937 | Q64: 3644 | R64: 3059 | S64: 2777 | T64: 2241 | U64: 1734 | V64: 1301 | W64: 1410 | X64: 1364 | Y64: .
E65: Privátní sektor | J65: 14242 | K65: 14832 | L65: 15007 | M65: 14711 | N65: 14667 | O65: 14479 | P65: 14068 | Q65: 11968 | R65: 11469 | S65: 10697 | T65: 8837 | U65: 8095 | V65: 7545 | W65: 7779 | X65: 8198 | Y65: .
E66: v tom | F66: střední vzdělávání | J66: 51 | K66: 65 | L66: 42 | M66: 36 | N66: 65 | O66: 34 | P66: 38 | Q66: 46 | R66: 69 | S66: 43 | T66: 50 | U66: 51 | V66: 62 | W66: 62 | X66: 54 | Y66: .
F67: střední vzdělávání s výučním listem | J67: 4118 | K67: 3868 | L67: 3696 | M67: 3351 | N67: 3232 | O67: 3257 | P67: 2806 | Q67: 2812 | R67: 2741 | S67: 2505 | T67: 2392 | U67: 2362 | V67: 2170 | W67: 2292 | X67: 2238 | Y67: .
F68: střední vzdělávání s maturitní zkouškou | J68: 8348 | K68: 8844 | L68: 9260 | M68: 9373 | N68: 9737 | O68: 9594 | P68: 9922 | Q68: 8350 | R68: 8038 | S68: 7707 | T68: 5955 | U68: 5454 | V68: 5082 | W68: 5205 | X68: 5679 | Y68: .
F69: nástavbové studium | J69: 1725 | K69: 2055 | L69: 2009 | M69: 1951 | N69: 1633 | O69: 1594 | P69: 1302 | Q69: 760 | R69: 621 | S69: 442 | T69: 440 | U69: 228 | V69: 231 | W69: 220 | X69: 227 | Y69: .
E70: Církev | J70: 1490 | K70: 1424 | L70: 1506 | M70: 1626 | N70: 1591 | O70: 1554 | P70: 1644 | Q70: 1465 | R70: 1609 | S70: 1447 | T70: 1444 | U70: 1380 | V70: 1470 | W70: 1422 | X70: 1528 | Y70: .
E71: v tom | F71: střední vzdělávání | J71: 74 | K71: 44 | L71: 43 | M71: 31 | N71: 41 | O71: 27 | P71: 34 | Q71: 22 | R71: 45 | S71: 53 | T71: 55 | U71: 41 | V71: 62 | W71: 59 | X71: 79 | Y71: .
F72: střední vzdělávání s výučním listem | J72: 76 | K72: 81 | L72: 57 | M72: 93 | N72: 92 | O72: 85 | P72: 78 | Q72: 82 | R72: 89 | S72: 100 | T72: 85 | U72: 103 | V72: 100 | W72: 84 | X72: 85 | Y72: .
F73: střední vzdělávání s maturitní zkouškou | J73: 1320 | K73: 1287 | L73: 1389 | M73: 1488 | N73: 1443 | O73: 1428 | P73: 1519 | Q73: 1346 | R73: 1465 | S73: 1275 | T73: 1282 | U73: 1223 | V73: 1286 | W73: 1264 | X73: 1345 | Y73: .
F74: nástavbové studium | J74: 20 | K74: 12 | L74: 17 | M74: 14 | N74: 15 | O74: 14 | P74: 13 | Q74: 15 | R74: 10 | S74: 19 | T74: 22 | U74: 13 | V74: 22 | W74: 15 | X74: 19 | Y74: .
D75: Komentáře: | Y75: Zdroj: databáze MŠMT
D76: 1) | E76: Údaje za střední vzdělávání s výučním listem a za střední vzdělávání s maturitní zkouškou jsou včetně zkráceného studia, komentář platí pro všechny zřizovatele.

Sheet B5.1.10
D4: Tab. B5.1.10: | H4: Střední školy, ostatní formy vzdělávání – žáci, nově přijatí a absolventi
B5: 18 | D5: ve školním roce 2008/09 až 2018/19 – podle zřizovatele a druhu vzdělávání
D7: Zřizovatel Druh vzdělávání | J7: 2003/04 | K7: 2004/05 | L7: 2005/06 | M7: 2006/07 | N7: 2007/08 | O7: 2008/09 | P7: 2009/10 | Q7: 2010/11 | R7: 2011/12 | S7: 2012/13 | T7: 2013/14 | U7: 2014/15 | V7: 2015/16 | W7: 2016/17 | X7: 2017/18 | Y7: 2018/19
D12: Žáci
E13: Celkem | J13: 33678 | K13: 35918 | L13: 35578 | M13: 34815 | N13: 35327 | O13: 37281 | P13: 36792 | Q13: 35952 | R13: 30873 | S13: 27035 | T13: 24929 | U13: 23010 | V13: 21476 | W13: 20762 | X13: 18517 | Y13: 16857
E14: v tom | F14: střední vzdělávání | J14: 39 | K14: 62 | L14: 85 | M14: 136 | N14: 57 | O14: 120 | P14: 115 | Q14: 145 | R14: 87 | S14: 25 | T14: 32 | U14: 40 | V14: 39 | W14: 35 | X14: 33 | Y14: 33
F15: střední vzdělávání s výučním listem1) | J15: 1382 | K15: 1639 | L15: 1441 | M15: 1280 | N15: 1415 | O15: 1338 | P15: 1379 | Q15: 1493 | R15: 1501 | S15: 1666 | T15: 1936 | U15: 2000 | V15: 2187 | W15: 2503 | X15: 2573 | Y15: 2588
F16: střední vzdělávání s maturitní zkouškou1) | J16: 10174 | K16: 10632 | L16: 10216 | M16: 10881 | N16: 10594 | O16: 10611 | P16: 10477 | Q16: 10366 | R16: 9646 | S16: 9535 | T16: 9440 | U16: 9579 | V16: 9069 | W16: 8991 | X16: 8509 | Y16: 8085
F17: nástavbové studium | J17: 22083 | K17: 23585 | L17: 23836 | M17: 22518 | N17: 23261 | O17: 25212 | P17: 24821 | Q17: 23948 | R17: 19639 | S17: 15809 | T17: 13521 | U17: 11391 | V17: 10181 | W17: 9233 | X17: 7402 | Y17: 6151
E18: Veřejný | J18: 20296 | K18: 21977 | L18: 21557 | M18: 20756 | N18: 20794 | O18: 21655 | P18: 21191 | Q18: 21153 | R18: 18360 | S18: 16272 | T18: 15166 | U18: 13241 | V18: 12050 | W18: 11033 | X18: 9168 | Y18: 7752
E19: v tom | F19: střední vzdělávání | J19: 35 | K19: 40 | L19: 60 | M19: 136 | N19: 57 | O19: 120 | P19: 115 | Q19: 130 | R19: 58 | S19: 0 | T19: 0 | U19: 0 | V19: 0 | W19: 0 | X19: 0 | Y19: 0
F20: střední vzdělávání s výučním listem | J20: 813 | K20: 1037 | L20: 851 | M20: 716 | N20: 846 | O20: 828 | P20: 851 | Q20: 926 | R20: 998 | S20: 1033 | T20: 1229 | U20: 1270 | V20: 1394 | W20: 1551 | X20: 1602 | Y20: 1622
F21: střední vzdělávání s maturitní zkouškou | J21: 7291 | K21: 7492 | L21: 7046 | M21: 6924 | N21: 6757 | O21: 6464 | P21: 6247 | Q21: 5963 | R21: 5458 | S21: 5219 | T21: 5142 | U21: 4487 | V21: 4164 | W21: 3666 | X21: 3205 | Y21: 2731
F22: nástavbové studium | J22: 12157 | K22: 13408 | L22: 13600 | M22: 12980 | N22: 13134 | O22: 14243 | P22: 13978 | Q22: 14134 | R22: 11846 | S22: 10020 | T22: 8795 | U22: 7484 | V22: 6492 | W22: 5816 | X22: 4361 | Y22: 3399
E23: Privátní sektor | J23: 13246 | K23: 13812 | L23: 13894 | M23: 13904 | N23: 14422 | O23: 15501 | P23: 15506 | Q23: 14665 | R23: 12357 | S23: 10503 | T23: 9485 | U23: 9417 | V23: 9058 | W23: 9344 | X23: 9032 | Y23: 8756
E24: v tom | F24: střední vzdělávání | J24: 4 | K24: 22 | L24: 25 | M24: 0 | N24: 0 | O24: 0 | P24: 0 | Q24: 15 | R24: 29 | S24: 25 | T24: 32 | U24: 40 | V24: 39 | W24: 35 | X24: 33 | Y24: 33
F25: střední vzdělávání s výučním listem | J25: 569 | K25: 602 | L25: 590 | M25: 564 | N25: 569 | O25: 510 | P25: 528 | Q25: 567 | R25: 503 | S25: 633 | T25: 707 | U25: 730 | V25: 793 | W25: 933 | X25: 954 | Y25: 941
F26: střední vzdělávání s maturitní zkouškou | J26: 2747 | K26: 3011 | L26: 3043 | M26: 3802 | N26: 3726 | O26: 4022 | P26: 4135 | Q26: 4269 | R26: 4032 | S26: 4056 | T26: 4020 | U26: 4740 | V26: 4537 | W26: 4959 | X26: 5004 | Y26: 5030
F27: nástavbové studium | J27: 9926 | K27: 10177 | L27: 10236 | M27: 9538 | N27: 10127 | O27: 10969 | P27: 10843 | Q27: 9814 | R27: 7793 | S27: 5789 | T27: 4726 | U27: 3907 | V27: 3689 | W27: 3417 | X27: 3041 | Y27: 2752
E28: Církev | J28: 136 | K28: 129 | L28: 127 | M28: 155 | N28: 111 | O28: 125 | P28: 95 | Q28: 134 | R28: 156 | S28: 260 | T28: 278 | U28: 352 | V28: 368 | W28: 385 | X28: 317 | Y28: 349
E29: v tom | F29: střední vzdělávání | J29: 0 | K29: 0 | L29: 0 | M29: 0 | N29: 0 | O29: 0 | P29: 0 | Q29: 0 | R29: 0 | S29: 0 | T29: 0 | U29: 0 | V29: 0 | W29: 0 | X29: 0 | Y29: 0
F30: střední vzdělávání s výučním listem | J30: 0 | K30: 0 | L30: 0 | M30: 0 | N30: 0 | O30: 0 | P30: 0 | Q30: 0 | R30: 0 | S30: 0 | T30: 0 | U30: 0 | V30: 0 | W30: 19 | X30: 17 | Y30: 25
F31: střední vzdělávání s maturitní zkouškou | J31: 136 | K31: 129 | L31: 127 | M31: 155 | N31: 111 | O31: 125 | P31: 95 | Q31: 134 | R31: 156 | S31: 260 | T31: 278 | U31: 352 | V31: 368 | W31: 366 | X31: 300 | Y31: 324
F32: nástavbové studium | J32: 0 | K32: 0 | L32: 0 | M32: 0 | N32: 0 | O32: 0 | P32: 0 | Q32: 0 | R32: 0 | S32: 0 | T32: 0 | U32: 0 | V32: 0 | W32: 0 | X32: 0 | Y32: 0
D33: Nově přijatí
E34: Celkem | J34: 14951 | K34: 15251 | L34: 13239 | M34: 13895 | N34: 14831 | O34: 15778 | P34: 14277 | Q34: 14123 | R34: 10928 | S34: 9656 | T34: 9651 | U34: 8620 | V34: 8024 | W34: 8218 | X34: 6725 | Y34: 6004
E35: v tom | F35: střední vzdělávání | J35: 12 | K35: 40 | L35: 47 | M35: 77 | N35: 30 | O35: 66 | P35: 67 | Q35: 87 | R35: 20 | S35: 9 | T35: 22 | U35: 16 | V35: 21 | W35: 20 | X35: 16 | Y35: 17
F36: střední vzdělávání s výučním listem1) | J36: 528 | K36: 768 | L36: 561 | M36: 515 | N36: 526 | O36: 531 | P36: 523 | Q36: 551 | R36: 622 | S36: 623 | T36: 696 | U36: 792 | V36: 837 | W36: 935 | X36: 1048 | Y36: 1089
F37: střední vzdělávání s maturitní zkouškou1) | J37: 3210 | K37: 3311 | L37: 2708 | M37: 3522 | N37: 3270 | O37: 3360 | P37: 3001 | Q37: 2966 | R37: 2772 | S37: 2876 | T37: 2926 | U37: 2946 | V37: 2771 | W37: 2845 | X37: 2711 | Y37: 2460
F38: nástavbové studium | J38: 11201 | K38: 11132 | L38: 9923 | M38: 9781 | N38: 11005 | O38: 11821 | P38: 10686 | Q38: 10519 | R38: 7514 | S38: 6148 | T38: 6007 | U38: 4866 | V38: 4395 | W38: 4418 | X38: 2950 | Y38: 2438
E39: Veřejný | J39: 9432 | K39: 10125 | L39: 8590 | M39: 8538 | N39: 9206 | O39: 9775 | P39: 8634 | Q39: 8898 | R39: 6983 | S39: 6357 | T39: 6303 | U39: 5061 | V39: 4718 | W39: 4554 | X39: 3353 | Y39: 2726
E40: v tom | F40: střední vzdělávání | J40: 12 | K40: 25 | L40: 47 | M40: 77 | N40: 30 | O40: 66 | P40: 67 | Q40: 72 | R40: 0 | S40: 0 | T40: 0 | U40: 0 | V40: 0 | W40: 0 | X40: 0 | Y40: 0
F41: střední vzdělávání s výučním listem | J41: 383 | K41: 597 | L41: 418 | M41: 335 | N41: 380 | O41: 388 | P41: 322 | Q41: 407 | R41: 429 | S41: 370 | T41: 474 | U41: 545 | V41: 552 | W41: 618 | X41: 706 | Y41: 726
F42: střední vzdělávání s maturitní zkouškou | J42: 2491 | K42: 2491 | L42: 1989 | M42: 2275 | N42: 2266 | O42: 2211 | P42: 1849 | Q42: 1723 | R42: 1628 | S42: 1810 | T42: 1754 | U42: 1265 | V42: 1382 | W42: 1107 | X42: 1013 | Y42: 755
F43: nástavbové studium | J43: 6546 | K43: 7012 | L43: 6136 | M43: 5851 | N43: 6530 | O43: 7110 | P43: 6396 | Q43: 6696 | R43: 4926 | S43: 4177 | T43: 4075 | U43: 3251 | V43: 2784 | W43: 2829 | X43: 1634 | Y43: 1245
E44: Privátní sektor | J44: 5502 | K44: 5069 | L44: 4621 | M44: 5305 | N44: 5615 | O44: 5961 | P44: 5627 | Q44: 5176 | R44: 3876 | S44: 3173 | T44: 3253 | U44: 3418 | V44: 3168 | W44: 3541 | X44: 3262 | Y44: 3144
E45: v tom | F45: střední vzdělávání | J45: 0 | K45: 15 | L45: 0 | M45: 0 | N45: 0 | O45: 0 | P45: 0 | Q45: 15 | R45: 20 | S45: 9 | T45: 22 | U45: 16 | V45: 21 | W45: 20 | X45: 16 | Y45: 17
F46: střední vzdělávání s výučním listem | J46: 145 | K46: 171 | L46: 143 | M46: 180 | N46: 146 | O46: 143 | P46: 201 | Q46: 144 | R46: 193 | S46: 253 | T46: 222 | U46: 247 | V46: 285 | W46: 298 | X46: 342 | Y46: 351
F47: střední vzdělávání s maturitní zkouškou | J47: 702 | K47: 763 | L47: 691 | M47: 1195 | N47: 994 | O47: 1107 | P47: 1136 | Q47: 1194 | R47: 1075 | S47: 940 | T47: 1077 | U47: 1540 | V47: 1251 | W47: 1634 | X47: 1588 | Y47: 1583
F48: nástavbové studium | J48: 4655 | K48: 4120 | L48: 3787 | M48: 3930 | N48: 4475 | O48: 4711 | P48: 4290 | Q48: 3823 | R48: 2588 | S48: 1971 | T48: 1932 | U48: 1615 | V48: 1611 | W48: 1589 | X48: 1316 | Y48: 1193
E49: Církev | J49: 17 | K49: 57 | L49: 28 | M49: 52 | N49: 10 | O49: 42 | P49: 16 | Q49: 49 | R49: 69 | S49: 126 | T49: 95 | U49: 141 | V49: 138 | W49: 123 | X49: 110 | Y49: 134
E50: v tom | F50: střední vzdělávání | J50: 0 | K50: 0 | L50: 0 | M50: 0 | N50: 0 | O50: 0 | P50: 0 | Q50: 0 | R50: 0 | S50: 0 | T50: 0 | U50: 0 | V50: 0 | W50: 0 | X50: 0 | Y50: 0
F51: střední vzdělávání s výučním listem | J51: 0 | K51: 0 | L51: 0 | M51: 0 | N51: 0 | O51: 0 | P51: 0 | Q51: 0 | R51: 0 | S51: 0 | T51: 0 | U51: 0 | V51: 0 | W51: 19 | X51: 0 | Y51: 12
F52: střední vzdělávání s maturitní zkouškou | J52: 17 | K52: 57 | L52: 28 | M52: 52 | N52: 10 | O52: 42 | P52: 16 | Q52: 49 | R52: 69 | S52: 126 | T52: 95 | U52: 141 | V52: 138 | W52: 104 | X52: 110 | Y52: 122
F53: nástavbové studium | J53: 0 | K53: 0 | L53: 0 | M53: 0 | N53: 0 | O53: 0 | P53: 0 | Q53: 0 | R53: 0 | S53: 0 | T53: 0 | U53: 0 | V53: 0 | W53: 0 | X53: 0 | Y53: 0
D54: Absolventi
E55: Celkem | J55: 6400 | K55: 6616 | L55: 8011 | M55: 8043 | N55: 7073 | O55: 7645 | P55: 7366 | Q55: 6444 | R55: 6092 | S55: 5467 | T55: 4622 | U55: 4203 | V55: 4082 | W55: 4239 | X55: 3785 | Y55: .
E56: v tom | F56: střední vzdělávání | J56: 13 | K56: 9 | L56: 24 | M56: 23 | N56: 58 | O56: 18 | P56: 40 | Q56: 46 | R56: 64 | S56: 11 | T56: 7 | U56: 14 | V56: 13 | W56: 10 | X56: 13 | Y56: .
F57: střední vzdělávání s výučním listem1) | J57: 535 | K57: 507 | L57: 444 | M57: 473 | N57: 456 | O57: 470 | P57: 323 | Q57: 521 | R57: 454 | S57: 439 | T57: 609 | U57: 713 | V57: 760 | W57: 940 | X57: 1015 | Y57: .
F58: střední vzdělávání s maturitní zkouškou1) | J58: 1274 | K58: 1285 | L58: 1634 | M58: 1658 | N58: 1585 | O58: 1684 | P58: 1445 | Q58: 1323 | R58: 1525 | S58: 1592 | T58: 1647 | U58: 1913 | V58: 1924 | W58: 2210 | X58: 1844 | Y58: .
F59: nástavbové studium | J59: 4578 | K59: 4815 | L59: 5909 | M59: 5889 | N59: 4974 | O59: 5473 | P59: 5558 | Q59: 4554 | R59: 4049 | S59: 3425 | T59: 2359 | U59: 1563 | V59: 1385 | W59: 1079 | X59: 913 | Y59: .
E60: Veřejný | J60: 3610 | K60: 3548 | L60: 4222 | M60: 4594 | N60: 3944 | O60: 4000 | P60: 3809 | Q60: 3795 | R60: 3395 | S60: 3098 | T60: 2541 | U60: 2152 | V60: 1987 | W60: 1953 | X60: 1607 | Y60: .
E61: v tom | F61: střední vzdělávání | J61: 13 | K61: 9 | L61: 24 | M61: 23 | N61: 58 | O61: 18 | P61: 40 | Q61: 46 | R61: 55 | S61: 0 | T61: 0 | U61: 0 | V61: 0 | W61: 0 | X61: 0 | Y61: .
F62: střední vzdělávání s výučním listem | J62: 350 | K62: 303 | L62: 192 | M62: 324 | N62: 276 | O62: 284 | P62: 150 | Q62: 293 | R62: 310 | S62: 303 | T62: 400 | U62: 471 | V62: 541 | W62: 661 | X62: 648 | Y62: .
F63: střední vzdělávání s maturitní zkouškou | J63: 902 | K63: 859 | L63: 990 | M63: 1034 | N63: 985 | O63: 944 | P63: 809 | Q63: 894 | R63: 918 | S63: 810 | T63: 766 | U63: 782 | V63: 631 | W63: 709 | X63: 492 | Y63: .
F64: nástavbové studium | J64: 2345 | K64: 2377 | L64: 3016 | M64: 3213 | N64: 2625 | O64: 2754 | P64: 2810 | Q64: 2562 | R64: 2112 | S64: 1985 | T64: 1375 | U64: 899 | V64: 815 | W64: 583 | X64: 467 | Y64: .
E65: Privátní sektor | J65: 2755 | K65: 3060 | L65: 3775 | M65: 3415 | N65: 3116 | O65: 3621 | P65: 3548 | Q65: 2625 | R65: 2689 | S65: 2331 | T65: 2026 | U65: 1994 | V65: 2010 | W65: 2144 | X65: 2116 | Y65: .
E66: v tom | F66: střední vzdělávání | J66: 0 | K66: 0 | L66: 0 | M66: 0 | N66: 0 | O66: 0 | P66: 0 | Q66: 0 | R66: 9 | S66: 11 | T66: 7 | U66: 14 | V66: 13 | W66: 10 | X66: 13 | Y66: .
F67: střední vzdělávání s výučním listem | J67: 185 | K67: 204 | L67: 252 | M67: 149 | N67: 180 | O67: 186 | P67: 173 | Q67: 228 | R67: 144 | S67: 136 | T67: 209 | U67: 242 | V67: 219 | W67: 279 | X67: 367 | Y67: .
F68: střední vzdělávání s maturitní zkouškou | J68: 337 | K68: 418 | L68: 630 | M68: 590 | N68: 587 | O68: 716 | P68: 627 | Q68: 405 | R68: 599 | S68: 744 | T68: 826 | U68: 1074 | V68: 1208 | W68: 1359 | X68: 1290 | Y68: .
F69: nástavbové studium | J69: 2233 | K69: 2438 | L69: 2893 | M69: 2676 | N69: 2349 | O69: 2719 | P69: 2748 | Q69: 1992 | R69: 1937 | S69: 1440 | T69: 984 | U69: 664 | V69: 570 | W69: 496 | X69: 446 | Y69: .
E70: Církev | J70: 35 | K70: 8 | L70: 14 | M70: 34 | N70: 13 | O70: 24 | P70: 9 | Q70: 24 | R70: 8 | S70: 38 | T70: 55 | U70: 57 | V70: 85 | W70: 142 | X70: 62 | Y70: .
E71: v tom | F71: střední vzdělávání | J71: 0 | K71: 0 | L71: 0 | M71: 0 | N71: 0 | O71: 0 | P71: 0 | Q71: 0 | R71: 0 | S71: 0 | T71: 0 | U71: 0 | V71: 0 | W71: 0 | X71: 0 | Y71: .
F72: střední vzdělávání s výučním listem | J72: 0 | K72: 0 | L72: 0 | M72: 0 | N72: 0 | O72: 0 | P72: 0 | Q72: 0 | R72: 0 | S72: 0 | T72: 0 | U72: 0 | V72: 0 | W72: 0 | X72: 0 | Y72: .
F73: střední vzdělávání s maturitní zkouškou | J73: 35 | K73: 8 | L73: 14 | M73: 34 | N73: 13 | O73: 24 | P73: 9 | Q73: 24 | R73: 8 | S73: 38 | T73: 55 | U73: 57 | V73: 85 | W73: 142 | X73: 62 | Y73: .
F74: nástavbové studium | J74: 0 | K74: 0 | L74: 0 | M74: 0 | N74: 0 | O74: 0 | P74: 0 | Q74: 0 | R74: 0 | S74: 0 | T74: 0 | U74: 0 | V74: 0 | W74: 0 | X74: 0 | Y74: .
D75: Komentáře: | Y75: Zdroj: databáze MŠMT
D76: 1) | E76: Údaje za střední vzdělávání s výučním listem a za střední vzdělávání s maturitní zkouškou jsou včetně zkráceného studia, komentář platí pro všechny zřizovatele.

Sheet B5.1.11
D4: Tab. B5.1.11: | H4: Střední školy – počet podaných přihlášek v 1. kole přijímacího řízení do denní formy
B5: 6 | D5: vzdělávání ve školním roce 2008/09 až 2018/19 – podle zřizovatele a druhu vzdělávání
D7: Zřizovatel Druh vzdělávání | J7: 2003/04 | K7: 2004/05 | L7: 2005/06 | M7: 2006/07 | N7: 2007/08 | O7: 2008/09 | P7: 2009/10 | Q7: 2010/11 | R7: 2011/12 | S7: 2012/13 | T7: 2013/14 | U7: 2014/15 | V7: 2015/16 | W7: 2016/17 | X7: 2017/18 | Y7: 2018/19
J11: 1) | K11: 1) | P11: 3) | Q11: 3) | R11: 3) | S11: 4) | T11: 4) | U11: 4) | V11: 4) | W11: 4) | X11: 4) | Y11: 4)
D12: Počet podaných přihlášek v prvním kole přijímacího řízení do denní formy vzdělávání1)
E13: Celkem | J13: . | K13: . | L13: 159435 | M13: 160631 | N13: 145299 | O13: 139770 | P13: 277879 | Q13: 250338 | R13: 239379 | S13: 181747 | T13: 179720 | U13: 182603 | V13: 185375 | W13: 190000 | X13: 197182 | Y13: 203219
E14: v tom | F14: střední vzdělávání s maturitní zkouškou | J14: . | K14: . | L14: 113960 | M14: 116802 | N14: 105867 | O14: 103511 | P14: 210901 | Q14: 187976 | R14: 177748 | S14: 133222 | T14: 133756 | U14: 136043 | V14: 138712 | W14: 143434 | X14: 150682 | Y14: 155738
G15: z toho víceletá gymnázia | J15: . | K15: . | L15: 23889 | M15: 21516 | N15: 20161 | O15: 19089 | P15: 26175 | Q15: 25294 | R15: 27115 | S15: 26403 | T15: 27208 | U15: 28293 | V15: 30383 | W15: 32583 | X15: 37308 | Y15: 40587
F16: bez maturity2) | J16: . | K16: . | L16: 45475 | M16: 43829 | N16: 39432 | O16: 36259 | P16: 66978 | Q16: 62362 | R16: 61631 | S16: 48525 | T16: 45964 | U16: 46560 | V16: 46663 | W16: 46566 | X16: 46500 | Y16: 47481
E17: Veřejný | J17: 133765 | K17: 133936 | L17: 139565 | M17: 140078 | N17: 126146 | O17: 122231 | P17: 248539 | Q17: 224534 | R17: 214524 | S17: 161025 | T17: 159348 | U17: 160685 | V17: 162983 | W17: 166551 | X17: 174198 | Y17: 179160
E18: v tom | F18: střední vzdělávání s maturitní zkouškou | J18: 96939 | K18: 98027 | L18: 98563 | M18: 100564 | N18: 90703 | O18: 89473 | P18: 187741 | Q18: 167730 | R18: 158295 | S18: 117186 | T18: 117695 | U18: 118614 | V18: 120624 | W18: 124552 | X18: 132224 | Y18: 136317
G19: z toho víceletá gymnázia | J19: 22799 | K19: 23560 | L19: 21189 | M19: 18996 | N19: 17747 | O19: 16788 | P19: 23046 | Q19: 22181 | R19: 23701 | S19: 23048 | T19: 23694 | U19: 24423 | V19: 26345 | W19: 28039 | X19: 32081 | Y19: 34950
F20: bez maturity2) | J20: 36826 | K20: 35909 | L20: 41002 | M20: 39514 | N20: 35443 | O20: 32758 | P20: 60798 | Q20: 56804 | R20: 56229 | S20: 43839 | T20: 41653 | U20: 42071 | V20: 42359 | W20: 41999 | X20: 41974 | Y20: 42843
E21: Privátní sektor | J21: . | K21: . | L21: 17331 | M21: 17889 | N21: 16974 | O21: 15229 | P21: 25834 | Q21: 21859 | R21: 21063 | S21: 16901 | T21: 16641 | U21: 17703 | V21: 18146 | W21: 19029 | X21: 18416 | Y21: 19266
E22: v tom | F22: střední vzdělávání s maturitní zkouškou | J22: . | K22: . | L22: 13017 | M22: 13733 | N22: 13133 | O22: 11864 | P22: 19864 | Q22: 16604 | R22: 15923 | S22: 12467 | T22: 12574 | U22: 13469 | V22: 14099 | W22: 14686 | X22: 14121 | Y22: 14863
G23: z toho víceletá gymnázia | J23: . | K23: . | L23: 1531 | M23: 1437 | N23: 1383 | O23: 1258 | P23: 1762 | Q23: 1601 | R23: 1776 | S23: 1540 | T23: 1726 | U23: 1883 | V23: 2047 | W23: 2364 | X23: 2769 | Y23: 2976
F24: bez maturity2) | J24: . | K24: . | L24: 4314 | M24: 4156 | N24: 3841 | O24: 3365 | P24: 5970 | Q24: 5255 | R24: 5140 | S24: 4434 | T24: 4067 | U24: 4234 | V24: 4047 | W24: 4343 | X24: 4295 | Y24: 4403
E25: Církev | J25: . | K25: . | L25: 2539 | M25: 2664 | N25: 2179 | O25: 2310 | P25: 3506 | Q25: 3945 | R25: 3792 | S25: 3821 | T25: 3731 | U25: 4215 | V25: 4246 | W25: 4420 | X25: 4568 | Y25: 4793
E26: v tom | F26: střední vzdělávání s maturitní zkouškou | J26: . | K26: . | L26: 2380 | M26: 2505 | N26: 2031 | O26: 2174 | P26: 3296 | Q26: 3642 | R26: 3530 | S26: 3569 | T26: 3487 | U26: 3960 | V26: 3989 | W26: 4196 | X26: 4337 | Y26: 4558
G27: z toho víceletá gymnázia | J27: . | K27: . | L27: 1169 | M27: 1083 | N27: 1031 | O27: 1043 | P27: 1367 | Q27: 1512 | R27: 1638 | S27: 1815 | T27: 1788 | U27: 1987 | V27: 1991 | W27: 2180 | X27: 2458 | Y27: 2661
F28: bez maturity2) | J28: . | K28: . | L28: 159 | M28: 159 | N28: 148 | O28: 136 | P28: 210 | Q28: 303 | R28: 262 | S28: 252 | T28: 244 | U28: 255 | V28: 257 | W28: 224 | X28: 231 | Y28: 235
D29: Komentáře: | Y29: Zdroj: databáze MŠMT
D30: 1) | E30: Data bez nástavbového a zkráceného studia.
D31: 2) | E31: Střední vzdělávání a střední vzdělávání s výučním listem.
D32: 3) | E32: Do školního roku 2008/09 v rámci prvního kola přijímacího řízení mohli žáci podat přihlášku pouze na jednu školu, ve školním roce 2009/10 byl systém přijímacího řízení změněn a žáci mohli podat 3 přihlášky, údaje s minulými léty jsou proto nesrovnatelné.
D33: 4) | E33: Od školního roku 2012/13 v rámci prvního kola přijímacího řízení byl systém přijímacího řízení změněn a žáci si mohli podat pouze 2 přihlášky, údaje s minulými léty jsou proto nesrovnatelné.

Sheet B5.1.12
D4: Tab. B5.1.12: | H4: Střední školy – počet přijatých přihlášek v 1. kole přijímacího řízení do denní
B5: 6 | D5: formy vzdělávání ve školním roce 2008/09 až 2018/19 – podle zřizovatele a druhu vzdělávání
D7: Zřizovatel Druh vzdělávání | J7: 2003/04 | K7: 2004/05 | L7: 2005/06 | M7: 2006/07 | N7: 2007/08 | O7: 2008/09 | P7: 2009/10 | Q7: 2010/11 | R7: 2011/12 | S7: 2012/13 | T7: 2013/14 | U7: 2014/15 | V7: 2015/16 | W7: 2016/17 | X7: 2017/18 | Y7: 2018/19
J11: 1) | K11: 1) | P11: 3) | Q11: 3) | R11: 3) | S11: 4) | T11: 4) | U11: 4) | V11: 4) | W11: 4) | X11: 4) | Y11: 4)
D12: Počet přijatých přihlášek v prvním kole přijímacího řízení (červen) do denní formy vzdělávání1)
E13: Celkem | J13: . | K13: . | L13: 126674 | M13: 126920 | N13: 121217 | O13: 118193 | P13: 164188 | Q13: 163495 | R13: 161173 | S13: 134486 | T13: 133500 | U13: 132526 | V13: 135382 | W13: 137653 | X13: 138787 | Y13: 140239
E14: v tom | F14: střední vzdělávání s maturitní zkouškou | J14: . | K14: . | L14: 85009 | M14: 87267 | N14: 84522 | O14: 84088 | P14: 114021 | Q14: 113867 | R14: 111277 | S14: 92075 | T14: 92771 | U14: 91404 | V14: 94372 | W14: 96318 | X14: 97595 | Y14: 98278
G15: z toho víceletá gymnázia | J15: . | K15: . | L15: 12067 | M15: 11534 | N15: 11650 | O15: 11199 | P15: 12551 | Q15: 12316 | R15: 12870 | S15: 12154 | T15: 12487 | U15: 12468 | V15: 13032 | W15: 13226 | X15: 14336 | Y15: 14680
F16: bez maturity2) | J16: . | K16: . | L16: 41665 | M16: 39653 | N16: 36695 | O16: 34105 | P16: 50167 | Q16: 49628 | R16: 49896 | S16: 42411 | T16: 40729 | U16: 41122 | V16: 41010 | W16: 41335 | X16: 41192 | Y16: 41961
E17: Veřejný | J17: 97104 | K17: 97452 | L17: 110745 | M17: 110178 | N17: 105170 | O17: 103250 | P17: 143601 | Q17: 144561 | R17: 142843 | S17: 118792 | T17: 117884 | U17: 116052 | V17: 118741 | W17: 120371 | X17: 122204 | Y17: 123113
E18: v tom | F18: střední vzdělávání s maturitní zkouškou | J18: 64999 | K18: 66094 | L18: 73009 | M18: 74420 | N18: 72082 | O18: 72333 | P18: 98199 | Q18: 99357 | R18: 97309 | S18: 80358 | T18: 80768 | U18: 78584 | V18: 81286 | W18: 82904 | X18: 84736 | Y18: 84972
G19: z toho víceletá gymnázia | J19: 10040 | K19: 10073 | L19: 10278 | M19: 9955 | N19: 10075 | O19: 9723 | P19: 10816 | Q19: 10622 | R19: 10983 | S19: 10333 | T19: 10534 | U19: 10409 | V19: 10910 | W19: 10971 | X19: 11851 | Y19: 12269
F20: bez maturity2) | J20: 32105 | K20: 31358 | L20: 37736 | M20: 35758 | N20: 33088 | O20: 30917 | P20: 45402 | Q20: 45204 | R20: 45534 | S20: 38434 | T20: 37116 | U20: 37468 | V20: 37455 | W20: 37467 | X20: 37468 | Y20: 38141
E21: Privátní sektor | J21: . | K21: . | L21: 14168 | M21: 14918 | N21: 14436 | O21: 13267 | P21: 18598 | Q21: 16541 | R21: 15993 | S21: 13581 | T21: 13500 | U21: 14205 | V21: 14307 | W21: 14961 | X21: 14326 | Y21: 14787
E22: v tom | F22: střední vzdělávání s maturitní zkouškou | J22: . | K22: . | L22: 10386 | M22: 11175 | N22: 10972 | O22: 10205 | P22: 14031 | Q22: 12343 | R22: 11865 | S22: 9833 | T22: 10098 | U22: 10772 | V22: 10979 | W22: 11305 | X22: 10796 | Y22: 11187
G23: z toho víceletá gymnázia | J23: . | K23: . | L23: 1106 | M23: 937 | N23: 944 | O23: 824 | P23: 1106 | Q23: 991 | R23: 1141 | S23: 1082 | T23: 1202 | U23: 1267 | V23: 1348 | W23: 1432 | X23: 1614 | Y23: 1554
F24: bez maturity2) | J24: . | K24: . | L24: 3782 | M24: 3743 | N24: 3464 | O24: 3062 | P24: 4567 | Q24: 4198 | R24: 4128 | S24: 3748 | T24: 3402 | U24: 3433 | V24: 3328 | W24: 3656 | X24: 3530 | Y24: 3600
E25: Církev | J25: . | K25: . | L25: 1761 | M25: 1824 | N25: 1611 | O25: 1676 | P25: 1989 | Q25: 2393 | R25: 2337 | S25: 2113 | T25: 2116 | U25: 2269 | V25: 2334 | W25: 2321 | X25: 2257 | Y25: 2339
E26: v tom | F26: střední vzdělávání s maturitní zkouškou | J26: . | K26: . | L26: 1614 | M26: 1672 | N26: 1468 | O26: 1550 | P26: 1791 | Q26: 2167 | R26: 2103 | S26: 1884 | T26: 1905 | U26: 2048 | V26: 2107 | W26: 2109 | X26: 2063 | Y26: 2119
G27: z toho víceletá gymnázia | J27: . | K27: . | L27: 683 | M27: 642 | N27: 631 | O27: 652 | P27: 629 | Q27: 703 | R27: 746 | S27: 739 | T27: 751 | U27: 792 | V27: 774 | W27: 823 | X27: 871 | Y27: 857
F28: bez maturity2) | J28: . | K28: . | L28: 147 | M28: 152 | N28: 143 | O28: 126 | P28: 198 | Q28: 226 | R28: 234 | S28: 229 | T28: 211 | U28: 221 | V28: 227 | W28: 212 | X28: 194 | Y28: 220
D29: Komentáře: | Y29: Zdroj: databáze MŠMT
D30: 1) | E30: Data bez nástavbového a zkráceného studia.
D31: 2) | E31: Střední vzdělávání a střední vzdělávání s výučním listem.
D32: 3) | E32: Do školního roku 2008/09 v rámci prvního kola přijímacího řízení mohli žáci podat přihlášku pouze na jednu školu, ve školním roce 2009/10 byl systém přijímacího řízení změněn a žáci mohli podat 3 přihlášky, údaje s minulými léty jsou proto nesrovnatelné.
D33: 4) | E33: Od školního roku 2012/13 v rámci prvního kola přijímacího řízení byl systém přijímacího řízení změněn a žáci si mohli podat pouze 2 přihlášky, údaje s minulými léty jsou proto nesrovnatelné.

Sheet B5.1.13
D4: Tab. B5.1.13: | H4: Střední školy – úspěšnost v 1. kole přijímacího řízení do denní
B5: 6 | D5: formy vzdělávání ve školním roce 2008/09 až 2018/19 – podle zřizovatele a druhu vzdělávání
D7: Zřizovatel Druh vzdělávání | J7: 2003/04 | K7: 2004/05 | L7: 2005/06 | M7: 2006/07 | N7: 2007/08 | O7: 2008/09 | P7: 2009/10 | Q7: 2010/11 | R7: 2011/12 | S7: 2012/13 | T7: 2013/14 | U7: 2014/15 | V7: 2015/16 | W7: 2016/17 | X7: 2017/18 | Y7: 2018/19
J11: 1) | K11: 1) | P11: 3) | Q11: 3) | R11: 3) | S11: 4) | T11: 4) | U11: 4) | V11: 4) | W11: 4) | X11: 4) | Y11: 4)
D12: Úspěšnost v prvním kole přijímacího řízení do denní formy vzdělávání1)
E13: Celkem | J13: x | K13: x | L13: ='B5.1.12'!L13/'B5.1.11'!L13 -> 0.7945181422 | M13: ='B5.1.12'!M13/'B5.1.11'!M13 -> 0.7901339094 | N13: ='B5.1.12'!N13/'B5.1.11'!N13 -> 0.8342590107 | O13: ='B5.1.12'!O13/'B5.1.11'!O13 -> 0.8456249553 | P13: ='B5.1.12'!P13/'B5.1.11'!P13 -> 0.5908614901 | Q13: ='B5.1.12'!Q13/'B5.1.11'!Q13 -> 0.6530970128 | R13: ='B5.1.12'!R13/'B5.1.11'!R13 -> 0.6732963209 | S13: ='B5.1.12'!S13/'B5.1.11'!S13 -> 0.7399626954 | T13: ='B5.1.12'!T13/'B5.1.11'!T13 -> 0.7428221678 | U13: ='B5.1.12'!U13/'B5.1.11'!U13 -> 0.7257602559 | V13: ='B5.1.12'!V13/'B5.1.11'!V13 -> 0.7303142279 | W13: ='B5.1.12'!W13/'B5.1.11'!W13 -> 0.7244894737 | X13: ='B5.1.12'!X13/'B5.1.11'!X13 -> 0.7038522786 | Y13: ='B5.1.12'!Y13/'B5.1.11'!Y13 -> 0.6900880331
E14: v tom | F14: střední vzdělávání s maturitní zkouškou | J14: x | K14: x | L14: ='B5.1.12'!L14/'B5.1.11'!L14 -> 0.745954721 | M14: ='B5.1.12'!M14/'B5.1.11'!M14 -> 0.7471361792 | N14: ='B5.1.12'!N14/'B5.1.11'!N14 -> 0.7983790983 | O14: ='B5.1.12'!O14/'B5.1.11'!O14 -> 0.8123581069 | P14: ='B5.1.12'!P14/'B5.1.11'!P14 -> 0.5406375503 | Q14: ='B5.1.12'!Q14/'B5.1.11'!Q14 -> 0.6057528621 | R14: ='B5.1.12'!R14/'B5.1.11'!R14 -> 0.6260379864 | S14: ='B5.1.12'!S14/'B5.1.11'!S14 -> 0.6911396016 | T14: ='B5.1.12'!T14/'B5.1.11'!T14 -> 0.6935838392 | U14: ='B5.1.12'!U14/'B5.1.11'!U14 -> 0.671875804 | V14: ='B5.1.12'!V14/'B5.1.11'!V14 -> 0.6803448872 | W14: ='B5.1.12'!W14/'B5.1.11'!W14 -> 0.6715144248 | X14: ='B5.1.12'!X14/'B5.1.11'!X14 -> 0.6476885096 | Y14: ='B5.1.12'!Y14/'B5.1.11'!Y14 -> 0.6310470149
G15: z toho víceletá gymnázia | J15: x | K15: x | L15: ='B5.1.12'!L15/'B5.1.11'!L15 -> 0.5051278831 | M15: ='B5.1.12'!M15/'B5.1.11'!M15 -> 0.5360661833 | N15: ='B5.1.12'!N15/'B5.1.11'!N15 -> 0.577848321 | O15: ='B5.1.12'!O15/'B5.1.11'!O15 -> 0.586672953 | P15: ='B5.1.12'!P15/'B5.1.11'!P15 -> 0.4795033429 | Q15: ='B5.1.12'!Q15/'B5.1.11'!Q15 -> 0.4869138926 | R15: ='B5.1.12'!R15/'B5.1.11'!R15 -> 0.4746450304 | S15: ='B5.1.12'!S15/'B5.1.11'!S15 -> 0.4603264781 | T15: ='B5.1.12'!T15/'B5.1.11'!T15 -> 0.4589458983 | U15: ='B5.1.12'!U15/'B5.1.11'!U15 -> 0.4406743718 | V15: ='B5.1.12'!V15/'B5.1.11'!V15 -> 0.4289240694 | W15: ='B5.1.12'!W15/'B5.1.11'!W15 -> 0.4059171961 | X15: ='B5.1.12'!X15/'B5.1.11'!X15 -> 0.3842607484 | Y15: ='B5.1.12'!Y15/'B5.1.11'!Y15 -> 0.3616921674
F16: bez maturity2) | J16: x | K16: x | L16: ='B5.1.12'!L16/'B5.1.11'!L16 -> 0.916217702 | M16: ='B5.1.12'!M16/'B5.1.11'!M16 -> 0.9047206188 | N16: ='B5.1.12'!N16/'B5.1.11'!N16 -> 0.930589369 | O16: ='B5.1.12'!O16/'B5.1.11'!O16 -> 0.9405940594 | P16: ='B5.1.12'!P16/'B5.1.11'!P16 -> 0.7490071367 | Q16: ='B5.1.12'!Q16/'B5.1.11'!Q16 -> 0.7958051377 | R16: ='B5.1.12'!R16/'B5.1.11'!R16 -> 0.8095925752 | S16: ='B5.1.12'!S16/'B5.1.11'!S16 -> 0.8740030912 | T16: ='B5.1.12'!T16/'B5.1.11'!T16 -> 0.8861065181 | U16: ='B5.1.12'!U16/'B5.1.11'!U16 -> 0.8832044674 | V16: ='B5.1.12'!V16/'B5.1.11'!V16 -> 0.8788547672 | W16: ='B5.1.12'!W16/'B5.1.11'!W16 -> 0.8876648198 | X16: ='B5.1.12'!X16/'B5.1.11'!X16 -> 0.8858494624 | Y16: ='B5.1.12'!Y16/'B5.1.11'!Y16 -> 0.8837429709
E17: Veřejný | J17: 0.7196486566 | K17: 0.7211523603 | L17: ='B5.1.12'!L17/'B5.1.11'!L17 -> 0.793501236 | M17: ='B5.1.12'!M17/'B5.1.11'!M17 -> 0.786547495 | N17: ='B5.1.12'!N17/'B5.1.11'!N17 -> 0.8337164872 | O17: ='B5.1.12'!O17/'B5.1.11'!O17 -> 0.8447120616 | P17: ='B5.1.12'!P17/'B5.1.11'!P17 -> 0.5777805495 | Q17: ='B5.1.12'!Q17/'B5.1.11'!Q17 -> 0.6438267701 | R17: ='B5.1.12'!R17/'B5.1.11'!R17 -> 0.6658602301 | S17: ='B5.1.12'!S17/'B5.1.11'!S17 -> 0.7377239559 | T17: ='B5.1.12'!T17/'B5.1.11'!T17 -> 0.7397896428 | U17: ='B5.1.12'!U17/'B5.1.11'!U17 -> 0.7222329402 | V17: ='B5.1.12'!V17/'B5.1.11'!V17 -> 0.7285483762 | W17: ='B5.1.12'!W17/'B5.1.11'!W17 -> 0.7227275729 | X17: ='B5.1.12'!X17/'B5.1.11'!X17 -> 0.7015235537 | Y17: ='B5.1.12'!Y17/'B5.1.11'!Y17 -> 0.6871678946
E18: v tom | F18: střední vzdělávání s maturitní zkouškou | J18: 0.6705144472 | K18: 0.6742428107 | L18: ='B5.1.12'!L18/'B5.1.11'!L18 -> 0.7407343526 | M18: ='B5.1.12'!M18/'B5.1.11'!M18 -> 0.7400262519 | N18: ='B5.1.12'!N18/'B5.1.11'!N18 -> 0.794703593 | O18: ='B5.1.12'!O18/'B5.1.11'!O18 -> 0.8084338292 | P18: ='B5.1.12'!P18/'B5.1.11'!P18 -> 0.5230556991 | Q18: ='B5.1.12'!Q18/'B5.1.11'!Q18 -> 0.5923627258 | R18: ='B5.1.12'!R18/'B5.1.11'!R18 -> 0.6147319877 | S18: ='B5.1.12'!S18/'B5.1.11'!S18 -> 0.6857303773 | T18: ='B5.1.12'!T18/'B5.1.11'!T18 -> 0.6862483538 | U18: ='B5.1.12'!U18/'B5.1.11'!U18 -> 0.6625187583 | V18: ='B5.1.12'!V18/'B5.1.11'!V18 -> 0.6738791617 | W18: ='B5.1.12'!W18/'B5.1.11'!W18 -> 0.6656175734 | X18: ='B5.1.12'!X18/'B5.1.11'!X18 -> 0.6408518877 | Y18: ='B5.1.12'!Y18/'B5.1.11'!Y18 -> 0.6233411827
G19: z toho víceletá gymnázia | J19: 0.4403701917 | K19: 0.4275466893 | L19: ='B5.1.12'!L19/'B5.1.11'!L19 -> 0.4850630044 | M19: ='B5.1.12'!M19/'B5.1.11'!M19 -> 0.5240576964 | N19: ='B5.1.12'!N19/'B5.1.11'!N19 -> 0.5677015834 | O19: ='B5.1.12'!O19/'B5.1.11'!O19 -> 0.5791636883 | P19: ='B5.1.12'!P19/'B5.1.11'!P19 -> 0.4693222251 | Q19: ='B5.1.12'!Q19/'B5.1.11'!Q19 -> 0.4788783193 | R19: ='B5.1.12'!R19/'B5.1.11'!R19 -> 0.4633981689 | S19: ='B5.1.12'!S19/'B5.1.11'!S19 -> 0.4483252343 | T19: ='B5.1.12'!T19/'B5.1.11'!T19 -> 0.444585127 | U19: ='B5.1.12'!U19/'B5.1.11'!U19 -> 0.4261966179 | V19: ='B5.1.12'!V19/'B5.1.11'!V19 -> 0.4141203264 | W19: ='B5.1.12'!W19/'B5.1.11'!W19 -> 0.3912764364 | X19: ='B5.1.12'!X19/'B5.1.11'!X19 -> 0.3694086843 | Y19: ='B5.1.12'!Y19/'B5.1.11'!Y19 -> 0.3510443491
F20: bez maturity2) | J20: 0.8718025308 | K20: 0.8732629703 | L20: ='B5.1.12'!L20/'B5.1.11'!L20 -> 0.920345349 | M20: ='B5.1.12'!M20/'B5.1.11'!M20 -> 0.9049450828 | N20: ='B5.1.12'!N20/'B5.1.11'!N20 -> 0.933555286 | O20: ='B5.1.12'!O20/'B5.1.11'!O20 -> 0.9437999878 | P20: ='B5.1.12'!P20/'B5.1.11'!P20 -> 0.7467679858 | Q20: ='B5.1.12'!Q20/'B5.1.11'!Q20 -> 0.7957890289 | R20: ='B5.1.12'!R20/'B5.1.11'!R20 -> 0.809795657 | S20: ='B5.1.12'!S20/'B5.1.11'!S20 -> 0.8767079541 | T20: ='B5.1.12'!T20/'B5.1.11'!T20 -> 0.891076273 | U20: ='B5.1.12'!U20/'B5.1.11'!U20 -> 0.8905897174 | V20: ='B5.1.12'!V20/'B5.1.11'!V20 -> 0.884227673 | W20: ='B5.1.12'!W20/'B5.1.11'!W20 -> 0.8920926689 | X20: ='B5.1.12'!X20/'B5.1.11'!X20 -> 0.8926478296 | Y20: ='B5.1.12'!Y20/'B5.1.11'!Y20 -> 0.8902504493
E21: Privátní sektor | J21: x | K21: x | L21: ='B5.1.12'!L21/'B5.1.11'!L21 -> 0.8174946627 | M21: ='B5.1.12'!M21/'B5.1.11'!M21 -> 0.8339202862 | N21: ='B5.1.12'!N21/'B5.1.11'!N21 -> 0.8504772004 | O21: ='B5.1.12'!O21/'B5.1.11'!O21 -> 0.8711668527 | P21: ='B5.1.12'!P21/'B5.1.11'!P21 -> 0.7199040025 | Q21: ='B5.1.12'!Q21/'B5.1.11'!Q21 -> 0.7567134819 | R21: ='B5.1.12'!R21/'B5.1.11'!R21 -> 0.7592935479 | S21: ='B5.1.12'!S21/'B5.1.11'!S21 -> 0.8035619194 | T21: ='B5.1.12'!T21/'B5.1.11'!T21 -> 0.811249324 | U21: ='B5.1.12'!U21/'B5.1.11'!U21 -> 0.8024063718 | V21: ='B5.1.12'!V21/'B5.1.11'!V21 -> 0.7884382233 | W21: ='B5.1.12'!W21/'B5.1.11'!W21 -> 0.7862210311 | X21: ='B5.1.12'!X21/'B5.1.11'!X21 -> 0.7779105126 | Y21: ='B5.1.12'!Y21/'B5.1.11'!Y21 -> 0.7675179072
E22: v tom | F22: střední vzdělávání s maturitní zkouškou | J22: x | K22: x | L22: ='B5.1.12'!L22/'B5.1.11'!L22 -> 0.7978796958 | M22: ='B5.1.12'!M22/'B5.1.11'!M22 -> 0.813733343 | N22: ='B5.1.12'!N22/'B5.1.11'!N22 -> 0.8354526765 | O22: ='B5.1.12'!O22/'B5.1.11'!O22 -> 0.8601652057 | P22: ='B5.1.12'!P22/'B5.1.11'!P22 -> 0.7063532018 | Q22: ='B5.1.12'!Q22/'B5.1.11'!Q22 -> 0.7433750903 | R22: ='B5.1.12'!R22/'B5.1.11'!R22 -> 0.7451485273 | S22: ='B5.1.12'!S22/'B5.1.11'!S22 -> 0.7887222267 | T22: ='B5.1.12'!T22/'B5.1.11'!T22 -> 0.8030857325 | U22: ='B5.1.12'!U22/'B5.1.11'!U22 -> 0.7997624174 | V22: ='B5.1.12'!V22/'B5.1.11'!V22 -> 0.7787077098 | W22: ='B5.1.12'!W22/'B5.1.11'!W22 -> 0.7697807436 | X22: ='B5.1.12'!X22/'B5.1.11'!X22 -> 0.7645350896 | Y22: ='B5.1.12'!Y22/'B5.1.11'!Y22 -> 0.7526744264
G23: z toho víceletá gymnázia | J23: x | K23: x | L23: ='B5.1.12'!L23/'B5.1.11'!L23 -> 0.7224036577 | M23: ='B5.1.12'!M23/'B5.1.11'!M23 -> 0.652052888 | N23: ='B5.1.12'!N23/'B5.1.11'!N23 -> 0.6825741142 | O23: ='B5.1.12'!O23/'B5.1.11'!O23 -> 0.6550079491 | P23: ='B5.1.12'!P23/'B5.1.11'!P23 -> 0.6276958002 | Q23: ='B5.1.12'!Q23/'B5.1.11'!Q23 -> 0.6189881324 | R23: ='B5.1.12'!R23/'B5.1.11'!R23 -> 0.642454955 | S23: ='B5.1.12'!S23/'B5.1.11'!S23 -> 0.7025974026 | T23: ='B5.1.12'!T23/'B5.1.11'!T23 -> 0.6964078795 | U23: ='B5.1.12'!U23/'B5.1.11'!U23 -> 0.6728624535 | V23: ='B5.1.12'!V23/'B5.1.11'!V23 -> 0.6585246702 | W23: ='B5.1.12'!W23/'B5.1.11'!W23 -> 0.6057529611 | X23: ='B5.1.12'!X23/'B5.1.11'!X23 -> 0.5828819068 | Y23: ='B5.1.12'!Y23/'B5.1.11'!Y23 -> 0.5221774194
F24: bez maturity2) | J24: x | K24: x | L24: ='B5.1.12'!L24/'B5.1.11'!L24 -> 0.8766805749 | M24: ='B5.1.12'!M24/'B5.1.11'!M24 -> 0.9006256015 | N24: ='B5.1.12'!N24/'B5.1.11'!N24 -> 0.901848477 | O24: ='B5.1.12'!O24/'B5.1.11'!O24 -> 0.9099554235 | P24: ='B5.1.12'!P24/'B5.1.11'!P24 -> 0.7649916248 | Q24: ='B5.1.12'!Q24/'B5.1.11'!Q24 -> 0.7988582303 | R24: ='B5.1.12'!R24/'B5.1.11'!R24 -> 0.8031128405 | S24: ='B5.1.12'!S24/'B5.1.11'!S24 -> 0.8452864231 | T24: ='B5.1.12'!T24/'B5.1.11'!T24 -> 0.8364888124 | U24: ='B5.1.12'!U24/'B5.1.11'!U24 -> 0.8108171941 | V24: ='B5.1.12'!V24/'B5.1.11'!V24 -> 0.822337534 | W24: ='B5.1.12'!W24/'B5.1.11'!W24 -> 0.841814414 | X24: ='B5.1.12'!X24/'B5.1.11'!X24 -> 0.8218859139 | Y24: ='B5.1.12'!Y24/'B5.1.11'!Y24 -> 0.817624347
E25: Církev | J25: x | K25: x | L25: ='B5.1.12'!L25/'B5.1.11'!L25 -> 0.6935801497 | M25: ='B5.1.12'!M25/'B5.1.11'!M25 -> 0.6846846847 | N25: ='B5.1.12'!N25/'B5.1.11'!N25 -> 0.7393299679 | O25: ='B5.1.12'!O25/'B5.1.11'!O25 -> 0.7255411255 | P25: ='B5.1.12'!P25/'B5.1.11'!P25 -> 0.5673131774 | Q25: ='B5.1.12'!Q25/'B5.1.11'!Q25 -> 0.606590621 | R25: ='B5.1.12'!R25/'B5.1.11'!R25 -> 0.6162974684 | S25: ='B5.1.12'!S25/'B5.1.11'!S25 -> 0.5529965977 | T25: ='B5.1.12'!T25/'B5.1.11'!T25 -> 0.5671401769 | U25: ='B5.1.12'!U25/'B5.1.11'!U25 -> 0.5383155397 | V25: ='B5.1.12'!V25/'B5.1.11'!V25 -> 0.5496938295 | W25: ='B5.1.12'!W25/'B5.1.11'!W25 -> 0.5251131222 | X25: ='B5.1.12'!X25/'B5.1.11'!X25 -> 0.494089317 | Y25: ='B5.1.12'!Y25/'B5.1.11'!Y25 -> 0.4880033382
E26: v tom | F26: střední vzdělávání s maturitní zkouškou | J26: x | K26: x | L26: ='B5.1.12'!L26/'B5.1.11'!L26 -> 0.6781512605 | M26: ='B5.1.12'!M26/'B5.1.11'!M26 -> 0.6674650699 | N26: ='B5.1.12'!N26/'B5.1.11'!N26 -> 0.7227966519 | O26: ='B5.1.12'!O26/'B5.1.11'!O26 -> 0.7129714811 | P26: ='B5.1.12'!P26/'B5.1.11'!P26 -> 0.5433859223 | Q26: ='B5.1.12'!Q26/'B5.1.11'!Q26 -> 0.5950027457 | R26: ='B5.1.12'!R26/'B5.1.11'!R26 -> 0.5957507082 | S26: ='B5.1.12'!S26/'B5.1.11'!S26 -> 0.5278789577 | T26: ='B5.1.12'!T26/'B5.1.11'!T26 -> 0.5463148839 | U26: ='B5.1.12'!U26/'B5.1.11'!U26 -> 0.5171717172 | V26: ='B5.1.12'!V26/'B5.1.11'!V26 -> 0.528202557 | W26: ='B5.1.12'!W26/'B5.1.11'!W26 -> 0.5026215443 | X26: ='B5.1.12'!X26/'B5.1.11'!X26 -> 0.4756744293 | Y26: ='B5.1.12'!Y26/'B5.1.11'!Y26 -> 0.4648968846
G27: z toho víceletá gymnázia | J27: x | K27: x | L27: ='B5.1.12'!L27/'B5.1.11'!L27 -> 0.5842600513 | M27: ='B5.1.12'!M27/'B5.1.11'!M27 -> 0.5927977839 | N27: ='B5.1.12'!N27/'B5.1.11'!N27 -> 0.6120271581 | O27: ='B5.1.12'!O27/'B5.1.11'!O27 -> 0.6251198466 | P27: ='B5.1.12'!P27/'B5.1.11'!P27 -> 0.4601316752 | Q27: ='B5.1.12'!Q27/'B5.1.11'!Q27 -> 0.4649470899 | R27: ='B5.1.12'!R27/'B5.1.11'!R27 -> 0.4554334554 | S27: ='B5.1.12'!S27/'B5.1.11'!S27 -> 0.4071625344 | T27: ='B5.1.12'!T27/'B5.1.11'!T27 -> 0.4200223714 | U27: ='B5.1.12'!U27/'B5.1.11'!U27 -> 0.3985908405 | V27: ='B5.1.12'!V27/'B5.1.11'!V27 -> 0.3887493722 | W27: ='B5.1.12'!W27/'B5.1.11'!W27 -> 0.3775229358 | X27: ='B5.1.12'!X27/'B5.1.11'!X27 -> 0.3543531326 | Y27: ='B5.1.12'!Y27/'B5.1.11'!Y27 -> 0.3220593762
F28: bez maturity2) | J28: x | K28: x | L28: ='B5.1.12'!L28/'B5.1.11'!L28 -> 0.9245283019 | M28: ='B5.1.12'!M28/'B5.1.11'!M28 -> 0.9559748428 | N28: ='B5.1.12'!N28/'B5.1.11'!N28 -> 0.9662162162 | O28: ='B5.1.12'!O28/'B5.1.11'!O28 -> 0.9264705882 | P28: ='B5.1.12'!P28/'B5.1.11'!P28 -> 0.9428571429 | Q28: ='B5.1.12'!Q28/'B5.1.11'!Q28 -> 0.7458745875 | R28: ='B5.1.12'!R28/'B5.1.11'!R28 -> 0.893129771 | S28: ='B5.1.12'!S28/'B5.1.11'!S28 -> 0.9087301587 | T28: ='B5.1.12'!T28/'B5.1.11'!T28 -> 0.8647540984 | U28: ='B5.1.12'!U28/'B5.1.11'!U28 -> 0.8666666667 | V28: ='B5.1.12'!V28/'B5.1.11'!V28 -> 0.8832684825 | W28: ='B5.1.12'!W28/'B5.1.11'!W28 -> 0.9464285714 | X28: ='B5.1.12'!X28/'B5.1.11'!X28 -> 0.8398268398 | Y28: ='B5.1.12'!Y28/'B5.1.11'!Y28 -> 0.9361702128
D29: Komentáře: | Y29: Zdroj: databáze MŠMT
D30: 1) | E30: Data bez nástavbového a zkráceného studia.
D31: 2) | E31: Střední vzdělávání a střední vzdělávání s výučním listem.
D32: 3) | E32: Do školního roku 2008/09 v rámci prvního kola přijímacího řízení mohli žáci podat přihlášku pouze na jednu školu, ve školním roce 2009/10 byl systém přijímacího řízení změněn a žáci mohli podat 3 přihlášky, údaje s minulými léty jsou proto nesrovnatelné.
D33: 4) | E33: Od školního roku 2012/13 v rámci prvního kola přijímacího řízení byl systém přijímacího řízení změněn a žáci si mohli podat pouze 2 přihlášky, údaje s minulými léty jsou proto nesrovnatelné.

Sheet B5.1.14
D4: Tab. B5.1.14: | H4: Střední školy – žáci
B5: 18 | D5: ve školním roce 2008/09 až 2018/19 – podle území a formy vzdělávání
D7: Území Forma vzdělávání | J7: 2003/04 | K7: 2004/05 | L7: 2005/06 | M7: 2006/07 | N7: 2007/08 | O7: 2008/09 | P7: 2009/10 | Q7: 2010/11 | R7: 2011/12 | S7: 2012/13 | T7: 2013/14 | U7: 2014/15 | V7: 2015/16 | W7: 2016/17 | X7: 2017/18 | Y7: 2018/19
D12: Všechny formy vzdělávání
E13: Česká republika | H13: CZ0 | J13: 576615 | K13: 579505 | L13: 577605 | M13: 576585 | N13: 569267 | O13: 564326 | P13: 556260 | Q13: 532918 | R13: 501220 | S13: 470754 | T13: 448792 | U13: 435542 | V13: 427107 | W13: 424849 | X13: 421535 | Y13: 420814
E14: Praha | H14: CZ01 | J14: 78242 | K14: 78276 | L14: 77634 | M14: 77066 | N14: 76078 | O14: 74799 | P14: 73622 | Q14: 70583 | R14: 67213 | S14: 64389 | T14: 62309 | U14: 61189 | V14: 61598 | W14: 63262 | X14: 64060 | Y14: 65022
F15: Hlavní město Praha | H15: CZ010 | J15: 78242 | K15: 78276 | L15: 77634 | M15: 77066 | N15: 76078 | O15: 74799 | P15: 73622 | Q15: 70583 | R15: 67213 | S15: 64389 | T15: 62309 | U15: 61189 | V15: 61598 | W15: 63262 | X15: 64060 | Y15: 65022
E16: Střední Čechy | H16: CZ02 | J16: 49467 | K16: 49512 | L16: 49527 | M16: 50132 | N16: 49932 | O16: 50156 | P16: 49531 | Q16: 48014 | R16: 45391 | S16: 43145 | T16: 41866 | U16: 41138 | V16: 40067 | W16: 39885 | X16: 39468 | Y16: 39506
F17: Středočeský kraj | H17: CZ020 | J17: 49467 | K17: 49512 | L17: 49527 | M17: 50132 | N17: 49932 | O17: 50156 | P17: 49531 | Q17: 48014 | R17: 45391 | S17: 43145 | T17: 41866 | U17: 41138 | V17: 40067 | W17: 39885 | X17: 39468 | Y17: 39506
E18: Jihozápad | H18: CZ03 | J18: 65901 | K18: 65918 | L18: 65870 | M18: 66120 | N18: 64796 | O18: 64294 | P18: 63495 | Q18: 60767 | R18: 57463 | S18: 54102 | T18: 51629 | U18: 50222 | V18: 49335 | W18: 49006 | X18: 48642 | Y18: 48623
F19: Jihočeský kraj | H19: CZ031 | J19: 37313 | K19: 37073 | L19: 36932 | M19: 37112 | N19: 36372 | O19: 36165 | P19: 35553 | Q19: 33952 | R19: 32101 | S19: 30433 | T19: 28972 | U19: 28134 | V19: 27586 | W19: 27076 | X19: 26583 | Y19: 26633
F20: Plzeňský kraj | H20: CZ032 | J20: 28588 | K20: 28845 | L20: 28938 | M20: 29008 | N20: 28424 | O20: 28129 | P20: 27942 | Q20: 26815 | R20: 25362 | S20: 23669 | T20: 22657 | U20: 22088 | V20: 21749 | W20: 21930 | X20: 22059 | Y20: 21990
E21: Severozápad | H21: CZ04 | J21: 62357 | K21: 62870 | L21: 62483 | M21: 61843 | N21: 61095 | O21: 60645 | P21: 60194 | Q21: 58162 | R21: 54208 | S21: 50512 | T21: 47834 | U21: 45717 | V21: 44463 | W21: 43985 | X21: 43131 | Y21: 42692
F22: Karlovarský kraj | H22: CZ041 | J22: 16248 | K22: 16597 | L22: 16378 | M22: 16114 | N22: 15894 | O22: 15703 | P22: 15422 | Q22: 14845 | R22: 13770 | S22: 12650 | T22: 11894 | U22: 11270 | V22: 10989 | W22: 10994 | X22: 10743 | Y22: 10541
F23: Ústecký kraj | H23: CZ042 | J23: 46109 | K23: 46273 | L23: 46105 | M23: 45729 | N23: 45201 | O23: 44942 | P23: 44772 | Q23: 43317 | R23: 40438 | S23: 37862 | T23: 35940 | U23: 34447 | V23: 33474 | W23: 32991 | X23: 32388 | Y23: 32151
E24: Severovýchod | H24: CZ05 | J24: 82089 | K24: 82052 | L24: 81857 | M24: 81579 | N24: 80839 | O24: 80214 | P24: 79239 | Q24: 76435 | R24: 71787 | S24: 67163 | T24: 64058 | U24: 62688 | V24: 61517 | W24: 61180 | X24: 60442 | Y24: 59975
F25: Liberecký kraj | H25: CZ051 | J25: 22574 | K25: 22521 | L25: 22703 | M25: 22483 | N25: 21914 | O25: 21578 | P25: 21321 | Q25: 20376 | R25: 19078 | S25: 17723 | T25: 16873 | U25: 16334 | V25: 15916 | W25: 15699 | X25: 15462 | Y25: 15583
F26: Královéhradecký kraj | H26: CZ052 | J26: 30897 | K26: 31139 | L26: 31052 | M26: 31001 | N26: 31186 | O26: 31215 | P26: 30949 | Q26: 29745 | R26: 28038 | S26: 26370 | T26: 25044 | U26: 24615 | V26: 23881 | W26: 23652 | X26: 23184 | Y26: 22522
F27: Pardubický kraj | H27: CZ053 | J27: 28618 | K27: 28392 | L27: 28102 | M27: 28095 | N27: 27739 | O27: 27421 | P27: 26969 | Q27: 26314 | R27: 24671 | S27: 23070 | T27: 22141 | U27: 21739 | V27: 21720 | W27: 21829 | X27: 21796 | Y27: 21870
E28: Jihovýchod | H28: CZ06 | J28: 96123 | K28: 96669 | L28: 95736 | M28: 95193 | N28: 93577 | O28: 92677 | P28: 91076 | Q28: 86926 | R28: 81894 | S28: 76571 | T28: 72528 | U28: 70151 | V28: 68671 | W28: 67729 | X28: 67194 | Y28: 66942
F29: Kraj Vysočina | H29: CZ063 | J29: 29053 | K29: 29236 | L29: 28767 | M29: 28782 | N29: 28429 | O29: 28344 | P29: 28080 | Q29: 26742 | R29: 25394 | S29: 23933 | T29: 22858 | U29: 22360 | V29: 21976 | W29: 21545 | X29: 21274 | Y29: 21331
F30: Jihomoravský kraj | H30: CZ064 | J30: 67070 | K30: 67433 | L30: 66969 | M30: 66411 | N30: 65148 | O30: 64333 | P30: 62996 | Q30: 60184 | R30: 56500 | S30: 52638 | T30: 49670 | U30: 47791 | V30: 46695 | W30: 46184 | X30: 45920 | Y30: 45611
E31: Střední Morava | H31: CZ07 | J31: 71104 | K31: 71730 | L31: 71530 | M31: 71431 | N31: 70914 | O31: 70203 | P31: 69255 | Q31: 65991 | R31: 61381 | S31: 57304 | T31: 54298 | U31: 52572 | V31: 51588 | W31: 51275 | X31: 50936 | Y31: 50896
F32: Olomoucký kraj | H32: CZ071 | J32: 36267 | K32: 36549 | L32: 36562 | M32: 36723 | N32: 36548 | O32: 36379 | P32: 35981 | Q32: 34482 | R32: 32185 | S32: 30443 | T32: 29130 | U32: 28183 | V32: 27437 | W32: 27158 | X32: 26880 | Y32: 26754
F33: Zlínský kraj | H33: CZ072 | J33: 34837 | K33: 35181 | L33: 34968 | M33: 34708 | N33: 34366 | O33: 33824 | P33: 33274 | Q33: 31509 | R33: 29196 | S33: 26861 | T33: 25168 | U33: 24389 | V33: 24151 | W33: 24117 | X33: 24056 | Y33: 24142
E34: Moravskoslezsko | H34: CZ08 | J34: 71332 | K34: 72478 | L34: 72968 | M34: 73221 | N34: 72036 | O34: 71338 | P34: 69848 | Q34: 66040 | R34: 61883 | S34: 57568 | T34: 54270 | U34: 51865 | V34: 49868 | W34: 48527 | X34: 47662 | Y34: 47158
F35: Moravskoslezský kraj | H35: CZ080 | J35: 71332 | K35: 72478 | L35: 72968 | M35: 73221 | N35: 72036 | O35: 71338 | P35: 69848 | Q35: 66040 | R35: 61883 | S35: 57568 | T35: 54270 | U35: 51865 | V35: 49868 | W35: 48527 | X35: 47662 | Y35: 47158
D36: Denní forma vzdělávání
E37: Česká republika | H37: CZ0 | J37: 542937 | K37: 543587 | L37: 542027 | M37: 541770 | N37: 533940 | O37: 527045 | P37: 519468 | Q37: 496966 | R37: 470347 | S37: 443719 | T37: 423863 | U37: 412532 | V37: 405631 | W37: 404087 | X37: 403018 | Y37: 403957
E38: Praha | H38: CZ01 | J38: 71068 | K38: 71031 | L38: 70817 | M38: 70710 | N38: 69632 | O38: 68473 | P38: 67494 | Q38: 64477 | R38: 61796 | S38: 59128 | T38: 57222 | U38: 56377 | V38: 56901 | W38: 58270 | X38: 59460 | Y38: 60643
F39: Hlavní město Praha | H39: CZ010 | J39: 71068 | K39: 71031 | L39: 70817 | M39: 70710 | N39: 69632 | O39: 68473 | P39: 67494 | Q39: 64477 | R39: 61796 | S39: 59128 | T39: 57222 | U39: 56377 | V39: 56901 | W39: 58270 | X39: 59460 | Y39: 60643
E40: Střední Čechy | H40: CZ02 | J40: 46930 | K40: 46831 | L40: 46810 | M40: 47141 | N40: 46958 | O40: 46783 | P40: 46148 | Q40: 44464 | R40: 42117 | S40: 40222 | T40: 38955 | U40: 38080 | V40: 37534 | W40: 37328 | X40: 37350 | Y40: 37477
F41: Středočeský kraj | H41: CZ020 | J41: 46930 | K41: 46831 | L41: 46810 | M41: 47141 | N41: 46958 | O41: 46783 | P41: 46148 | Q41: 44464 | R41: 42117 | S41: 40222 | T41: 38955 | U41: 38080 | V41: 37534 | W41: 37328 | X41: 37350 | Y41: 37477
E42: Jihozápad | H42: CZ03 | J42: 62184 | K42: 62064 | L42: 62048 | M42: 62413 | N42: 61006 | O42: 60205 | P42: 59565 | Q42: 56908 | R42: 54344 | S42: 51539 | T42: 49271 | U42: 48013 | V42: 47321 | W42: 47206 | X42: 46982 | Y42: 47119
F43: Jihočeský kraj | H43: CZ031 | J43: 35254 | K43: 34988 | L43: 34830 | M43: 34986 | N43: 34158 | O43: 33832 | P43: 33328 | Q43: 31823 | R43: 30323 | S43: 28922 | T43: 27591 | U43: 26857 | V43: 26432 | W43: 26127 | X43: 25822 | Y43: 25939
F44: Plzeňský kraj | H44: CZ032 | J44: 26930 | K44: 27076 | L44: 27218 | M44: 27427 | N44: 26848 | O44: 26373 | P44: 26237 | Q44: 25085 | R44: 24021 | S44: 22617 | T44: 21680 | U44: 21156 | V44: 20889 | W44: 21079 | X44: 21160 | Y44: 21180
E45: Severozápad | H45: CZ04 | J45: 57479 | K45: 57730 | L45: 57489 | M45: 57189 | N45: 56410 | O45: 55823 | P45: 55203 | Q45: 53353 | R45: 50447 | S45: 47323 | T45: 44960 | U45: 43421 | V45: 42364 | W45: 42011 | X45: 41438 | Y45: 41124
F46: Karlovarský kraj | H46: CZ041 | J46: 14929 | K46: 15166 | L46: 15141 | M46: 14962 | N46: 14760 | O46: 14426 | P46: 14198 | Q46: 13711 | R46: 12868 | S46: 11941 | T46: 11312 | U46: 10840 | V46: 10634 | W46: 10615 | X46: 10460 | Y46: 10271
F47: Ústecký kraj | H47: CZ042 | J47: 42550 | K47: 42564 | L47: 42348 | M47: 42227 | N47: 41650 | O47: 41397 | P47: 41005 | Q47: 39642 | R47: 37579 | S47: 35382 | T47: 33648 | U47: 32581 | V47: 31730 | W47: 31396 | X47: 30978 | Y47: 30853
E48: Severovýchod | H48: CZ05 | J48: 78464 | K48: 78174 | L48: 77708 | M48: 77483 | N48: 76614 | O48: 75747 | P48: 74999 | Q48: 72391 | R48: 68348 | S48: 64313 | T48: 61526 | U48: 60360 | V48: 59253 | W48: 59018 | X48: 58540 | Y48: 58206
F49: Liberecký kraj | H49: CZ051 | J49: 21686 | K49: 21497 | L49: 21487 | M49: 21375 | N49: 20656 | O49: 20203 | P49: 19853 | Q49: 19049 | R49: 17992 | S49: 16889 | T49: 16192 | U49: 15808 | V49: 15409 | W49: 15184 | X49: 15042 | Y49: 15195
F50: Královéhradecký kraj | H50: CZ052 | J50: 29440 | K50: 29707 | L50: 29538 | M50: 29504 | N50: 29684 | O50: 29551 | P50: 29433 | Q50: 28429 | R50: 26962 | S50: 25459 | T50: 24197 | U50: 23732 | V50: 23120 | W50: 23008 | X50: 22696 | Y50: 22069
F51: Pardubický kraj | H51: CZ053 | J51: 27338 | K51: 26970 | L51: 26683 | M51: 26604 | N51: 26274 | O51: 25993 | P51: 25713 | Q51: 24913 | R51: 23394 | S51: 21965 | T51: 21137 | U51: 20820 | V51: 20724 | W51: 20826 | X51: 20802 | Y51: 20942
E52: Jihovýchod | H52: CZ06 | J52: 91409 | K52: 91277 | L52: 90475 | M52: 90130 | N52: 88862 | O52: 87840 | P52: 86587 | Q52: 82515 | R52: 77945 | S52: 72973 | T52: 69090 | U52: 66805 | V52: 65346 | W52: 64566 | X52: 64289 | Y52: 64403
F53: Kraj Vysočina | H53: CZ063 | J53: 27577 | K53: 27475 | L53: 27172 | M53: 27271 | N53: 27064 | O53: 26826 | P53: 26629 | Q53: 25296 | R53: 24085 | S53: 22640 | T53: 21481 | U53: 20756 | V53: 20343 | W53: 19900 | X53: 19673 | Y53: 19796
F54: Jihomoravský kraj | H54: CZ064 | J54: 63832 | K54: 63802 | L54: 63303 | M54: 62859 | N54: 61798 | O54: 61014 | P54: 59958 | Q54: 57219 | R54: 53860 | S54: 50333 | T54: 47609 | U54: 46049 | V54: 45003 | W54: 44666 | X54: 44616 | Y54: 44607
E55: Střední Morava | H55: CZ07 | J55: 68256 | K55: 68533 | L55: 68384 | M55: 68238 | N55: 67311 | O55: 66219 | P55: 65153 | Q55: 62169 | R55: 58322 | S55: 54661 | T55: 51968 | U55: 50539 | V55: 49677 | W55: 49440 | X55: 49247 | Y55: 49345
F56: Olomoucký kraj | H56: CZ071 | J56: 34718 | K56: 34882 | L56: 35010 | M56: 35091 | N56: 34639 | O56: 34201 | P56: 33695 | Q56: 32317 | R56: 30396 | S56: 28836 | T56: 27744 | U56: 27024 | V56: 26303 | W56: 26094 | X56: 25940 | Y56: 25976
F57: Zlínský kraj | H57: CZ072 | J57: 33538 | K57: 33651 | L57: 33374 | M57: 33147 | N57: 32672 | O57: 32018 | P57: 31458 | Q57: 29852 | R57: 27926 | S57: 25825 | T57: 24224 | U57: 23515 | V57: 23374 | W57: 23346 | X57: 23307 | Y57: 23369
E58: Moravskoslezsko | H58: CZ08 | J58: 67147 | K58: 67947 | L58: 68296 | M58: 68466 | N58: 67147 | O58: 65955 | P58: 64319 | Q58: 60689 | R58: 57028 | S58: 53560 | T58: 50871 | U58: 48937 | V58: 47235 | W58: 46248 | X58: 45712 | Y58: 45640
F59: Moravskoslezský kraj | H59: CZ080 | J59: 67147 | K59: 67947 | L59: 68296 | M59: 68466 | N59: 67147 | O59: 65955 | P59: 64319 | Q59: 60689 | R59: 57028 | S59: 53560 | T59: 50871 | U59: 48937 | V59: 47235 | W59: 46248 | X59: 45712 | Y59: 45640
D60: Ostatní formy vzdělávání
E61: Česká republika | H61: CZ0 | J61: 33678 | K61: 35918 | L61: 35578 | M61: 34815 | N61: 35327 | O61: 37281 | P61: 36792 | Q61: 35952 | R61: 30873 | S61: 27035 | T61: 24929 | U61: 23010 | V61: 21476 | W61: 20762 | X61: 18517 | Y61: 16857
E62: Praha | H62: CZ01 | J62: 7174 | K62: 7245 | L62: 6817 | M62: 6356 | N62: 6446 | O62: 6326 | P62: 6128 | Q62: 6106 | R62: 5417 | S62: 5261 | T62: 5087 | U62: 4812 | V62: 4697 | W62: 4992 | X62: 4600 | Y62: 4379
F63: Hlavní město Praha | H63: CZ010 | J63: 7174 | K63: 7245 | L63: 6817 | M63: 6356 | N63: 6446 | O63: 6326 | P63: 6128 | Q63: 6106 | R63: 5417 | S63: 5261 | T63: 5087 | U63: 4812 | V63: 4697 | W63: 4992 | X63: 4600 | Y63: 4379
E64: Střední Čechy | H64: CZ02 | J64: 2537 | K64: 2681 | L64: 2717 | M64: 2991 | N64: 2974 | O64: 3373 | P64: 3383 | Q64: 3550 | R64: 3274 | S64: 2923 | T64: 2911 | U64: 3058 | V64: 2533 | W64: 2557 | X64: 2118 | Y64: 2029
F65: Středočeský kraj | H65: CZ020 | J65: 2537 | K65: 2681 | L65: 2717 | M65: 2991 | N65: 2974 | O65: 3373 | P65: 3383 | Q65: 3550 | R65: 3274 | S65: 2923 | T65: 2911 | U65: 3058 | V65: 2533 | W65: 2557 | X65: 2118 | Y65: 2029
E66: Jihozápad | H66: CZ03 | J66: 3717 | K66: 3854 | L66: 3822 | M66: 3707 | N66: 3790 | O66: 4089 | P66: 3930 | Q66: 3859 | R66: 3119 | S66: 2563 | T66: 2358 | U66: 2209 | V66: 2014 | W66: 1800 | X66: 1660 | Y66: 1504
F67: Jihočeský kraj | H67: CZ031 | J67: 2059 | K67: 2085 | L67: 2102 | M67: 2126 | N67: 2214 | O67: 2333 | P67: 2225 | Q67: 2129 | R67: 1778 | S67: 1511 | T67: 1381 | U67: 1277 | V67: 1154 | W67: 949 | X67: 761 | Y67: 694
F68: Plzeňský kraj | H68: CZ032 | J68: 1658 | K68: 1769 | L68: 1720 | M68: 1581 | N68: 1576 | O68: 1756 | P68: 1705 | Q68: 1730 | R68: 1341 | S68: 1052 | T68: 977 | U68: 932 | V68: 860 | W68: 851 | X68: 899 | Y68: 810
E69: Severozápad | H69: CZ04 | J69: 4878 | K69: 5140 | L69: 4994 | M69: 4654 | N69: 4685 | O69: 4822 | P69: 4991 | Q69: 4809 | R69: 3761 | S69: 3189 | T69: 2874 | U69: 2296 | V69: 2099 | W69: 1974 | X69: 1693 | Y69: 1568
F70: Karlovarský kraj | H70: CZ041 | J70: 1319 | K70: 1431 | L70: 1237 | M70: 1152 | N70: 1134 | O70: 1277 | P70: 1224 | Q70: 1134 | R70: 902 | S70: 709 | T70: 582 | U70: 430 | V70: 355 | W70: 379 | X70: 283 | Y70: 270
F71: Ústecký kraj | H71: CZ042 | J71: 3559 | K71: 3709 | L71: 3757 | M71: 3502 | N71: 3551 | O71: 3545 | P71: 3767 | Q71: 3675 | R71: 2859 | S71: 2480 | T71: 2292 | U71: 1866 | V71: 1744 | W71: 1595 | X71: 1410 | Y71: 1298
E72: Severovýchod | H72: CZ05 | J72: 3625 | K72: 3878 | L72: 4149 | M72: 4096 | N72: 4225 | O72: 4467 | P72: 4240 | Q72: 4044 | R72: 3439 | S72: 2850 | T72: 2532 | U72: 2328 | V72: 2264 | W72: 2162 | X72: 1902 | Y72: 1769
F73: Liberecký kraj | H73: CZ051 | J73: 888 | K73: 1024 | L73: 1216 | M73: 1108 | N73: 1258 | O73: 1375 | P73: 1468 | Q73: 1327 | R73: 1086 | S73: 834 | T73: 681 | U73: 526 | V73: 507 | W73: 515 | X73: 420 | Y73: 388
F74: Královéhradecký kraj | H74: CZ052 | J74: 1457 | K74: 1432 | L74: 1514 | M74: 1497 | N74: 1502 | O74: 1664 | P74: 1516 | Q74: 1316 | R74: 1076 | S74: 911 | T74: 847 | U74: 883 | V74: 761 | W74: 644 | X74: 488 | Y74: 453
F75: Pardubický kraj | H75: CZ053 | J75: 1280 | K75: 1422 | L75: 1419 | M75: 1491 | N75: 1465 | O75: 1428 | P75: 1256 | Q75: 1401 | R75: 1277 | S75: 1105 | T75: 1004 | U75: 919 | V75: 996 | W75: 1003 | X75: 994 | Y75: 928
E76: Jihovýchod | H76: CZ06 | J76: 4714 | K76: 5392 | L76: 5261 | M76: 5063 | N76: 4715 | O76: 4837 | P76: 4489 | Q76: 4411 | R76: 3949 | S76: 3598 | T76: 3438 | U76: 3346 | V76: 3325 | W76: 3163 | X76: 2905 | Y76: 2539
F77: Kraj Vysočina | H77: CZ063 | J77: 1476 | K77: 1761 | L77: 1595 | M77: 1511 | N77: 1365 | O77: 1518 | P77: 1451 | Q77: 1446 | R77: 1309 | S77: 1293 | T77: 1377 | U77: 1604 | V77: 1633 | W77: 1645 | X77: 1601 | Y77: 1535
F78: Jihomoravský kraj | H78: CZ064 | J78: 3238 | K78: 3631 | L78: 3666 | M78: 3552 | N78: 3350 | O78: 3319 | P78: 3038 | Q78: 2965 | R78: 2640 | S78: 2305 | T78: 2061 | U78: 1742 | V78: 1692 | W78: 1518 | X78: 1304 | Y78: 1004
E79: Střední Morava | H79: CZ07 | J79: 2848 | K79: 3197 | L79: 3146 | M79: 3193 | N79: 3603 | O79: 3984 | P79: 4102 | Q79: 3822 | R79: 3059 | S79: 2643 | T79: 2330 | U79: 2033 | V79: 1911 | W79: 1835 | X79: 1689 | Y79: 1551
F80: Olomoucký kraj | H80: CZ071 | J80: 1549 | K80: 1667 | L80: 1552 | M80: 1632 | N80: 1909 | O80: 2178 | P80: 2286 | Q80: 2165 | R80: 1789 | S80: 1607 | T80: 1386 | U80: 1159 | V80: 1134 | W80: 1064 | X80: 940 | Y80: 778
F81: Zlínský kraj | H81: CZ072 | J81: 1299 | K81: 1530 | L81: 1594 | M81: 1561 | N81: 1694 | O81: 1806 | P81: 1816 | Q81: 1657 | R81: 1270 | S81: 1036 | T81: 944 | U81: 874 | V81: 777 | W81: 771 | X81: 749 | Y81: 773
E82: Moravskoslezsko | H82: CZ08 | J82: 4185 | K82: 4531 | L82: 4672 | M82: 4755 | N82: 4889 | O82: 5383 | P82: 5529 | Q82: 5351 | R82: 4855 | S82: 4008 | T82: 3399 | U82: 2928 | V82: 2633 | W82: 2279 | X82: 1950 | Y82: 1518
F83: Moravskoslezský kraj | H83: CZ080 | J83: 4185 | K83: 4531 | L83: 4672 | M83: 4755 | N83: 4889 | O83: 5383 | P83: 5529 | Q83: 5351 | R83: 4855 | S83: 4008 | T83: 3399 | U83: 2928 | V83: 2633 | W83: 2279 | X83: 1950 | Y83: 1518
Y84: Zdroj: databáze MŠMT

Sheet B5.1.15
D4: Tab. B5.1.15: | H4: Střední školy – nově přijatí
B5: 18 | D5: ve školním roce 2008/09 až 2018/19 – podle území a formy vzdělávání
D7: Území Forma vzdělávání | J7: 2003/04 | K7: 2004/05 | L7: 2005/06 | M7: 2006/07 | N7: 2007/08 | O7: 2008/09 | P7: 2009/10 | Q7: 2010/11 | R7: 2011/12 | S7: 2012/13 | T7: 2013/14 | U7: 2014/15 | V7: 2015/16 | W7: 2016/17 | X7: 2017/18 | Y7: 2018/19
D12: Všechny formy vzdělávání
E13: Česká republika | H13: CZ0 | J13: 168873 | K13: 167054 | L13: 162804 | M13: 166019 | N13: 160978 | O13: 158824 | P13: 153897 | Q13: 138874 | R13: 128453 | S13: 121583 | T13: 120053 | U13: 117725 | V13: 116077 | W13: 115617 | X13: 114041 | Y13: 113513
E14: Praha | H14: CZ01 | J14: 21991 | K14: 21553 | L14: 20847 | M14: 21182 | N14: 20449 | O14: 20013 | P14: 19445 | Q14: 17953 | R14: 16652 | S14: 16118 | T14: 15876 | U14: 15919 | V14: 16508 | W14: 17030 | X14: 17006 | Y14: 16928
F15: Hlavní město Praha | H15: CZ010 | J15: 21991 | K15: 21553 | L15: 20847 | M15: 21182 | N15: 20449 | O15: 20013 | P15: 19445 | Q15: 17953 | R15: 16652 | S15: 16118 | T15: 15876 | U15: 15919 | V15: 16508 | W15: 17030 | X15: 17006 | Y15: 16928
E16: Střední Čechy | H16: CZ02 | J16: 14276 | K16: 14190 | L16: 14079 | M16: 14847 | N16: 14423 | O16: 14609 | P16: 13793 | Q16: 12910 | R16: 11966 | S16: 11749 | T16: 11868 | U16: 11680 | V16: 10887 | W16: 10939 | X16: 10986 | Y16: 10960
F17: Středočeský kraj | H17: CZ020 | J17: 14276 | K17: 14190 | L17: 14079 | M17: 14847 | N17: 14423 | O17: 14609 | P17: 13793 | Q17: 12910 | R17: 11966 | S17: 11749 | T17: 11868 | U17: 11680 | V17: 10887 | W17: 10939 | X17: 10986 | Y17: 10960
E18: Jihozápad | H18: CZ03 | J18: 19494 | K18: 18889 | L18: 18876 | M18: 19285 | N18: 18199 | O18: 18231 | P18: 17927 | Q18: 15966 | R18: 14752 | S18: 14062 | T18: 13750 | U18: 13701 | V18: 13253 | W18: 13364 | X18: 13068 | Y18: 13160
F19: Jihočeský kraj | H19: CZ031 | J19: 10953 | K19: 10375 | L19: 10399 | M19: 10781 | N19: 10196 | O19: 10176 | P19: 9872 | Q19: 8853 | R19: 8286 | S19: 8004 | T19: 7719 | U19: 7534 | V19: 7357 | W19: 7205 | X19: 7060 | Y19: 7173
F20: Plzeňský kraj | H20: CZ032 | J20: 8541 | K20: 8514 | L20: 8477 | M20: 8504 | N20: 8003 | O20: 8055 | P20: 8055 | Q20: 7113 | R20: 6466 | S20: 6058 | T20: 6031 | U20: 6167 | V20: 5896 | W20: 6159 | X20: 6008 | Y20: 5987
E21: Severozápad | H21: CZ04 | J21: 19600 | K21: 19476 | L21: 18935 | M21: 19150 | N21: 18525 | O21: 18330 | P21: 17820 | Q21: 16323 | R21: 14562 | S21: 13512 | T21: 13267 | U21: 12604 | V21: 12502 | W21: 12573 | X21: 12096 | Y21: 11773
F22: Karlovarský kraj | H22: CZ041 | J22: 5209 | K22: 5257 | L22: 4870 | M22: 4976 | N22: 4847 | O22: 4667 | P22: 4585 | Q22: 4208 | R22: 3592 | S22: 3180 | T22: 3226 | U22: 2992 | V22: 2972 | W22: 3055 | X22: 2922 | Y22: 2683
F23: Ústecký kraj | H23: CZ042 | J23: 14391 | K23: 14219 | L23: 14065 | M23: 14174 | N23: 13678 | O23: 13663 | P23: 13235 | Q23: 12115 | R23: 10970 | S23: 10332 | T23: 10041 | U23: 9612 | V23: 9530 | W23: 9518 | X23: 9174 | Y23: 9090
E24: Severovýchod | H24: CZ05 | J24: 23994 | K24: 23465 | L24: 22684 | M24: 23219 | N24: 22993 | O24: 22399 | P24: 21729 | Q24: 19528 | R24: 18390 | S24: 17105 | T24: 16999 | U24: 16869 | V24: 16646 | W24: 16471 | X24: 16137 | Y24: 16024
F25: Liberecký kraj | H25: CZ051 | J25: 7144 | K25: 6785 | L25: 6832 | M25: 6650 | N25: 6422 | O25: 6274 | P25: 6056 | Q25: 5423 | R25: 5069 | S25: 4690 | T25: 4498 | U25: 4397 | V25: 4369 | W25: 4347 | X25: 4281 | Y25: 4485
F26: Královéhradecký kraj | H26: CZ052 | J26: 8764 | K26: 8806 | L26: 8396 | M26: 8832 | N26: 8943 | O26: 8680 | P26: 8526 | Q26: 7414 | R26: 7187 | S26: 6682 | T26: 6701 | U26: 6634 | V26: 6316 | W26: 6276 | X26: 5974 | Y26: 5726
F27: Pardubický kraj | H27: CZ053 | J27: 8086 | K27: 7874 | L27: 7456 | M27: 7737 | N27: 7628 | O27: 7445 | P27: 7147 | Q27: 6691 | R27: 6134 | S27: 5733 | T27: 5800 | U27: 5838 | V27: 5961 | W27: 5848 | X27: 5882 | Y27: 5813
E28: Jihovýchod | H28: CZ06 | J28: 27596 | K28: 27357 | L28: 26239 | M28: 26595 | N28: 25774 | O28: 25470 | P28: 24769 | Q28: 22062 | R28: 20714 | S28: 19312 | T28: 19257 | U28: 18961 | V28: 18572 | W28: 18202 | X28: 18065 | Y28: 18217
F29: Kraj Vysočina | H29: CZ063 | J29: 8329 | K29: 8333 | L29: 7947 | M29: 8180 | N29: 7856 | O29: 7885 | P29: 7765 | Q29: 6812 | R29: 6554 | S29: 6154 | T29: 6099 | U29: 6030 | V29: 5759 | W29: 5730 | X29: 5628 | Y29: 5753
F30: Jihomoravský kraj | H30: CZ064 | J30: 19267 | K30: 19024 | L30: 18292 | M30: 18415 | N30: 17918 | O30: 17585 | P30: 17004 | Q30: 15250 | R30: 14160 | S30: 13158 | T30: 13158 | U30: 12931 | V30: 12813 | W30: 12472 | X30: 12437 | Y30: 12464
E31: Střední Morava | H31: CZ07 | J31: 20586 | K31: 20708 | L31: 20138 | M31: 20372 | N31: 20206 | O31: 19601 | P31: 18991 | Q31: 16738 | R31: 15307 | S31: 14632 | T31: 14392 | U31: 14047 | V31: 13837 | W31: 13791 | X31: 13565 | Y31: 13615
F32: Olomoucký kraj | H32: CZ071 | J32: 10413 | K32: 10587 | L32: 10344 | M32: 10393 | N32: 10408 | O32: 10167 | P32: 9923 | Q32: 8913 | R32: 8226 | S32: 7945 | T32: 7778 | U32: 7442 | V32: 7297 | W32: 7320 | X32: 7167 | Y32: 7144
F33: Zlínský kraj | H33: CZ072 | J33: 10173 | K33: 10121 | L33: 9794 | M33: 9979 | N33: 9798 | O33: 9434 | P33: 9068 | Q33: 7825 | R33: 7081 | S33: 6687 | T33: 6614 | U33: 6605 | V33: 6540 | W33: 6471 | X33: 6398 | Y33: 6471
E34: Moravskoslezsko | H34: CZ08 | J34: 21336 | K34: 21416 | L34: 21006 | M34: 21369 | N34: 20409 | O34: 20171 | P34: 19423 | Q34: 17394 | R34: 16110 | S34: 15093 | T34: 14644 | U34: 13944 | V34: 13872 | W34: 13247 | X34: 13118 | Y34: 12836
F35: Moravskoslezský kraj | H35: CZ080 | J35: 21336 | K35: 21416 | L35: 21006 | M35: 21369 | N35: 20409 | O35: 20171 | P35: 19423 | Q35: 17394 | R35: 16110 | S35: 15093 | T35: 14644 | U35: 13944 | V35: 13872 | W35: 13247 | X35: 13118 | Y35: 12836
D36: Denní forma vzdělávání
E37: Česká republika | H37: CZ0 | J37: 153922 | K37: 151803 | L37: 149565 | M37: 152124 | N37: 146147 | O37: 143046 | P37: 139620 | Q37: 124751 | R37: 117525 | S37: 111927 | T37: 110402 | U37: 109105 | V37: 108053 | W37: 107399 | X37: 107316 | Y37: 107509
E38: Praha | H38: CZ01 | J38: 19289 | K38: 18875 | L38: 18631 | M38: 18973 | N38: 18078 | O38: 17677 | P38: 17225 | Q38: 15622 | R38: 14811 | S38: 14250 | T38: 14166 | U38: 14239 | V38: 14841 | W38: 15125 | X38: 15313 | Y38: 15336
F39: Hlavní město Praha | H39: CZ010 | J39: 19289 | K39: 18875 | L39: 18631 | M39: 18973 | N39: 18078 | O39: 17677 | P39: 17225 | Q39: 15622 | R39: 14811 | S39: 14250 | T39: 14166 | U39: 14239 | V39: 14841 | W39: 15125 | X39: 15313 | Y39: 15336
E40: Střední Čechy | H40: CZ02 | J40: 13176 | K40: 13031 | L40: 12969 | M40: 13484 | N40: 13151 | O40: 13005 | P40: 12452 | Q40: 11458 | R40: 10662 | S40: 10522 | T40: 10525 | U40: 10360 | V40: 9822 | W40: 9944 | X40: 10080 | Y40: 10166
F41: Středočeský kraj | H41: CZ020 | J41: 13176 | K41: 13031 | L41: 12969 | M41: 13484 | N41: 13151 | O41: 13005 | P41: 12452 | Q41: 11458 | R41: 10662 | S41: 10522 | T41: 10525 | U41: 10360 | V41: 9822 | W41: 9944 | X41: 10080 | Y41: 10166
E42: Jihozápad | H42: CZ03 | J42: 17761 | K42: 17179 | L42: 17292 | M42: 17655 | N42: 16439 | O42: 16424 | P42: 16306 | Q42: 14363 | R42: 13656 | S42: 13076 | T42: 12767 | U42: 12795 | V42: 12482 | W42: 12605 | X42: 12343 | Y42: 12649
F43: Jihočeský kraj | H43: CZ031 | J43: 9918 | K43: 9416 | L43: 9544 | M43: 9794 | N43: 9117 | O43: 9150 | P43: 8981 | Q43: 7989 | R43: 7627 | S43: 7385 | T43: 7173 | U43: 7033 | V43: 6935 | W43: 6868 | X43: 6761 | Y43: 6945
F44: Plzeňský kraj | H44: CZ032 | J44: 7843 | K44: 7763 | L44: 7748 | M44: 7861 | N44: 7322 | O44: 7274 | P44: 7325 | Q44: 6374 | R44: 6029 | S44: 5691 | T44: 5594 | U44: 5762 | V44: 5547 | W44: 5737 | X44: 5582 | Y44: 5704
E45: Severozápad | H45: CZ04 | J45: 17432 | K45: 17339 | L45: 17090 | M45: 17304 | N45: 16633 | O45: 16298 | P45: 15756 | Q45: 14396 | R45: 13284 | S45: 12454 | T45: 12126 | U45: 11863 | V45: 11749 | W45: 11645 | X45: 11571 | Y45: 11177
F46: Karlovarský kraj | H46: CZ041 | J46: 4548 | K46: 4641 | L46: 4457 | M46: 4467 | N46: 4379 | O46: 4112 | P46: 4092 | Q46: 3761 | R46: 3297 | S46: 2982 | T46: 3013 | U46: 2879 | V46: 2871 | W46: 2854 | X46: 2875 | Y46: 2607
F47: Ústecký kraj | H47: CZ042 | J47: 12884 | K47: 12698 | L47: 12633 | M47: 12837 | N47: 12254 | O47: 12186 | P47: 11664 | Q47: 10635 | R47: 9987 | S47: 9472 | T47: 9113 | U47: 8984 | V47: 8878 | W47: 8791 | X47: 8696 | Y47: 8570
E48: Severovýchod | H48: CZ05 | J48: 22355 | K48: 21777 | L48: 21101 | M48: 21523 | N48: 21168 | O48: 20491 | P48: 20203 | Q48: 18035 | R48: 17179 | S48: 16236 | T48: 16083 | U48: 16059 | V48: 15919 | W48: 15637 | X48: 15568 | Y48: 15419
F49: Liberecký kraj | H49: CZ051 | J49: 6654 | K49: 6281 | L49: 6278 | M49: 6210 | N49: 5754 | O49: 5599 | P49: 5434 | Q49: 4920 | R49: 4660 | S49: 4453 | T49: 4237 | U49: 4205 | V49: 4200 | W49: 4112 | X49: 4114 | Y49: 4343
F50: Královéhradecký kraj | H50: CZ052 | J50: 8105 | K50: 8252 | L50: 7846 | M50: 8177 | N50: 8323 | O50: 8012 | P50: 8022 | Q50: 6969 | R50: 6847 | S50: 6351 | T50: 6314 | U50: 6315 | V50: 6103 | W50: 6013 | X50: 5878 | Y50: 5575
F51: Pardubický kraj | H51: CZ053 | J51: 7596 | K51: 7244 | L51: 6977 | M51: 7136 | N51: 7091 | O51: 6880 | P51: 6747 | Q51: 6146 | R51: 5672 | S51: 5432 | T51: 5532 | U51: 5539 | V51: 5616 | W51: 5512 | X51: 5576 | Y51: 5501
E52: Jihovýchod | H52: CZ06 | J52: 25245 | K52: 24885 | L52: 24316 | M52: 24668 | N52: 23897 | O52: 23464 | P52: 23008 | Q52: 20237 | R52: 19219 | S52: 18043 | T52: 17888 | U52: 17675 | V52: 17295 | W52: 16975 | X52: 17085 | Y52: 17342
F53: Kraj Vysočina | H53: CZ063 | J53: 7570 | K53: 7428 | L53: 7360 | M53: 7552 | N53: 7229 | O53: 7229 | P53: 7129 | Q53: 6116 | R53: 6038 | S53: 5622 | T53: 5489 | U53: 5332 | V53: 5143 | W53: 5041 | X53: 5054 | Y53: 5171
F54: Jihomoravský kraj | H54: CZ064 | J54: 17675 | K54: 17457 | L54: 16956 | M54: 17116 | N54: 16668 | O54: 16235 | P54: 15879 | Q54: 14121 | R54: 13181 | S54: 12421 | T54: 12399 | U54: 12343 | V54: 12152 | W54: 11934 | X54: 12031 | Y54: 12171
E55: Střední Morava | H55: CZ07 | J55: 19240 | K55: 19226 | L55: 18970 | M55: 19040 | N55: 18482 | O55: 17867 | P55: 17451 | Q55: 15392 | R55: 14341 | S55: 13726 | T55: 13454 | U55: 13299 | V55: 13144 | W55: 13081 | X55: 12921 | Y55: 13097
F56: Olomoucký kraj | H56: CZ071 | J56: 9699 | K56: 9833 | L56: 9775 | M56: 9730 | N56: 9492 | O56: 9243 | P56: 9101 | Q56: 8174 | R56: 7642 | S56: 7382 | T56: 7271 | U56: 7075 | V56: 6826 | W56: 6906 | X56: 6860 | Y56: 6908
F57: Zlínský kraj | H57: CZ072 | J57: 9541 | K57: 9393 | L57: 9195 | M57: 9310 | N57: 8990 | O57: 8624 | P57: 8350 | Q57: 7218 | R57: 6699 | S57: 6344 | T57: 6183 | U57: 6224 | V57: 6318 | W57: 6175 | X57: 6061 | Y57: 6189
E58: Moravskoslezsko | H58: CZ08 | J58: 19424 | K58: 19491 | L58: 19196 | M58: 19477 | N58: 18299 | O58: 17820 | P58: 17219 | Q58: 15248 | R58: 14373 | S58: 13620 | T58: 13393 | U58: 12815 | V58: 12801 | W58: 12387 | X58: 12435 | Y58: 12323
F59: Moravskoslezský kraj | H59: CZ080 | J59: 19424 | K59: 19491 | L59: 19196 | M59: 19477 | N59: 18299 | O59: 17820 | P59: 17219 | Q59: 15248 | R59: 14373 | S59: 13620 | T59: 13393 | U59: 12815 | V59: 12801 | W59: 12387 | X59: 12435 | Y59: 12323
D60: Ostatní formy vzdělávání
E61: Česká republika | H61: CZ0 | J61: 14951 | K61: 15251 | L61: 13239 | M61: 13895 | N61: 14831 | O61: 15778 | P61: 14277 | Q61: 14123 | R61: 10928 | S61: 9656 | T61: 9651 | U61: 8620 | V61: 8024 | W61: 8218 | X61: 6725 | Y61: 6004
E62: Praha | H62: CZ01 | J62: 2702 | K62: 2678 | L62: 2216 | M62: 2209 | N62: 2371 | O62: 2336 | P62: 2220 | Q62: 2331 | R62: 1841 | S62: 1868 | T62: 1710 | U62: 1680 | V62: 1667 | W62: 1905 | X62: 1693 | Y62: 1592
F63: Hlavní město Praha | H63: CZ010 | J63: 2702 | K63: 2678 | L63: 2216 | M63: 2209 | N63: 2371 | O63: 2336 | P63: 2220 | Q63: 2331 | R63: 1841 | S63: 1868 | T63: 1710 | U63: 1680 | V63: 1667 | W63: 1905 | X63: 1693 | Y63: 1592
E64: Střední Čechy | H64: CZ02 | J64: 1100 | K64: 1159 | L64: 1110 | M64: 1363 | N64: 1272 | O64: 1604 | P64: 1341 | Q64: 1452 | R64: 1304 | S64: 1227 | T64: 1343 | U64: 1320 | V64: 1065 | W64: 995 | X64: 906 | Y64: 794
F65: Středočeský kraj | H65: CZ020 | J65: 1100 | K65: 1159 | L65: 1110 | M65: 1363 | N65: 1272 | O65: 1604 | P65: 1341 | Q65: 1452 | R65: 1304 | S65: 1227 | T65: 1343 | U65: 1320 | V65: 1065 | W65: 995 | X65: 906 | Y65: 794
E66: Jihozápad | H66: CZ03 | J66: 1733 | K66: 1710 | L66: 1584 | M66: 1630 | N66: 1760 | O66: 1807 | P66: 1621 | Q66: 1603 | R66: 1096 | S66: 986 | T66: 983 | U66: 906 | V66: 771 | W66: 759 | X66: 725 | Y66: 511
F67: Jihočeský kraj | H67: CZ031 | J67: 1035 | K67: 959 | L67: 855 | M67: 987 | N67: 1079 | O67: 1026 | P67: 891 | Q67: 864 | R67: 659 | S67: 619 | T67: 546 | U67: 501 | V67: 422 | W67: 337 | X67: 299 | Y67: 228
F68: Plzeňský kraj | H68: CZ032 | J68: 698 | K68: 751 | L68: 729 | M68: 643 | N68: 681 | O68: 781 | P68: 730 | Q68: 739 | R68: 437 | S68: 367 | T68: 437 | U68: 405 | V68: 349 | W68: 422 | X68: 426 | Y68: 283
E69: Severozápad | H69: CZ04 | J69: 2168 | K69: 2137 | L69: 1845 | M69: 1846 | N69: 1892 | O69: 2032 | P69: 2064 | Q69: 1927 | R69: 1278 | S69: 1058 | T69: 1141 | U69: 741 | V69: 753 | W69: 928 | X69: 525 | Y69: 596
F70: Karlovarský kraj | H70: CZ041 | J70: 661 | K70: 616 | L70: 413 | M70: 509 | N70: 468 | O70: 555 | P70: 493 | Q70: 447 | R70: 295 | S70: 198 | T70: 213 | U70: 113 | V70: 101 | W70: 201 | X70: 47 | Y70: 76
F71: Ústecký kraj | H71: CZ042 | J71: 1507 | K71: 1521 | L71: 1432 | M71: 1337 | N71: 1424 | O71: 1477 | P71: 1571 | Q71: 1480 | R71: 983 | S71: 860 | T71: 928 | U71: 628 | V71: 652 | W71: 727 | X71: 478 | Y71: 520
E72: Severovýchod | H72: CZ05 | J72: 1639 | K72: 1688 | L72: 1583 | M72: 1696 | N72: 1825 | O72: 1908 | P72: 1526 | Q72: 1493 | R72: 1211 | S72: 869 | T72: 916 | U72: 810 | V72: 727 | W72: 834 | X72: 569 | Y72: 605
F73: Liberecký kraj | H73: CZ051 | J73: 490 | K73: 504 | L73: 554 | M73: 440 | N73: 668 | O73: 675 | P73: 622 | Q73: 503 | R73: 409 | S73: 237 | T73: 261 | U73: 192 | V73: 169 | W73: 235 | X73: 167 | Y73: 142
F74: Královéhradecký kraj | H74: CZ052 | J74: 659 | K74: 554 | L74: 550 | M74: 655 | N74: 620 | O74: 668 | P74: 504 | Q74: 445 | R74: 340 | S74: 331 | T74: 387 | U74: 319 | V74: 213 | W74: 263 | X74: 96 | Y74: 151
F75: Pardubický kraj | H75: CZ053 | J75: 490 | K75: 630 | L75: 479 | M75: 601 | N75: 537 | O75: 565 | P75: 400 | Q75: 545 | R75: 462 | S75: 301 | T75: 268 | U75: 299 | V75: 345 | W75: 336 | X75: 306 | Y75: 312
E76: Jihovýchod | H76: CZ06 | J76: 2351 | K76: 2472 | L76: 1923 | M76: 1927 | N76: 1877 | O76: 2006 | P76: 1761 | Q76: 1825 | R76: 1495 | S76: 1269 | T76: 1369 | U76: 1286 | V76: 1277 | W76: 1227 | X76: 980 | Y76: 875
F77: Kraj Vysočina | H77: CZ063 | J77: 759 | K77: 905 | L77: 587 | M77: 628 | N77: 627 | O77: 656 | P77: 636 | Q77: 696 | R77: 516 | S77: 532 | T77: 610 | U77: 698 | V77: 616 | W77: 689 | X77: 574 | Y77: 582
F78: Jihomoravský kraj | H78: CZ064 | J78: 1592 | K78: 1567 | L78: 1336 | M78: 1299 | N78: 1250 | O78: 1350 | P78: 1125 | Q78: 1129 | R78: 979 | S78: 737 | T78: 759 | U78: 588 | V78: 661 | W78: 538 | X78: 406 | Y78: 293
E79: Střední Morava | H79: CZ07 | J79: 1346 | K79: 1482 | L79: 1168 | M79: 1332 | N79: 1724 | O79: 1734 | P79: 1540 | Q79: 1346 | R79: 966 | S79: 906 | T79: 938 | U79: 748 | V79: 693 | W79: 710 | X79: 644 | Y79: 518
F80: Olomoucký kraj | H80: CZ071 | J80: 714 | K80: 754 | L80: 569 | M80: 663 | N80: 916 | O80: 924 | P80: 822 | Q80: 739 | R80: 584 | S80: 563 | T80: 507 | U80: 367 | V80: 471 | W80: 414 | X80: 307 | Y80: 236
F81: Zlínský kraj | H81: CZ072 | J81: 632 | K81: 728 | L81: 599 | M81: 669 | N81: 808 | O81: 810 | P81: 718 | Q81: 607 | R81: 382 | S81: 343 | T81: 431 | U81: 381 | V81: 222 | W81: 296 | X81: 337 | Y81: 282
E82: Moravskoslezsko | H82: CZ08 | J82: 1912 | K82: 1925 | L82: 1810 | M82: 1892 | N82: 2110 | O82: 2351 | P82: 2204 | Q82: 2146 | R82: 1737 | S82: 1473 | T82: 1251 | U82: 1129 | V82: 1071 | W82: 860 | X82: 683 | Y82: 513
F83: Moravskoslezský kraj | H83: CZ080 | J83: 1912 | K83: 1925 | L83: 1810 | M83: 1892 | N83: 2110 | O83: 2351 | P83: 2204 | Q83: 2146 | R83: 1737 | S83: 1473 | T83: 1251 | U83: 1129 | V83: 1071 | W83: 860 | X83: 683 | Y83: 513
Y84: Zdroj: databáze MŠMT

Sheet B5.1.16
D4: Tab. B5.1.16: | H4: Střední školy – absolventi
B5: 18 | D5: ve školním roce 2008/09 až 2018/19 – podle území a formy vzdělávání
D7: Území Forma vzdělávání | J7: 2003/04 | K7: 2004/05 | L7: 2005/06 | M7: 2006/07 | N7: 2007/08 | O7: 2008/09 | P7: 2009/10 | Q7: 2010/11 | R7: 2011/12 | S7: 2012/13 | T7: 2013/14 | U7: 2014/15 | V7: 2015/16 | W7: 2016/17 | X7: 2017/18 | Y7: 2018/19
D12: Všechny formy vzdělávání
E13: Česká republika | H13: CZ0 | J13: 131303 | K13: 132886 | L13: 132644 | M13: 130282 | N13: 125493 | O13: 123151 | P13: 116446 | Q13: 109514 | R13: 106816 | S13: 101055 | T13: 90076 | U13: 83822 | V13: 78385 | W13: 78602 | X13: 78056 | Y13: .
E14: Praha | H14: CZ01 | J14: 16939 | K14: 17255 | L14: 17055 | M14: 17045 | N14: 16018 | O14: 15728 | P14: 14640 | Q14: 13217 | R14: 13100 | S14: 12336 | T14: 11350 | U14: 10778 | V14: 10155 | W14: 10481 | X14: 10697 | Y14: .
F15: Hlavní město Praha | H15: CZ010 | J15: 16939 | K15: 17255 | L15: 17055 | M15: 17045 | N15: 16018 | O15: 15728 | P15: 14640 | Q15: 13217 | R15: 13100 | S15: 12336 | T15: 11350 | U15: 10778 | V15: 10155 | W15: 10481 | X15: 10697 | Y15: .
E16: Střední Čechy | H16: CZ02 | J16: 11470 | K16: 11625 | L16: 11439 | M16: 11010 | N16: 10986 | O16: 10881 | P16: 10512 | Q16: 9761 | R16: 9573 | S16: 9261 | T16: 8419 | U16: 8014 | V16: 7372 | W16: 7675 | X16: 7251 | Y16: .
F17: Středočeský kraj | H17: CZ020 | J17: 11470 | K17: 11625 | L17: 11439 | M17: 11010 | N17: 10986 | O17: 10881 | P17: 10512 | Q17: 9761 | R17: 9573 | S17: 9261 | T17: 8419 | U17: 8014 | V17: 7372 | W17: 7675 | X17: 7251 | Y17: .
E18: Jihozápad | H18: CZ03 | J18: 15239 | K18: 15534 | L18: 15173 | M18: 15388 | N18: 14317 | O18: 14354 | P18: 13939 | Q18: 12488 | R18: 12422 | S18: 11761 | T18: 10599 | U18: 9450 | V18: 8995 | W18: 8921 | X18: 8947 | Y18: .
F19: Jihočeský kraj | H19: CZ031 | J19: 8701 | K19: 8921 | L19: 8676 | M19: 8669 | N19: 7996 | O19: 8224 | P19: 7803 | Q19: 7200 | R19: 7109 | S19: 6759 | T19: 5960 | U19: 5400 | V19: 5114 | W19: 5077 | X19: 4959 | Y19: .
F20: Plzeňský kraj | H20: CZ032 | J20: 6538 | K20: 6613 | L20: 6497 | M20: 6719 | N20: 6321 | O20: 6130 | P20: 6136 | Q20: 5288 | R20: 5313 | S20: 5002 | T20: 4639 | U20: 4050 | V20: 3881 | W20: 3844 | X20: 3988 | Y20: .
E21: Severozápad | H21: CZ04 | J21: 13328 | K21: 13861 | L21: 13784 | M21: 13398 | N21: 12307 | O21: 12336 | P21: 11340 | Q21: 10702 | R21: 10157 | S21: 9624 | T21: 8523 | U21: 7594 | V21: 7092 | W21: 7182 | X21: 7026 | Y21: .
F22: Karlovarský kraj | H22: CZ041 | J22: 3485 | K22: 3596 | L22: 3652 | M22: 3454 | N22: 3205 | O22: 3212 | P22: 2687 | Q22: 2690 | R22: 2581 | S22: 2469 | T22: 2218 | U22: 1881 | V22: 1713 | W22: 1801 | X22: 1685 | Y22: .
F23: Ústecký kraj | H23: CZ042 | J23: 9843 | K23: 10265 | L23: 10132 | M23: 9944 | N23: 9102 | O23: 9124 | P23: 8653 | Q23: 8012 | R23: 7576 | S23: 7155 | T23: 6305 | U23: 5713 | V23: 5379 | W23: 5381 | X23: 5341 | Y23: .
E24: Severovýchod | H24: CZ05 | J24: 18807 | K24: 18560 | L24: 18935 | M24: 18263 | N24: 17555 | O24: 17257 | P24: 16696 | Q24: 16111 | R24: 15388 | S24: 14690 | T24: 12975 | U24: 12269 | V24: 11338 | W24: 11395 | X24: 11524 | Y24: .
F25: Liberecký kraj | H25: CZ051 | J25: 5010 | K25: 5000 | L25: 5070 | M25: 4988 | N25: 4668 | O25: 4554 | P25: 4503 | Q25: 3948 | R25: 3601 | S25: 3416 | T25: 3229 | U25: 2958 | V25: 2818 | W25: 2727 | X25: 2852 | Y25: .
F26: Královéhradecký kraj | H26: CZ052 | J26: 7080 | K26: 7170 | L26: 7468 | M26: 6956 | N26: 6913 | O26: 6794 | P26: 6458 | Q26: 6619 | R26: 6328 | S26: 6063 | T26: 5069 | U26: 5138 | V26: 4548 | W26: 4536 | X26: 4600 | Y26: .
F27: Pardubický kraj | H27: CZ053 | J27: 6717 | K27: 6390 | L27: 6397 | M27: 6319 | N27: 5974 | O27: 5909 | P27: 5735 | Q27: 5544 | R27: 5459 | S27: 5211 | T27: 4677 | U27: 4173 | V27: 3972 | W27: 4132 | X27: 4072 | Y27: .
E28: Jihovýchod | H28: CZ06 | J28: 22423 | K28: 22850 | L28: 22347 | M28: 21764 | N28: 21628 | O28: 20775 | P28: 19821 | Q28: 18781 | R28: 18370 | S28: 17330 | T28: 15340 | U28: 14381 | V28: 13670 | W28: 13540 | X28: 13415 | Y28: .
F29: Kraj Vysočina | H29: CZ063 | J29: 6894 | K29: 6862 | L29: 6837 | M29: 6701 | N29: 6517 | O29: 6439 | P29: 6544 | Q29: 5876 | R29: 5903 | S29: 5643 | T29: 4988 | U29: 4843 | V29: 4846 | W29: 4675 | X29: 4631 | Y29: .
F30: Jihomoravský kraj | H30: CZ064 | J30: 15529 | K30: 15988 | L30: 15510 | M30: 15063 | N30: 15111 | O30: 14336 | P30: 13277 | Q30: 12905 | R30: 12467 | S30: 11687 | T30: 10352 | U30: 9538 | V30: 8824 | W30: 8865 | X30: 8784 | Y30: .
E31: Střední Morava | H31: CZ07 | J31: 16851 | K31: 17067 | L31: 17263 | M31: 16835 | N31: 16307 | O31: 16163 | P31: 14121 | Q31: 14733 | R31: 14084 | S31: 13316 | T31: 11731 | U31: 10846 | V31: 10274 | W31: 10190 | X31: 10133 | Y31: .
F32: Olomoucký kraj | H32: CZ071 | J32: 8310 | K32: 8449 | L32: 8390 | M32: 8439 | N32: 8158 | O32: 7929 | P32: 7221 | Q32: 7519 | R32: 6973 | S32: 6624 | T32: 6029 | U32: 5535 | V32: 5315 | W32: 5255 | X32: 5200 | Y32: .
F33: Zlínský kraj | H33: CZ072 | J33: 8541 | K33: 8618 | L33: 8873 | M33: 8396 | N33: 8149 | O33: 8234 | P33: 6900 | Q33: 7214 | R33: 7111 | S33: 6692 | T33: 5702 | U33: 5311 | V33: 4959 | W33: 4935 | X33: 4933 | Y33: .
E34: Moravskoslezsko | H34: CZ08 | J34: 16246 | K34: 16134 | L34: 16648 | M34: 16579 | N34: 16375 | O34: 15657 | P34: 15377 | Q34: 13721 | R34: 13722 | S34: 12737 | T34: 11139 | U34: 10490 | V34: 9489 | W34: 9218 | X34: 9063 | Y34: .
F35: Moravskoslezský kraj | H35: CZ080 | J35: 16246 | K35: 16134 | L35: 16648 | M35: 16579 | N35: 16375 | O35: 15657 | P35: 15377 | Q35: 13721 | R35: 13722 | S35: 12737 | T35: 11139 | U35: 10490 | V35: 9489 | W35: 9218 | X35: 9063 | Y35: .
D36: Denní forma vzdělávání
E37: Česká republika | H37: CZ0 | J37: 124903 | K37: 126270 | L37: 124633 | M37: 122239 | N37: 118420 | O37: 115506 | P37: 109080 | Q37: 103070 | R37: 100724 | S37: 95588 | T37: 85454 | U37: 79619 | V37: 74303 | W37: 74363 | X37: 74271 | Y37: .
E38: Praha | H38: CZ01 | J38: 15404 | K38: 15713 | L38: 15466 | M38: 15425 | N38: 14741 | O38: 14271 | P38: 13367 | Q38: 12255 | R38: 12101 | S38: 11537 | T38: 10449 | U38: 9950 | V38: 9347 | W38: 9457 | X38: 9686 | Y38: .
F39: Hlavní město Praha | H39: CZ010 | J39: 15404 | K39: 15713 | L39: 15466 | M39: 15425 | N39: 14741 | O39: 14271 | P39: 13367 | Q39: 12255 | R39: 12101 | S39: 11537 | T39: 10449 | U39: 9950 | V39: 9347 | W39: 9457 | X39: 9686 | Y39: .
E40: Střední Čechy | H40: CZ02 | J40: 10931 | K40: 11103 | L40: 10836 | M40: 10519 | N40: 10368 | O40: 10210 | P40: 9887 | Q40: 9221 | R40: 8830 | S40: 8584 | T40: 7746 | U40: 7176 | V40: 6781 | W40: 6969 | X40: 6764 | Y40: .
F41: Středočeský kraj | H41: CZ020 | J41: 10931 | K41: 11103 | L41: 10836 | M41: 10519 | N41: 10368 | O41: 10210 | P41: 9887 | Q41: 9221 | R41: 8830 | S41: 8584 | T41: 7746 | U41: 7176 | V41: 6781 | W41: 6969 | X41: 6764 | Y41: .
E42: Jihozápad | H42: CZ03 | J42: 14520 | K42: 14813 | L42: 14273 | M42: 14469 | N42: 13583 | O42: 13481 | P42: 13119 | Q42: 11752 | R42: 11774 | S42: 11219 | T42: 10193 | U42: 9150 | V42: 8667 | W42: 8592 | X42: 8642 | Y42: .
F43: Jihočeský kraj | H43: CZ031 | J43: 8320 | K43: 8577 | L43: 8161 | M43: 8118 | N43: 7633 | O43: 7749 | P43: 7360 | Q43: 6833 | R43: 6787 | S43: 6502 | T43: 5761 | U43: 5230 | V43: 4967 | W43: 4915 | X43: 4848 | Y43: .
F44: Plzeňský kraj | H44: CZ032 | J44: 6200 | K44: 6236 | L44: 6112 | M44: 6351 | N44: 5950 | O44: 5732 | P44: 5759 | Q44: 4919 | R44: 4987 | S44: 4717 | T44: 4432 | U44: 3920 | V44: 3700 | W44: 3677 | X44: 3794 | Y44: .
E45: Severozápad | H45: CZ04 | J45: 12496 | K45: 12923 | L45: 12675 | M45: 12342 | N45: 11385 | O45: 11442 | P45: 10423 | Q45: 9888 | R45: 9524 | S45: 9057 | T45: 8095 | U45: 7267 | V45: 6756 | W45: 6944 | X45: 6797 | Y45: .
F46: Karlovarský kraj | H46: CZ041 | J46: 3280 | K46: 3368 | L46: 3287 | M46: 3201 | N46: 3018 | O46: 3012 | P46: 2518 | Q46: 2492 | R46: 2449 | S46: 2326 | T46: 2135 | U46: 1813 | V46: 1655 | W46: 1771 | X46: 1666 | Y46: .
F47: Ústecký kraj | H47: CZ042 | J47: 9216 | K47: 9555 | L47: 9388 | M47: 9141 | N47: 8367 | O47: 8430 | P47: 7905 | Q47: 7396 | R47: 7075 | S47: 6731 | T47: 5960 | U47: 5454 | V47: 5101 | W47: 5173 | X47: 5131 | Y47: .
E48: Severovýchod | H48: CZ05 | J48: 18153 | K48: 17952 | L48: 18054 | M48: 17379 | N48: 16809 | O48: 16408 | P48: 15791 | Q48: 15279 | R48: 14705 | S48: 14079 | T48: 12487 | U48: 11885 | V48: 10916 | W48: 11041 | X48: 11180 | Y48: .
F49: Liberecký kraj | H49: CZ051 | J49: 4887 | K49: 4860 | L49: 4851 | M49: 4735 | N49: 4427 | O49: 4333 | P49: 4190 | Q49: 3684 | R49: 3411 | S49: 3249 | T49: 3062 | U49: 2893 | V49: 2743 | W49: 2671 | X49: 2799 | Y49: .
F50: Královéhradecký kraj | H50: CZ052 | J50: 6780 | K50: 6921 | L50: 7091 | M50: 6600 | N50: 6659 | O50: 6405 | P50: 6100 | Q50: 6297 | R50: 6036 | S50: 5852 | T50: 4927 | U50: 4976 | V50: 4360 | W50: 4405 | X50: 4491 | Y50: .
F51: Pardubický kraj | H51: CZ053 | J51: 6486 | K51: 6171 | L51: 6112 | M51: 6044 | N51: 5723 | O51: 5670 | P51: 5501 | Q51: 5298 | R51: 5258 | S51: 4978 | T51: 4498 | U51: 4016 | V51: 3813 | W51: 3965 | X51: 3890 | Y51: .
E52: Jihovýchod | H52: CZ06 | J52: 21613 | K52: 21946 | L52: 21129 | M52: 20506 | N52: 20500 | O52: 19705 | P52: 18944 | Q52: 18019 | R52: 17733 | S52: 16592 | T52: 14743 | U52: 13704 | V52: 12833 | W52: 12702 | X52: 12603 | Y52: .
F53: Kraj Vysočina | H53: CZ063 | J53: 6668 | K53: 6570 | L53: 6476 | M53: 6340 | N53: 6276 | O53: 6141 | P53: 6221 | Q53: 5665 | R53: 5701 | S53: 5336 | T53: 4678 | U53: 4386 | V53: 4239 | W53: 4112 | X53: 4042 | Y53: .
F54: Jihomoravský kraj | H54: CZ064 | J54: 14945 | K54: 15376 | L54: 14653 | M54: 14166 | N54: 14224 | O54: 13564 | P54: 12723 | Q54: 12354 | R54: 12032 | S54: 11256 | T54: 10065 | U54: 9318 | V54: 8594 | W54: 8590 | X54: 8561 | Y54: .
E55: Střední Morava | H55: CZ07 | J55: 16242 | K55: 16458 | L55: 16485 | M55: 16023 | N55: 15616 | O55: 15355 | P55: 13308 | Q55: 13847 | R55: 13326 | S55: 12638 | T55: 11276 | U55: 10467 | V55: 9857 | W55: 9806 | X55: 9813 | Y55: .
F56: Olomoucký kraj | H56: CZ071 | J56: 8026 | K56: 8159 | L56: 8056 | M56: 8075 | N56: 7837 | O56: 7572 | P56: 6765 | Q56: 7026 | R56: 6533 | S56: 6244 | T56: 5740 | U56: 5307 | V56: 5106 | W56: 5097 | X56: 5050 | Y56: .
F57: Zlínský kraj | H57: CZ072 | J57: 8216 | K57: 8299 | L57: 8429 | M57: 7948 | N57: 7779 | O57: 7783 | P57: 6543 | Q57: 6821 | R57: 6793 | S57: 6394 | T57: 5536 | U57: 5160 | V57: 4751 | W57: 4709 | X57: 4763 | Y57: .
E58: Moravskoslezsko | H58: CZ08 | J58: 15544 | K58: 15362 | L58: 15715 | M58: 15576 | N58: 15418 | O58: 14634 | P58: 14241 | Q58: 12809 | R58: 12731 | S58: 11882 | T58: 10465 | U58: 10020 | V58: 9146 | W58: 8852 | X58: 8786 | Y58: .
F59: Moravskoslezský kraj | H59: CZ080 | J59: 15544 | K59: 15362 | L59: 15715 | M59: 15576 | N59: 15418 | O59: 14634 | P59: 14241 | Q59: 12809 | R59: 12731 | S59: 11882 | T59: 10465 | U59: 10020 | V59: 9146 | W59: 8852 | X59: 8786 | Y59: .
D60: Ostatní formy vzdělávání
E61: Česká republika | H61: CZ0 | J61: 6400 | K61: 6616 | L61: 8011 | M61: 8043 | N61: 7073 | O61: 7645 | P61: 7366 | Q61: 6444 | R61: 6092 | S61: 5467 | T61: 4622 | U61: 4203 | V61: 4082 | W61: 4239 | X61: 3785 | Y61: .
E62: Praha | H62: CZ01 | J62: 1535 | K62: 1542 | L62: 1589 | M62: 1620 | N62: 1277 | O62: 1457 | P62: 1273 | Q62: 962 | R62: 999 | S62: 799 | T62: 901 | U62: 828 | V62: 808 | W62: 1024 | X62: 1011 | Y62: .
F63: Hlavní město Praha | H63: CZ010 | J63: 1535 | K63: 1542 | L63: 1589 | M63: 1620 | N63: 1277 | O63: 1457 | P63: 1273 | Q63: 962 | R63: 999 | S63: 799 | T63: 901 | U63: 828 | V63: 808 | W63: 1024 | X63: 1011 | Y63: .
E64: Střední Čechy | H64: CZ02 | J64: 539 | K64: 522 | L64: 603 | M64: 491 | N64: 618 | O64: 671 | P64: 625 | Q64: 540 | R64: 743 | S64: 677 | T64: 673 | U64: 838 | V64: 591 | W64: 706 | X64: 487 | Y64: .
F65: Středočeský kraj | H65: CZ020 | J65: 539 | K65: 522 | L65: 603 | M65: 491 | N65: 618 | O65: 671 | P65: 625 | Q65: 540 | R65: 743 | S65: 677 | T65: 673 | U65: 838 | V65: 591 | W65: 706 | X65: 487 | Y65: .
E66: Jihozápad | H66: CZ03 | J66: 719 | K66: 721 | L66: 900 | M66: 919 | N66: 734 | O66: 873 | P66: 820 | Q66: 736 | R66: 648 | S66: 542 | T66: 406 | U66: 300 | V66: 328 | W66: 329 | X66: 305 | Y66: .
F67: Jihočeský kraj | H67: CZ031 | J67: 381 | K67: 344 | L67: 515 | M67: 551 | N67: 363 | O67: 475 | P67: 443 | Q67: 367 | R67: 322 | S67: 257 | T67: 199 | U67: 170 | V67: 147 | W67: 162 | X67: 111 | Y67: .
F68: Plzeňský kraj | H68: CZ032 | J68: 338 | K68: 377 | L68: 385 | M68: 368 | N68: 371 | O68: 398 | P68: 377 | Q68: 369 | R68: 326 | S68: 285 | T68: 207 | U68: 130 | V68: 181 | W68: 167 | X68: 194 | Y68: .
E69: Severozápad | H69: CZ04 | J69: 832 | K69: 938 | L69: 1109 | M69: 1056 | N69: 922 | O69: 894 | P69: 917 | Q69: 814 | R69: 633 | S69: 567 | T69: 428 | U69: 327 | V69: 336 | W69: 238 | X69: 229 | Y69: .
F70: Karlovarský kraj | H70: CZ041 | J70: 205 | K70: 228 | L70: 365 | M70: 253 | N70: 187 | O70: 200 | P70: 169 | Q70: 198 | R70: 132 | S70: 143 | T70: 83 | U70: 68 | V70: 58 | W70: 30 | X70: 19 | Y70: .
F71: Ústecký kraj | H71: CZ042 | J71: 627 | K71: 710 | L71: 744 | M71: 803 | N71: 735 | O71: 694 | P71: 748 | Q71: 616 | R71: 501 | S71: 424 | T71: 345 | U71: 259 | V71: 278 | W71: 208 | X71: 210 | Y71: .
E72: Severovýchod | H72: CZ05 | J72: 654 | K72: 608 | L72: 881 | M72: 884 | N72: 746 | O72: 849 | P72: 905 | Q72: 832 | R72: 683 | S72: 611 | T72: 488 | U72: 384 | V72: 422 | W72: 354 | X72: 344 | Y72: .
F73: Liberecký kraj | H73: CZ051 | J73: 123 | K73: 140 | L73: 219 | M73: 253 | N73: 241 | O73: 221 | P73: 313 | Q73: 264 | R73: 190 | S73: 167 | T73: 167 | U73: 65 | V73: 75 | W73: 56 | X73: 53 | Y73: .
F74: Královéhradecký kraj | H74: CZ052 | J74: 300 | K74: 249 | L74: 377 | M74: 356 | N74: 254 | O74: 389 | P74: 358 | Q74: 322 | R74: 292 | S74: 211 | T74: 142 | U74: 162 | V74: 188 | W74: 131 | X74: 109 | Y74: .
F75: Pardubický kraj | H75: CZ053 | J75: 231 | K75: 219 | L75: 285 | M75: 275 | N75: 251 | O75: 239 | P75: 234 | Q75: 246 | R75: 201 | S75: 233 | T75: 179 | U75: 157 | V75: 159 | W75: 167 | X75: 182 | Y75: .
E76: Jihovýchod | H76: CZ06 | J76: 810 | K76: 904 | L76: 1218 | M76: 1258 | N76: 1128 | O76: 1070 | P76: 877 | Q76: 762 | R76: 637 | S76: 738 | T76: 597 | U76: 677 | V76: 837 | W76: 838 | X76: 812 | Y76: .
F77: Kraj Vysočina | H77: CZ063 | J77: 226 | K77: 292 | L77: 361 | M77: 361 | N77: 241 | O77: 298 | P77: 323 | Q77: 211 | R77: 202 | S77: 307 | T77: 310 | U77: 457 | V77: 607 | W77: 563 | X77: 589 | Y77: .
F78: Jihomoravský kraj | H78: CZ064 | J78: 584 | K78: 612 | L78: 857 | M78: 897 | N78: 887 | O78: 772 | P78: 554 | Q78: 551 | R78: 435 | S78: 431 | T78: 287 | U78: 220 | V78: 230 | W78: 275 | X78: 223 | Y78: .
E79: Střední Morava | H79: CZ07 | J79: 609 | K79: 609 | L79: 778 | M79: 812 | N79: 691 | O79: 808 | P79: 813 | Q79: 886 | R79: 758 | S79: 678 | T79: 455 | U79: 379 | V79: 417 | W79: 384 | X79: 320 | Y79: .
F80: Olomoucký kraj | H80: CZ071 | J80: 284 | K80: 290 | L80: 334 | M80: 364 | N80: 321 | O80: 357 | P80: 456 | Q80: 493 | R80: 440 | S80: 380 | T80: 289 | U80: 228 | V80: 209 | W80: 158 | X80: 150 | Y80: .
F81: Zlínský kraj | H81: CZ072 | J81: 325 | K81: 319 | L81: 444 | M81: 448 | N81: 370 | O81: 451 | P81: 357 | Q81: 393 | R81: 318 | S81: 298 | T81: 166 | U81: 151 | V81: 208 | W81: 226 | X81: 170 | Y81: .
E82: Moravskoslezsko | H82: CZ08 | J82: 702 | K82: 772 | L82: 933 | M82: 1003 | N82: 957 | O82: 1023 | P82: 1136 | Q82: 912 | R82: 991 | S82: 855 | T82: 674 | U82: 470 | V82: 343 | W82: 366 | X82: 277 | Y82: .
F83: Moravskoslezský kraj | H83: CZ080 | J83: 702 | K83: 772 | L83: 933 | M83: 1003 | N83: 957 | O83: 1023 | P83: 1136 | Q83: 912 | R83: 991 | S83: 855 | T83: 674 | U83: 470 | V83: 343 | W83: 366 | X83: 277 | Y83: .
Y84: Zdroj: databáze MŠMT

Sheet B5.1.17
D4: Tab. B5.1.17: | H4: Střední školy – učitelé/učitelky (přepočtené počty)
B5: 12 | D5: ve školním roce 2008/09 až 2018/19 – podle zřizovatele
D7: Zřizovatel | J7: 2003/04 | K7: 2004/05 | L7: 2005/06 | M7: 2006/07 | N7: 2007/08 | O7: 2008/09 | P7: 2009/10 | Q7: 2010/11 | R7: 2011/12 | S7: 2012/13 | T7: 2013/14 | U7: 2014/15 | V7: 2015/16 | W7: 2016/17 | X7: 2017/18 | Y7: 2018/19
J11: 1) | K11: 1)
D12: Učitelé (přepočtené počty – celkem)
E13: Celkem | J13: . | K13: . | L13: 47352.1 | M13: 47452 | N13: 47124.3 | O13: 46734.9 | P13: 46488.8 | Q13: 45384.9 | R13: 43875.8 | S13: 41788.8 | T13: 40214.1 | U13: 39070.1 | V13: 38385.9 | W13: 38069.6 | X13: 38114.9 | Y13: 38223.4
E14: v tom | F14: veřejný | J14: . | K14: . | L14: 40900.9 | M14: 40797.3 | N14: 40486.7 | O14: 40090 | P14: 39731 | Q14: 38995.5 | R14: 37781 | S14: 36018.4 | T14: 34728.3 | U14: 33710.6 | V14: 33036.6 | W14: 32630.9 | X14: 32568.2 | Y14: 32616.4
F15: v tom | G15: MŠMT | J15: . | K15: . | L15: 297 | M15: 309 | N15: 323.8 | O15: 324.7 | P15: 329.6 | Q15: 325.2 | R15: 333.1 | S15: 305.1 | T15: 311.1 | U15: 300.3 | V15: 297.4 | W15: 289 | X15: 278 | Y15: 271.6
G16: obec | J16: . | K16: . | L16: 252 | M16: 272.1 | N16: 273.9 | O16: 279.6 | P16: 291 | Q16: 309.1 | R16: 309.3 | S16: 288.6 | T16: 301.9 | U16: 309.9 | V16: 320.4 | W16: 322 | X16: 333.3 | Y16: 336.9
G17: jiný resort | J17: . | K17: . | L17: 195 | M17: 69.7 | N17: 136.5 | O17: 127 | P17: 127.1 | Q17: 128.1 | R17: 131.6 | S17: 130.4 | T17: 144.4 | U17: 138.9 | V17: 139.6 | W17: 139.4 | X17: 165.4 | Y17: 184.2
G18: kraj | J18: . | K18: . | L18: 40156.9 | M18: 40146.5 | N18: 39752.5 | O18: 39358.7 | P18: 38983.3 | Q18: 38233.1 | R18: 37007 | S18: 35294.3 | T18: 33970.9 | U18: 32961.5 | V18: 32279.2 | W18: 31880.5 | X18: 31791.5 | Y18: 31823.7
F19: neveřejný | J19: . | K19: . | L19: 6451 | M19: 6654.7 | N19: 6637.6 | O19: 6644.9 | P19: 6757.8 | Q19: 6389.4 | R19: 6094.8 | S19: 5770.4 | T19: 5485.8 | U19: 5359.5 | V19: 5349.3 | W19: 5438.7 | X19: 5546.7 | Y19: 5607
F20: v tom | G20: privátní sektor | J20: . | K20: . | L20: 5726.6 | M20: 5915.2 | N20: 5885.7 | O20: 5887.6 | P20: 6007.4 | Q20: 5619.6 | R20: 5328.7 | S20: 5002.7 | T20: 4701.5 | U20: 4558.8 | V20: 4528.9 | W20: 4618.4 | X20: 4711.1 | Y20: 4764.4
G21: církev | J21: . | K21: . | L21: 724.6 | M21: 739.5 | N21: 751.9 | O21: 757.3 | P21: 750.4 | Q21: 769.8 | R21: 766.1 | S21: 767.7 | T21: 784.3 | U21: 800.7 | V21: 820.4 | W21: 820.3 | X21: 835.6 | Y21: 842.6
D22: Z toho učitelky (přepočtené počty)
E23: Celkem | J23: . | K23: . | L23: 27429 | M23: 27691 | N23: 27530.9 | O23: 27334.3 | P23: 27242.9 | Q23: 26744.5 | R23: 25948.8 | S23: 24946.3 | T23: 23984.9 | U23: 23386.2 | V23: 23052.7 | W23: 22896.9 | X23: 22985.4 | Y23: 23021.6
E24: v tom | F24: veřejný | J24: . | K24: . | L24: 23287 | M24: 23431.2 | N24: 23281.7 | O24: 23087.1 | P24: 22962.1 | Q24: 22657.5 | R24: 22063.7 | S24: 21269.8 | T24: 20523.3 | U24: 19983 | V24: 19696.3 | W24: 19462.3 | X24: 19488.6 | Y24: 19536.9
F25: v tom | G25: MŠMT | J25: . | K25: . | L25: 147 | M25: 158.2 | N25: 166.4 | O25: 176 | P25: 180.7 | Q25: 181.1 | R25: 182 | S25: 170.3 | T25: 179 | U25: 173.7 | V25: 165.8 | W25: 161.6 | X25: 161.6 | Y25: 155.3
G26: obec | J26: . | K26: . | L26: 165 | M26: 174.6 | N26: 173 | O26: 171.9 | P26: 177.7 | Q26: 191.8 | R26: 192.2 | S26: 176.6 | T26: 187.7 | U26: 194.3 | V26: 202.8 | W26: 204.5 | X26: 214.9 | Y26: 224.7
G27: jiný resort | J27: . | K27: . | L27: 58 | M27: 40.8 | N27: 45 | O27: 39 | P27: 41 | Q27: 44.7 | R27: 45.7 | S27: 51.4 | T27: 58.4 | U27: 53.9 | V27: 52.6 | W27: 48.4 | X27: 58.4 | Y27: 66.6
G28: kraj | J28: . | K28: . | L28: 22917 | M28: 23057.6 | N28: 22897.3 | O28: 22700.2 | P28: 22562.7 | Q28: 22239.9 | R28: 21643.8 | S28: 20871.5 | T28: 20098.2 | U28: 19561.1 | V28: 19275.1 | W28: 19047.8 | X28: 19053.7 | Y28: 19090.3
F29: neveřejný | J29: . | K29: . | L29: 4142 | M29: 4259.8 | N29: 4249.2 | O29: 4247.2 | P29: 4280.8 | Q29: 4087 | R29: 3885.1 | S29: 3676.5 | T29: 3461.6 | U29: 3403.2 | V29: 3356.4 | W29: 3434.6 | X29: 3496.8 | Y29: 3484.7
F30: v tom | G30: privátní sektor | J30: . | K30: . | L30: 3613 | M30: 3718.2 | N30: 3703.3 | O30: 3699.2 | P30: 3746.1 | Q30: 3529.2 | R30: 3340.2 | S30: 3123.2 | T30: 2896.6 | U30: 2821.8 | V30: 2765.1 | W30: 2849.9 | X30: 2903.6 | Y30: 2888.6
G31: církev | J31: . | K31: . | L31: 529 | M31: 541.6 | N31: 545.9 | O31: 548 | P31: 534.7 | Q31: 557.8 | R31: 544.9 | S31: 553.3 | T31: 565 | U31: 581.4 | V31: 591.3 | W31: 584.7 | X31: 593.2 | Y31: 596.1
Y32: Zdroj: databáze MŠMT

Sheet B5.1.18
D4: Tab. B5.1.18: | H4: SŠ včetně konzervatoří – struktura učitelů
D5: v letech 2011 až 2018 – podle nejvyššího dosaženého vzdělání
D7: Nejvyšší dosažené vzdělání | J7: 2011 | K7: 2012 | L7: 2013 | M7: 2014 | N7: 2015 | O7: 2016 | P7: 2017 | Q7: 2018
D12: Učitelé (bez ředitelů a zástupců ředitele/řídících pracovníků)
E13: Střední a střední vzdělání s výučním listem | J13: 0.03376614454 | K13: 0.03140826802 | L13: 0.02742964507 | M13: 0.02489113318 | N13: 0.02188004812 | O13: 0.02130369486 | P13: 0.02020076477 | Q13: 0.01916684931
E14: Střední vzdělání s maturitní zkouškou | J14: 0.2156687264 | K14: 0.1949842932 | L14: 0.1892868503 | M14: 0.1811655027 | N14: 0.1745163877 | O14: 0.1664836512 | P14: 0.1604551626 | Q14: 0.154666673
E15: Vyšší odborné vzdělání | J15: 0.01400444561 | K15: 0.0142775106 | L15: 0.01517493046 | M15: 0.01747080576 | N15: 0.01578394578 | O15: 0.01509576011 | P15: 0.01523259784 | Q15: 0.01371681413
E16: Vysokoškolské – bakalářské | J16: 0.0404082067 | K16: 0.0397288753 | L16: 0.04270006253 | M16: 0.04837903328 | N16: 0.05078760028 | O16: 0.04948409157 | P16: 0.05001492319 | Q16: 0.05014836455
E17: Vysokoškolské – magisterské | J17: 0.6789959561 | K17: 0.7020257531 | L17: 0.7066370228 | M17: 0.7089369008 | N17: 0.7177439619 | O17: 0.7269299925 | P17: 0.7317205556 | Q17: 0.7385047386
E18: Vysokoškolské – doktorské | J18: 0.01715652059 | K18: 0.01757533505 | L18: 0.01877148882 | M18: 0.01915658782 | N18: 0.01928805619 | O18: 0.02070280972 | P18: 0.02237599603 | Q18: 0.0237965604
Q19: Zdroj: databáze MŠMT

Sheet B5.1.19
D4: Tab. B5.1.19: | H4: SŠ včetně konzervatoří – struktura učitelů
D5: v letech 2011 až 2018 – podle věku
D7: Věk | J7: 2011 | K7: 2012 | L7: 2013 | M7: 2014 | N7: 2015 | O7: 2016 | P7: 2017 | Q7: 2018
D12: Učitelé (bez ředitelů a zástupců ředitele/řídících pracovníků)
E13: do 24 let | J13: 0.005816778063 | K13: 0.004715335043 | L13: 0.003518888264 | M13: 0.003674666726 | N13: 0.003641043222 | O13: 0.003262913238 | P13: 0.004199059945 | Q13: 0.004934074491
E14: 25–29 let | J14: 0.0602119797 | K14: 0.05566589298 | L14: 0.04854534003 | M14: 0.04325536656 | N14: 0.0383029769 | O14: 0.03605911207 | P14: 0.03531517082 | Q14: 0.03392474906
E15: 30–34 let | J15: 0.08754620648 | K15: 0.08503192867 | L15: 0.08075749282 | M15: 0.07546690136 | N15: 0.07149309144 | O15: 0.06455266851 | P15: 0.05765817944 | Q15: 0.05303401008
E16: 35–39 let | J16: 0.105111883 | K16: 0.1134375257 | L16: 0.1201475182 | M16: 0.1211485591 | N16: 0.1198585038 | O16: 0.1123983966 | P16: 0.1042673736 | Q16: 0.09796035444
E17: 40–44 let | J17: 0.1189527753 | K17: 0.1175810138 | L17: 0.1165498769 | M17: 0.1206868961 | N17: 0.1260987304 | O17: 0.1362379483 | P17: 0.144605823 | Q17: 0.1480671071
E18: 45–49 let | J18: 0.1689076148 | K18: 0.1601237065 | L18: 0.1505977093 | M18: 0.140758543 | N18: 0.134529788 | O18: 0.130366582 | P18: 0.1301040298 | Q18: 0.1325945131
E19: 50–54 let | J19: 0.1903587482 | K19: 0.1904375679 | L19: 0.1924565943 | M19: 0.1935618331 | N19: 0.1869229151 | O19: 0.1810344006 | P19: 0.1707357822 | Q19: 0.1592844271
E20: 55–59 let | J20: 0.1665806049 | K20: 0.170619807 | L20: 0.1775325934 | M20: 0.1824023413 | N20: 0.1933703835 | O20: 0.1982942286 | P20: 0.1988149072 | Q20: 0.1992688737
E21: 60–64 let | J21: 0.07696159713 | K21: 0.08170482567 | L21: 0.08801191997 | M21: 0.09439866738 | N21: 0.09857483703 | O21: 0.107158518 | P21: 0.1182939416 | Q21: 0.1295398923
E22: 65 a více let | J22: 0.01955181236 | K22: 0.02068236183 | L22: 0.02188206696 | M22: 0.02464618924 | N22: 0.02720773056 | O22: 0.03063523211 | P22: 0.0360094451 | Q22: 0.04139199862
Q23: Zdroj: databáze MŠMT

Sheet B5.1.20
D4: Tab. B5.1.20: | H4: Střední školy včetně konzervatoří a VOŠ – přepočtené počty
B5: 93 | D5: zaměstnanců v letech 2008 až 2018
J7: 2003 | K7: 2004 | L7: 2005 | M7: 2006 | N7: 2007 | O7: 2008 | P7: 2009 | Q7: 2010 | R7: 2011 | S7: 2012 | T7: 2013 | U7: 2014 | V7: 2015 | W7: 2016 | X7: 2017 | Y7: 2018
D12: SŠ včetně konzervatoří a VOŠ
D13: Všichni zřizovatelé (bez jiných resortů)
E14: Zaměstnanci celkem | J14: 63989.332 | K14: 64252.444 | L14: 64149.321 | M14: 64079.729 | N14: 63756.378 | O14: 63029.906 | P14: 62461.673 | Q14: 61699.143 | R14: 59769.264 | S14: 57440.859 | T14: 55196.555 | U14: 53732.076 | V14: 52635.552 | W14: 51783.095 | X14: 51748.787 | Y14: 51807.1849
F15: z toho učitelé1) | J15: 39978.354 | K15: 40434.779 | L15: 43227.007 | M15: 40642.133 | N15: 40613.49 | O15: 40498.02 | P15: 40365.859 | Q15: 40046.228 | R15: 39224.192 | S15: 37885.927 | T15: 36378.018 | U15: 35209.344 | V15: 34420.605 | W15: 33798.402 | X15: 33756.559 | Y15: 33738.1882
E16: v tom | F16: Střední školy2)
F17: Všichni zřizovatelé (bez jiných resortů)
F18: Zaměstnanci celkem | J18: 61779.911 | K18: 61979.531 | L18: 61876.318 | M18: 60790.557 | N18: 60551.551 | O18: 59897.182 | P18: 59396.704 | Q18: 58690.899 | R18: 56800.645 | S18: 54482.062 | T18: 52310.39 | U18: 50871.865 | V18: 49823.91 | W18: 49090.108 | X18: 49160.959 | Y18: 49310.7376
G19: z toho učitelé1) | J19: 38358.696 | K19: 38781.521 | L19: 41580.351 | M19: 38138.639 | N19: 38181.791 | O19: 38120.885 | P19: 38030.534 | Q19: 37753.366 | R19: 36935.537 | S19: 35588.705 | T19: 34124.222 | U19: 32971.589 | V19: 32219.581 | W19: 31689.78 | X19: 31728.979 | Y19: 31789.6003
F20: Konzervatoře
F21: Všichni zřizovatelé (bez jiných resortů)
F22: Zaměstnanci celkem | J22: . | K22: . | L22: . | M22: 1114.864 | N22: 1128.616 | O22: 1131.412 | P22: 1126.862 | Q22: 1123.038 | R22: 1097.413 | S22: 1115.189 | T22: 1095.262 | U22: 1126.643 | V22: 1136.138 | W22: 1131.525 | X22: 1129.084 | Y22: 1123.029
G23: z toho učitelé1) | J23: . | K23: . | L23: . | M23: 927.646 | N23: 931.686 | O23: 929.894 | P23: 926.188 | Q23: 914.116 | R23: 898.892 | S23: 923.534 | T23: 905.753 | U23: 929.746 | V23: 938.542 | W23: 933.767 | X23: 931.994 | Y23: 922.7445
F24: VOŠ
F25: Všichni zřizovatelé (bez jiných resortů)
F26: Zaměstnanci celkem | J26: 2209.421 | K26: 2272.913 | L26: 2273.003 | M26: 2174.308 | N26: 2076.211 | O26: 2001.312 | P26: 1938.107 | Q26: 1885.206 | R26: 1871.206 | S26: 1843.608 | T26: 1790.903 | U26: 1733.568 | V26: 1675.504 | W26: 1561.462 | X26: 1458.744 | Y26: 1373.4183
G27: z toho učitelé1) | J27: 1619.658 | K27: 1653.258 | L27: 1646.656 | M27: 1575.848 | N27: 1500.013 | O27: 1447.241 | P27: 1409.137 | Q27: 1378.746 | R27: 1389.763 | S27: 1373.688 | T27: 1348.043 | U27: 1308.009 | V27: 1262.482 | W27: 1174.855 | X27: 1095.586 | Y27: 1025.8434
D28: Komentáře: | Y28: Zdroj: databáze MŠMT
D29: 1) | E29: Včetně vedoucích zaměstnanců.

Sheet B5.1.21
D4: Tab. B5.1.21: | H4: Střední školy včetně konzervatoří a VOŠ – průměrné měsíční mzdy
B5: 168 | D5: zaměstnanců v letech 2008 až 2018
J7: 2003 | K7: 2004 | L7: 2005 | M7: 2006 | N7: 2007 | O7: 2008 | P7: 2009 | Q7: 2010 | R7: 2011 | S7: 2012 | T7: 2013 | U7: 2014 | V7: 2015 | W7: 2016 | X7: 2017 | Y7: 2018
D12: Střední školy včetně konzervatoří a VOŠ za všechny zřizovatele (bez jiných resortů)
D13: Nominální mzda (v běžných cenách)
E14: Zaměstnanci celkem | J14: 18231.4461 | K14: 18889.76855 | L14: 20039.95942 | M14: 21198 | N14: 22543.09373 | O14: =(O22*'B5.1.20'!O18+'B5.1.21'!O30*'B5.1.20'!O22+'B5.1.21'!O38*'B5.1.20'!O26)/'B5.1.20'!O14 -> 23357.00565 | P14: =(P22*'B5.1.20'!P18+'B5.1.21'!P30*'B5.1.20'!P22+'B5.1.21'!P38*'B5.1.20'!P26)/'B5.1.20'!P14 -> 24728.70227 | Q14: =(Q22*'B5.1.20'!Q18+'B5.1.21'!Q30*'B5.1.20'!Q22+'B5.1.21'!Q38*'B5.1.20'!Q26)/'B5.1.20'!Q14 -> 24375.19597 | R14: =(R22*'B5.1.20'!R18+'B5.1.21'!R30*'B5.1.20'!R22+'B5.1.21'!R38*'B5.1.20'!R26)/'B5.1.20'!R14 -> 24935.25351 | S14: =(S22*'B5.1.20'!S18+'B5.1.21'!S30*'B5.1.20'!S22+'B5.1.21'!S38*'B5.1.20'!S26)/'B5.1.20'!S14 -> 25220.05061 | T14: =(T22*'B5.1.20'!T18+'B5.1.21'!T30*'B5.1.20'!T22+'B5.1.21'!T38*'B5.1.20'!T26)/'B5.1.20'!T14 -> 25406.19707 | U14: =(U22*'B5.1.20'!U18+'B5.1.21'!U30*'B5.1.20'!U22+'B5.1.21'!U38*'B5.1.20'!U26)/'B5.1.20'!U14 -> 25901.51469 | V14: =(V22*'B5.1.20'!V18+'B5.1.21'!V30*'B5.1.20'!V22+'B5.1.21'!V38*'B5.1.20'!V26)/'B5.1.20'!V14 -> 26302.46153 | W14: =(W22*'B5.1.20'!W18+'B5.1.21'!W30*'B5.1.20'!W22+'B5.1.21'!W38*'B5.1.20'!W26)/'B5.1.20'!W14 -> 27490.24518 | X14: =(X22*'B5.1.20'!X18+'B5.1.21'!X30*'B5.1.20'!X22+'B5.1.21'!X38*'B5.1.20'!X26)/'B5.1.20'!X14 -> 29745.20792 | Y14: =(Y22*'B5.1.20'!Y18+'B5.1.21'!Y30*'B5.1.20'!Y22+'B5.1.21'!Y38*'B5.1.20'!Y26)/'B5.1.20'!Y14 -> 33128.74205
F15: z toho učitelé1) | J15: 20800.7832 | K15: 21489.12985 | L15: 22661.49147 | M15: 24197 | N15: 25719.12818 | O15: =(O23*'B5.1.20'!O19+'B5.1.21'!O31*'B5.1.20'!O23+'B5.1.21'!O39*'B5.1.20'!O27)/'B5.1.20'!O15 -> 26573.55439 | P15: =(P23*'B5.1.20'!P19+'B5.1.21'!P31*'B5.1.20'!P23+'B5.1.21'!P39*'B5.1.20'!P27)/'B5.1.20'!P15 -> 27845.30974 | Q15: =(Q23*'B5.1.20'!Q19+'B5.1.21'!Q31*'B5.1.20'!Q23+'B5.1.21'!Q39*'B5.1.20'!Q27)/'B5.1.20'!Q15 -> 27210.6607 | R15: =(R23*'B5.1.20'!R19+'B5.1.21'!R31*'B5.1.20'!R23+'B5.1.21'!R39*'B5.1.20'!R27)/'B5.1.20'!R15 -> 27887.13466 | S15: =(S23*'B5.1.20'!S19+'B5.1.21'!S31*'B5.1.20'!S23+'B5.1.21'!S39*'B5.1.20'!S27)/'B5.1.20'!S15 -> 28020.27357 | T15: =(T23*'B5.1.20'!T19+'B5.1.21'!T31*'B5.1.20'!T23+'B5.1.21'!T39*'B5.1.20'!T27)/'B5.1.20'!T15 -> 28209.18274 | U15: =(U23*'B5.1.20'!U19+'B5.1.21'!U31*'B5.1.20'!U23+'B5.1.21'!U39*'B5.1.20'!U27)/'B5.1.20'!U15 -> 28767.8601 | V15: =(V23*'B5.1.20'!V19+'B5.1.21'!V31*'B5.1.20'!V23+'B5.1.21'!V39*'B5.1.20'!V27)/'B5.1.20'!V15 -> 31100.88541 | W15: =(W23*'B5.1.20'!W19+'B5.1.21'!W31*'B5.1.20'!W23+'B5.1.21'!W39*'B5.1.20'!W27)/'B5.1.20'!W15 -> 32677.57922 | X15: =(X23*'B5.1.20'!X19+'B5.1.21'!X31*'B5.1.20'!X23+'B5.1.21'!X39*'B5.1.20'!X27)/'B5.1.20'!X15 -> 33267.03189 | Y15: =(Y23*'B5.1.20'!Y19+'B5.1.21'!Y31*'B5.1.20'!Y23+'B5.1.21'!Y39*'B5.1.20'!Y27)/'B5.1.20'!Y15 -> 37023.2278
D16: Reálná mzda (ve stálých cenách roku 2015)
E17: Zaměstnanci celkem | J17: 19090.51948 | K17: 19255.62544 | L17: 20039.95942 | M17: 25539.75904 | N17: 26428.0114 | O17: =O14/O44*100 -> 25751.93567 | P17: 26966.95994 | Q17: 26209.88814 | R17: 26303.01003 | S17: 25761.03229 | T17: 25585.29413 | U17: 25979.45304 | V17: 26302.46153 | W17: 27299.15112 | X17: 28850.83212 | Y17: =Y14/Y44*100 -> 31461.2935
F18: z toho učitelé1) | J18: 21780.92481 | K18: 21905.33114 | L18: 22661.49147 | M18: 29153.01205 | N18: 30151.38122 | O18: =O15/O44*100 -> 29298.29591 | P18: 30365.65948 | Q18: 29258.77495 | R18: 29416.80871 | S18: 28621.32131 | T18: 28408.03901 | U18: 28854.42337 | V18: 31100.88541 | W18: 32450.42623 | X18: 32266.76226 | Y18: =Y15/Y44*100 -> 35159.76049
E19: z toho | F19: Střední školy2)
F20: Všichni zřizovatelé (bez jiných resortů)
F21: Nominální mzda (v běžných cenách)
F22: Zaměstnanci celkem | J22: 18201.82826 | K22: 18851.96265 | L22: 20005.5068 | M22: 21135.75971 | N22: 22469.28992 | O22: 23280.2583 | P22: 24653.80335 | Q22: 24293.36695 | R22: 24855.35182 | S22: 25152.76234 | T22: 25339.94695 | U22: 25832.33455 | V22: 26222.87034 | W22: 27409.14472 | X22: 29680.34655 | Y22: 33076.25874
G23: z toho učitelé1) | J23: 20785.01882 | K23: 21459.36972 | L23: 22627.47187 | M23: 24168.94568 | N23: 25679.55309 | O23: 26530.19354 | P23: 27810.54016 | Q23: 27162.85486 | R23: 27843.18214 | S23: 27990.60978 | T23: 28184.43509 | U23: 28736.34038 | V23: 31184.11623 | W23: 32773.68342 | X23: 33261.38325 | Y23: 37037.27201
F24: Reálná mzda (ve stálých cenách roku 2015)
F25: Zaměstnanci celkem | J25: 19059.50603 | K25: 19217.08731 | L25: 20005.5068 | M25: 25464.77074 | N25: 26341.48877 | O25: =O22/O44*100 -> 25667.31896 | P25: 26885.28173 | Q25: 26121.89994 | R25: 26218.72555 | S25: 25692.30065 | T25: 25518.57699 | U25: 25910.06475 | V25: 26222.87034 | W25: 27218.61442 | X25: 28787.921 | Y25: =Y22/Y44*100 -> 31411.4518
G26: z toho učitelé1) | J26: 21764.41762 | K26: 21874.99462 | L26: 22627.47187 | M26: 29119.21167 | N26: 30104.98604 | O26: =O23/O44*100 -> 29250.48901 | P26: 30327.74282 | Q26: 29207.37081 | R26: 29370.44529 | S26: 28591.02123 | T26: 28383.1169 | U26: 28822.80881 | V26: 31184.11623 | W26: 32545.86238 | X26: 32261.28346 | Y26: =Y23/Y44*100 -> 35173.09783
F27: Konzervatoře
F28: Všichni zřizovatelé (bez jiných resortů)
F29: Nominální mzda (v běžných cenách)
F30: Zaměstnanci celkem | J30: . | K30: . | L30: . | M30: 22485 | N30: 24082.66541 | O30: 24743.62353 | P30: 26107.26676 | Q30: 25455.80092 | R30: 26373.30704 | S30: 25838.1515 | T30: 25684.56223 | U30: 26414.96752 | V30: 27444.16743 | W30: 28562.10468 | X30: 30879.98856 | Y30: 34168
G31: z toho učitelé1) | J31: . | K31: . | L31: . | M31: 24139 | N31: 25743.17617 | O31: 26441.10762 | P31: 27616.18771 | Q31: 26877.71966 | R31: 27849.82373 | S31: 27163.41557 | T31: 27118.59092 | U31: 27938.62849 | V31: 29018.51959 | W31: 30310.19435 | X31: 32645.1625 | Y31: 36118.9
F32: Reálná mzda (ve stálých cenách roku 2015)
F33: Zaměstnanci celkem | J33: . | K33: . | L33: . | M33: 27090.36145 | N33: 28232.902 | O33: =O30/O44*100 -> 27280.73156 | P33: 28470.30181 | Q33: 27371.82894 | R33: 27819.94414 | S33: 26392.39173 | T33: 25865.62158 | U33: 26494.45087 | V33: 27444.16743 | W33: 28363.55976 | X33: 29951.4923 | Y33: =Y30/Y44*100 -> 32448.24311
G34: z toho učitelé1) | J34: . | K34: . | L34: . | M34: 29083.13253 | N34: 30179.57347 | O34: =O31/O44*100 -> 29152.2686 | P34: 30115.79903 | Q34: 28900.77383 | R34: 29377.45119 | S34: 27746.08332 | T34: 27309.75924 | U34: 28022.69658 | V34: 29018.51959 | W34: 30099.49787 | X34: 31663.59118 | Y34: =Y31/Y44*100 -> 34300.94967
F35: VOŠ
F36: Všichni zřizovatelé (bez jiných resortů)
F37: Nominální mzda (v běžných cenách)
F38: Zaměstnanci celkem | J38: 19060 | K38: 19921 | L38: 20977.83813 | M38: 22292 | N38: 23858.63909 | O38: 24870.07007 | P38: 26222.58115 | Q38: 26278.99758 | R38: 26517.29655 | S38: 26834.65863 | T38: 27171.05365 | U38: 27597.92593 | V38: 27895.06207 | W38: 29263.19559 | X38: 31052.76046 | Y38: 34163.29485
G39: z toho učitelé1) | J39: 21174 | K39: 22187 | L39: 23520.53348 | M39: 24921 | N39: 26711.54789 | O39: 27800.79671 | P39: 28934.28519 | Q39: 28740.44095 | R39: 29079.38722 | S39: 29364.85335 | T39: 29568.41331 | U39: 30151.81846 | V39: 30524.81818 | W39: 31966.9084 | X39: 33959.63294 | Y39: 37401.45653
F40: Reálná mzda (ve stálých cenách roku 2015)
F41: Zaměstnanci celkem | J41: 19958.11518 | K41: 20306.82977 | L41: 20977.83813 | M41: 26857.83133 | N41: 27970.26857 | O41: =O38/O44*100 -> 27420.1434 | P41: 28596.0536 | Q41: 28256.98665 | R41: 27971.83181 | S41: 27410.2744 | T41: 27362.5918 | U41: 27680.96883 | V41: 27895.06207 | W41: 29059.77715 | X41: 30119.06931 | Y41: =Y38/Y44*100 -> 32443.77478
G42: z toho učitelé1) | J42: 22171.72775 | K42: 22616.71764 | L42: 23520.53348 | M42: 30025.3012 | N42: 31314.82754 | O42: =O39/O44*100 -> 30651.37454 | P42: 31553.20086 | Q42: 30903.69995 | R42: 30674.45909 | S42: 29994.74295 | T42: 29776.85127 | U42: 30242.5461 | V42: 30524.81818 | W42: 31744.69553 | X42: 32938.53826 | Y42: =Y39/Y44*100 -> 35518.95207
D43: Index spotřebitelských cen a meziroční inflace
E44: Index spotřebitelských cen (rok 2015 = 100) | J44: 95.5 | K44: 98.1 | L44: 100 | M44: 83 | N44: 85.3 | O44: 90.7 | P44: 91.7 | Q44: 93 | R44: 94.8 | S44: 97.9 | T44: 99.3 | U44: 99.7 | V44: 100 | W44: 100.7 | X44: 103.1 | Y44: 105.3
E45: meziroční inflace | J45: 0.001 | K45: 0.028 | L45: 0.019 | M45: 0.025 | N45: 0.028 | O45: 0.063 | P45: 0.01 | Q45: 0.015 | R45: 0.019 | S45: 0.033 | T45: 0.014 | U45: 0.004 | V45: 0.003 | W45: 0.007 | X45: 0.025 | Y45: 0.021
D46: Komentáře: | Y46: Zdroj: databáze MŠMT, ČSÚ
D47: 1) | E47: Včetně vedoucích zaměstnanců.

Sheet B5.1.22
D4: Tab. B5.1.22: | H4: Střední vzdělávání – výdaje na střední vzdělávání, konzervatoře
D5: a VOŠ v letech 2008 až 2018
Y6: v tis. Kč
J7: 2003 | K7: 2004 | L7: 2005 | M7: 2006 | N7: 2007 | O7: 2008 | P7: 2009 | Q7: 2010 | R7: 2011 | S7: 2012 | T7: 2013 | U7: 2014 | V7: 2015 | W7: 2016 | X7: 2017 | Y7: 2018
D12: Celkové výdaje na střední školy3), konzervatoře a VOŠ
E13: Celkem | J13: 26271757.45 | K13: 27737448.82 | L13: 29104283.74 | M13: 31274985.72 | N13: 32214296.68 | O13: 33585311.41 | P13: 35509514.82 | Q13: 34418386.81 | R13: 33899181.88 | S13: 33275397.89 | T13: 32038771.07 | U13: =U14+U15 -> 32475602.12 | V13: =V14+V15 -> 34428826.66 | W13: =W14+W15 -> 32664924.1 | X13: =X14+X15 -> 35442374.99 | Y13: =Y14+Y15 -> 43243566.25
E14: v tom | F14: neinvestiční výdaje | J14: 25221351.55 | K14: 26199167.27 | L14: 27548634.12 | M14: 29346732.84 | N14: 30508279.64 | O14: 31259303.82 | P14: 32199717.22 | Q14: 31344517.08 | R14: 31134197.59 | S14: 31227034.11 | T14: 30336220.58 | U14: =U32+U50 -> 29727007.8 | V14: 30947279.12 | W14: =W32+W50 -> 30697698.3 | X14: =X32+X50 -> 33164819.12 | Y14: 37320605.81
F15: investiční výdaje | J15: 1050405.9 | K15: 1538281.55 | L15: 1555649.62 | M15: 1928252.88 | N15: 1706017.04 | O15: 2326007.59 | P15: 3309797.6 | Q15: 3073869.73 | R15: 2764984.295 | S15: 2048363.778 | T15: 1702550.489 | U15: 2748594.321 | V15: 3481547.544 | W15: =W33+W51 -> 1967225.805 | X15: =X33+X51 -> 2277555.865 | Y15: 5922960.442
E16: v % | F16: neinvestiční výdaje | J16: 0.9600176767 | K16: 0.944541347 | L16: 0.9465491185 | M16: 0.9383452035 | N16: 0.9470416177 | O16: 0.9307433073 | P16: 0.9067912469 | Q16: 0.9106910575 | R16: 0.918435073 | S16: 0.9384420951 | T16: 0.9468596818 | U16: =U14/U13 -> 0.9153643307 | V16: =V14/V13 -> 0.8988769621 | W16: =W14/W13 -> 0.9397755893 | X16: =X14/X13 -> 0.9357391861 | Y16: =Y14/Y13 -> 0.8630325629
F17: investiční výdaje | J17: 0.0399823233 | K17: 0.05545865303 | L17: 0.05345088145 | M17: 0.0616547965 | N17: 0.05295838233 | O17: 0.06925669265 | P17: 0.09320875311 | Q17: 0.08930894254 | R17: 0.081564927 | S17: 0.06155790487 | T17: 0.05314031818 | U17: =U15/U13 -> 0.08463566929 | V17: =V15/V13 -> 0.1011230379 | W17: =W15/W13 -> 0.06022441069 | X17: =X15/X13 -> 0.06426081395 | Y17: =Y15/Y13 -> 0.1369674371
D18: z toho výdaje na konzervatoře2) z rozpočtů kapitol 333-MŠMT; 700-Obce a DSO, KÚ
E19: Celkem | J19: . | K19: . | L19: . | M19: . | N19: 587217.8 | O19: 583663.58 | P19: 649628.85 | Q19: 753234.69 | R19: 736396.265 | S19: 649363.4726 | T19: 662427.8997 | U19: =U20+U21 -> 676054.2075 | V19: =V20+V21 -> 655577.389 | W19: =W20+W21 -> 673479.6461 | X19: =X20+X21 -> 744129.6802 | Y19: =Y20+Y21 -> 880892.2353
E20: v tom | F20: neinvestiční výdaje | J20: . | K20: . | L20: . | M20: . | N20: 517936.56 | O20: 542662.91 | P20: 597332.36 | Q20: 600224.95 | R20: 609866.275 | S20: 620130.5626 | T20: 642362.8214 | U20: =U38+U56 -> 664525.2075 | V20: 652406.1 | W20: =W38+W56 -> 667475.9775 | X20: =X38+X56 -> 715867.5964 | Y20: 788341.3266
F21: investiční výdaje | J21: . | K21: . | L21: . | M21: . | N21: 69281.24 | O21: 41000.67 | P21: 52296.49 | Q21: 153009.74 | R21: 126529.99 | S21: 29232.91 | T21: 20065.07829 | U21: 11529 | V21: 3171.289 | W21: =W39+W57 -> 6003.66866 | X21: =X39+X57 -> 28262.08382 | Y21: 92550.9087
E22: v % | F22: neinvestiční výdaje | J22: . | K22: . | L22: . | M22: . | N22: 0.8820178135 | O22: 0.9297529066 | P22: 0.9194978948 | Q22: 0.7968631264 | R22: 0.828176763 | S22: 0.9549822076 | T22: 0.9697097929 | U22: =U20/U19 -> 0.9829466338 | V22: =V20/V19 -> 0.9951626016 | W22: =W20/W19 -> 0.9910855975 | X22: =X20/X19 -> 0.9620199482 | Y22: =Y20/Y19 -> 0.8949350386
F23: investiční výdaje | J23: . | K23: . | L23: . | M23: . | N23: 0.1179821865 | O23: 0.07024709337 | P23: 0.08050210516 | Q23: 0.2031368736 | R23: 0.171823237 | S23: 0.0450177924 | T23: 0.03029020713 | U23: =U21/U19 -> 0.01705336624 | V23: =V21/V19 -> 0.00483739838 | W23: =W21/W19 -> 0.008914402528 | X23: =X21/X19 -> 0.03798005183 | Y23: =Y21/Y19 -> 0.1050649614
D24: z toho výdaje na VOŠ z rozpočtů kapitol 333-MŠMT; 700-Obce a DSO, KÚ
E25: Celkem | J25: 684023.35 | K25: 768605.31 | L25: 717972.3 | M25: 725092.39 | N25: 710881.12 | O25: 682463.01 | P25: 705903.79 | Q25: 697723.6 | R25: 666240.4546 | S25: 547083.3363 | T25: 599171.2907 | U25: =U26+U27 -> 633492.5851 | V25: =V26+V27 -> 546248.342 | W25: =W26+W27 -> 480492.4101 | X25: =X26+X27 -> 482800.6089 | Y25: =Y26+Y27 -> 812613.1492
E26: v tom | F26: neinvestiční výdaje | J26: 670804.43 | K26: 710343.52 | L26: 700589.65 | M26: 721105.7 | N26: 708384.99 | O26: 679663.06 | P26: 673641.41 | Q26: 691202.1 | R26: 631698.6346 | S26: 546714.8683 | T26: 556389.5744 | U26: =U44+U62 -> 522679.442 | V26: 491247.0062 | W26: =W44+W62 -> 478132.4101 | X26: =X44+X62 -> 479726.6089 | Y26: 657081.6505
F27: investiční výdaje | J27: 13218.92 | K27: 58261.79 | L27: 17382.65 | M27: 3986.69 | N27: 2496.13 | O27: 2799.95 | P27: 32262.38 | Q27: 6521.5 | R27: 34541.82 | S27: 368.468 | T27: 42781.71634 | U27: 110813.1431 | V27: 55001.33578 | W27: =W45+W63 -> 2360 | X27: =X45+X63 -> 3074 | Y27: 155531.4987
E28: v % | F28: neinvestiční výdaje | J28: 0.9806747533 | K28: 0.9241980387 | L28: 0.975789247 | M28: 0.9945018179 | N28: 0.9964886815 | O28: 0.9958972868 | P28: 0.9542963496 | Q28: 0.9906531756 | R28: 0.948154124 | S28: 0.9993264865 | T28: 0.928598521 | U28: =U26/U25 -> 0.825075864 | V28: =V26/V25 -> 0.8993107502 | W28: =W26/W25 -> 0.9950883719 | X28: =X26/X25 -> 0.9936329823 | Y28: =Y26/Y25 -> 0.808603271
F29: investiční výdaje | J29: 0.01932524672 | K29: 0.07580196135 | L29: 0.02421075298 | M29: 0.005498182101 | N29: 0.003511318461 | O29: 0.004102713201 | P29: 0.04570365035 | Q29: 0.009346824445 | R29: 0.05184587601 | S29: 0.0006735134769 | T29: 0.07140147901 | U29: =U27/U25 -> 0.174924136 | V29: =V27/V25 -> 0.1006892498 | W29: =W27/W25 -> 0.004911628052 | X29: =X27/X25 -> 0.006367017653 | Y29: =Y27/Y25 -> 0.191396729
D30: Výdaje z rozpočtu kapitoly 333-MŠMT
E31: Celkem | J31: 640038.25 | K31: 654463.14 | L31: 768762.68 | M31: 790408.74 | N31: 679008.54 | O31: 770620.66 | P31: 782313.41 | Q31: 865740.9 | R31: 789490.6681 | S31: 1804227.844 | T31: 1495734.833 | U31: =U32+U33 -> 934810.8316 | V31: =V32+V33 -> 1503938.039 | W31: =W32+W33 -> 955310.715 | X31: =X32+X33 -> 1500299.296 | Y31: =Y32+Y33 -> 1687448.931
E32: v tom | F32: neinvestiční výdaje | J32: 538704.73 | K32: 609574.59 | L32: 648418.14 | M32: 728711.31 | N32: 650786.49 | O32: 752598 | P32: 770477.37 | Q32: 854353.4 | R32: 787585.7627 | S32: 1796065.545 | T32: 1495240.599 | U32: 931651.5904 | V32: 1497029.833 | W32: 910778.9561 | X32: 1477442.832 | Y32: 1687448.931
F33: investiční výdaje | J33: 101333.52 | K33: 44888.55 | L33: 120344.54 | M33: 61697.43 | N33: 28222.05 | O33: 18022.66 | P33: 11836.04 | Q33: 11387.5 | R33: 1904.90544 | S33: 8162.2988 | T33: 494.234 | U33: 3159.2412 | V33: 6908.20565 | W33: 44531.75895 | X33: 22856.46395 | Y33: 0
E34: v % | F34: neinvestiční výdaje | J34: 0.8416758373 | K34: 0.9314116453 | L34: 0.843456839 | M34: 0.9219423738 | N34: 0.9584363843 | O34: 0.9766127994 | P34: 0.9848704626 | Q34: 0.9868465265 | R34: 0.9975871717 | S34: 0.9954760155 | T34: 0.9996695711 | U34: =U32/U31 -> 0.9966204487 | V34: =V32/V31 -> 0.9954065889 | W34: =W32/W31 -> 0.9533850524 | X34: =X32/X31 -> 0.9847653971 | Y34: =Y32/Y31 -> 1
F35: investiční výdaje | J35: 0.1583241627 | K35: 0.06858835472 | L35: 0.156543161 | M35: 0.07805762624 | N35: 0.04156361568 | O35: 0.02338720065 | P35: 0.01512953741 | Q35: 0.01315347352 | R35: 0.002412828317 | S35: 0.0045239845 | T35: 0.0003304288896 | U35: =U33/U31 -> 0.003379551341 | V35: =V33/V31 -> 0.00459341108 | W35: =W33/W31 -> 0.04661494763 | X35: =X33/X31 -> 0.01523460287 | Y35: =Y33/Y31 -> 0
D36: z toho výdaje na konzervatoře2) z rozpočtu kapitoly 333-MŠMT
E37: Celkem | J37: . | K37: . | L37: . | M37: . | N37: 23333 | O37: 24894 | P37: 54035.16 | Q37: 55536.21 | R37: 57313.055 | S37: 61239.5568 | T37: 65751.7852 | U37: =U38+U39 -> 63059 | V37: =V38+V39 -> 42301.908 | W37: =W38+W39 -> 38817 | X37: =X38+X39 -> 37237.4666 | Y37: =Y38+Y39 -> 44188.8344
E38: v tom | F38: neinvestiční výdaje | J38: . | K38: . | L38: . | M38: . | N38: 23333 | O38: 24894 | P38: 53555.16 | Q38: 55536.21 | R38: 57313.055 | S38: 61239.5568 | T38: 65751.7852 | U38: 63059 | V38: 42301.908 | W38: 38817 | X38: 37237.4666 | Y38: 44188.8344
F39: investiční výdaje | J39: . | K39: . | L39: . | M39: . | N39: 0 | O39: 0 | P39: 480 | Q39: 0 | R39: 0 | S39: 0 | T39: 0 | U39: 0 | V39: 0 | W39: 0 | X39: 0 | Y39: 0
E40: v % | F40: neinvestiční výdaje | J40: . | K40: . | L40: . | M40: . | N40: 1 | O40: 1 | P40: 0.991116895 | Q40: 1 | R40: 1 | S40: 1 | T40: 1 | U40: =U38/U37 -> 1 | V40: =V38/V37 -> 1 | W40: =W38/W37 -> 1 | X40: =X38/X37 -> 1 | Y40: =Y38/Y37 -> 1
F41: investiční výdaje | J41: . | K41: . | L41: . | M41: . | N41: 0 | O41: 0 | P41: 0.008883105001 | Q41: 0 | R41: 0 | S41: 0 | T41: 0 | U41: =U39/U37 -> 0 | V41: =V39/V37 -> 0 | W41: =W39/W37 -> 0 | X41: =X39/X37 -> 0 | Y41: =Y39/Y37 -> 0
D42: z toho výdaje na VOŠ z rozpočtu kapitoly 333-MŠMT
E43: Celkem | J43: 101352.87 | K43: 52340 | L43: 60109 | M43: 65136 | N43: 53610.73 | O43: 52595 | P43: 49921 | Q43: 86666.78 | R43: 76344.23472 | S43: 124466.5988 | T43: 134243.5909 | U43: =U44+U45 -> 69936.3662 | V43: =V44+V45 -> 61123 | W43: =W44+W45 -> 66136 | X43: =X44+X45 -> 105887.0906 | Y43: =Y44+Y45 -> 214347.6516
E44: v tom | F44: neinvestiční výdaje | J44: 60778.18 | K44: 52340 | L44: 60109 | M44: 65136 | N44: 53508 | O44: 52595 | P44: 49921 | Q44: 86429.8 | R44: 76344.23472 | S44: 123546.2388 | T44: 134193.9069 | U44: 69936.3662 | V44: 61123 | W44: 66136 | X44: 105887.0906 | Y44: 214347.6516
F45: investiční výdaje | J45: 40574.69 | K45: 0 | L45: 0 | M45: 0 | N45: 102.73 | O45: 0 | P45: 0 | Q45: 236.98 | R45: 0 | S45: 920.36 | T45: 49.684 | U45: 0 | V45: 0 | W45: 0 | X45: 0 | Y45: 0
E46: v % | F46: neinvestiční výdaje | J46: 0.5996690572 | K46: 1 | L46: 1 | M46: 1 | N46: 0.9980837791 | O46: 1 | P46: 1 | Q46: 0.997265619 | R46: 1 | S46: 0.9926055664 | T46: 0.9996298967 | U46: =U44/U43 -> 1 | V46: =V44/V43 -> 1 | W46: =W44/W43 -> 1 | X46: =X44/X43 -> 1 | Y46: =Y44/Y43 -> 1
F47: investiční výdaje | J47: 0.4003309428 | K47: 0 | L47: 0 | M47: 0 | N47: 0.001916220876 | O47: 0 | P47: 0 | Q47: 0.00273438104 | R47: 0 | S47: 0.007394433597 | T47: 0.0003701033298 | U47: =U45/U43 -> 0 | V47: =V45/V43 -> 0 | W47: =W45/W43 -> 0 | X47: =X45/X43 -> 0 | Y47: =Y45/Y43 -> 0
D48: Výdaje z rozpočtu kapitoly 700-Obce a DSO, KÚ
E49: Celkem | J49: 25687241.77 | K49: 27082985.68 | L49: 28335521.06 | M49: 30484576.98 | N49: 31535288.14 | O49: 32878132.75 | P49: 34796741.87 | Q49: 33681576.79 | R49: 33158163.73 | S49: 32330331.83 | T49: 30543036.23 | U49: =U50+U51 -> 31540791.29 | V49: =V50+V51 -> 32924888.62 | W49: =W50+W51 -> 31709613.39 | X49: =X50+X51 -> 33942075.69 | Y49: 41556117.32
E50: v tom | F50: neinvestiční výdaje | J50: 24690215.9 | K50: 25589592.68 | L50: 26900215.98 | M50: 28618021.53 | N50: 29857493.15 | O50: 30570147.82 | P50: 31498729.31 | Q50: 30613983.06 | R50: 30394559.34 | S50: 30289112.02 | T50: 28840979.98 | U50: 28795356.21 | V50: 29450249.29 | W50: 29786919.34 | X50: 31687376.29 | Y50: 35633156.88
F51: investiční výdaje | J51: 997025.87 | K51: 1493393 | L51: 1435305.08 | M51: 1866555.45 | N51: 1677794.99 | O51: 2307984.93 | P51: 3298012.56 | Q51: 3067593.73 | R51: 2763604.39 | S51: 2041219.81 | T51: 1702056.255 | U51: 2745435.08 | V51: 3474639.339 | W51: 1922694.046 | X51: 2254699.401 | Y51: 5922960.442
E52: v % | F52: neinvestiční výdaje | J52: 0.9611859506 | K52: 0.9448586276 | L52: 0.9493460848 | M52: 0.9387704986 | N52: 0.9467962689 | O52: 0.9298018246 | P52: 0.9052206505 | Q52: 0.90892369 | R52: 0.9166538771 | S52: 0.9368636295 | T52: 0.9442735083 | U52: =U50/U49 -> 0.9129560494 | V52: =V50/V49 -> 0.8944676965 | W52: =W50/W49 -> 0.9393655791 | X52: =X50/X49 -> 0.9335721415 | Y52: 0.8574707931
F53: investiční výdaje | J53: 0.03881404936 | K53: 0.05514137243 | L53: 0.05065391517 | M53: 0.06122950144 | N53: 0.05320373109 | O53: 0.07019817541 | P53: 0.09477934952 | Q53: 0.09107631003 | R53: 0.08334612292 | S53: 0.06313637054 | T53: 0.05572649168 | U53: =U51/U49 -> 0.08704395064 | V53: =V51/V49 -> 0.1055323035 | W53: =W51/W49 -> 0.06063442092 | X53: =X51/X49 -> 0.06642785849 | Y53: 0.1425292069
D54: z toho výdaje na konzervatoře2) z rozpočtu kapitoly 700-Obce a DSO, KÚ
E55: Celkem | J55: . | K55: . | L55: . | M55: . | N55: 563884.8 | O55: 558769.58 | P55: 595593.69 | Q55: 697698.48 | R55: 679083.21 | S55: 591200.12 | T55: 596676.1145 | U55: =U56+U57 -> 612995.2075 | V55: =V56+V57 -> 613275.481 | W55: =W56+W57 -> 634662.6461 | X55: =X56+X57 -> 706892.2136 | Y55: =Y56+Y57 -> 836703.4009
E56: v tom | F56: neinvestiční výdaje | J56: . | K56: . | L56: . | M56: . | N56: 494603.56 | O56: 517768.91 | P56: 543777.2 | Q56: 544688.74 | R56: 552553.22 | S56: 561967.21 | T56: 576611.0362 | U56: 601466.2075 | V56: 610104.192 | W56: 628658.9775 | X56: 678630.1298 | Y56: 744152.4922
F57: investiční výdaje | J57: . | K57: . | L57: . | M57: . | N57: 69281.24 | O57: 41000.67 | P57: 51816.49 | Q57: 153009.74 | R57: 126529.99 | S57: 29232.91 | T57: 20065.07829 | U57: 11529 | V57: 3171.289 | W57: 6003.66866 | X57: 28262.08382 | Y57: 92550.9087
E58: v % | F58: neinvestiční výdaje | J58: . | K58: . | L58: . | M58: . | N58: 0.8771358263 | O58: 0.9266232961 | P58: 0.9130002704 | Q58: 0.7806936028 | R58: 0.8136752785 | S58: 0.9505532746 | T58: 0.9663719096 | U58: =U56/U55 -> 0.9811923489 | V58: =V56/V55 -> 0.9948289324 | W58: =W56/W55 -> 0.9905403781 | X58: =X56/X55 -> 0.9600192458 | Y58: =Y56/Y55 -> 0.8893862406
F59: investiční výdaje | J59: . | K59: . | L59: . | M59: . | N59: 0.1228641737 | O59: 0.07337670386 | P59: 0.08699972963 | Q59: 0.2193063972 | R59: 0.1863247215 | S59: 0.04944672542 | T59: 0.03362809035 | U59: =U57/U55 -> 0.01880765112 | V59: =V57/V55 -> 0.005171067649 | W59: =W57/W55 -> 0.00945962189 | X59: =X57/X55 -> 0.03998075417 | Y59: =Y57/Y55 -> 0.1106137594
D60: z toho výdaje na VOŠ z rozpočtu kapitoly 700-Obce a DSO, KÚ
E61: Celkem | J61: 630615.35 | K61: 716265.31 | L61: 657863.3 | M61: 659956.39 | N61: 657270.39 | O61: 629868.01 | P61: 655982.79 | Q61: 637632.57 | R61: 605549.25 | S61: 464197.72 | T61: 464927.6998 | U61: =U62+U63 -> 563556.2189 | V61: =V62+V63 -> 485125.342 | W61: =W62+W63 -> 414356.4101 | X61: =X62+X63 -> 376913.5183 | Y61: =Y62+Y63 -> 598265.4976
E62: v tom | F62: neinvestiční výdaje | J62: 617396.43 | K62: 658003.52 | L62: 640480.65 | M62: 655969.7 | N62: 654876.99 | O62: 627068.06 | P62: 623720.41 | Q62: 631181.07 | R62: 571007.43 | S62: 464197.72 | T62: 422195.6675 | U62: 452743.0758 | V62: 430124.0062 | W62: 411996.4101 | X62: 373839.5183 | Y62: 442733.9989
F63: investiční výdaje | J63: 13218.92 | K63: 58261.79 | L63: 17382.65 | M63: 3986.69 | N63: 2393.4 | O63: 2799.95 | P63: 32262.38 | Q63: 6451.5 | R63: 34541.82 | S63: 0 | T63: 42732.03234 | U63: 110813.1431 | V63: 55001.33578 | W63: 2360 | X63: 3074 | Y63: 155531.4987
E64: v % | F64: neinvestiční výdaje | J64: 0.9790380618 | K64: 0.9186589254 | L64: 0.9735771094 | M64: 0.9939591615 | N64: 0.9963585763 | O64: 0.9955547036 | P64: 0.9508182524 | Q64: 0.989882104 | R64: 0.9429578684 | S64: 1 | T64: 0.9080888655 | U64: =U62/U61 -> 0.8033680768 | V64: =V62/V61 -> 0.8866244844 | W64: =W62/W61 -> 0.9943044202 | X64: =X62/X61 -> 0.991844283 | Y64: =Y62/Y61 -> 0.7400293025
F65: investiční výdaje | J65: 0.02096193821 | K65: 0.08134107458 | L65: 0.02642289059 | M65: 0.006040838547 | N65: 0.003641423737 | O65: 0.004445296404 | P65: 0.04918174759 | Q65: 0.01011789595 | R65: 0.05704213159 | S65: 0 | T65: 0.09191113447 | U65: =U63/U61 -> 0.1966319232 | V65: =V63/V61 -> 0.1133755156 | W65: =W63/W61 -> 0.005695579802 | X65: =X63/X61 -> 0.008155717029 | Y65: =Y63/Y61 -> 0.2599706975
D66: Podíl výdajů na střední školy na celkových výdajích na školství a podíl na HDP
E67: Výdaje na školství celkem v mld. Kč1),4) | J67: 114.2477725 | K67: 121.3480397 | L67: 128.5541745 | M67: 141.2484394 | N67: 151.5849897 | O67: 149.7997268 | P67: 162.803504 | Q67: 161.8748019 | R67: 172.7687959 | S67: 170.3742654 | T67: 171.7249628 | U67: 177.5906341 | V67: 181.6089812 | W67: 172.2724 | X67: 193.6421335 | Y67: 221.5246672
E68: Podíl výdajů na střední školy, konzervatoře a VOŠ na celkových výdajích na školství | J68: =J13/J67/1000000 -> 0.2299542203 | K68: 0.2285776424 | L68: 0.2263970335 | M68: 0.2214182744 | N68: 0.2125164025 | O68: 0.2242014196 | P68: 0.2181127184 | Q68: 0.2126234991 | R68: 0.1962112528 | S68: 0.1953076529 | T68: 0.1865702607 | U68: 0.1828677638 | V68: 0.1895766742 | W68: =W13/W67/1000000 -> 0.1896120569 | X68: =X13/X67/1000000 -> 0.1830302855 | Y68: =Y13/Y67/1000000 -> 0.1952088081
E69: HDP v mld. Kč v běžných cenách | J69: 2688.107 | K69: 3057.66 | L69: 128.5541745 | M69: 3507.131 | N69: 3840.117 | O69: 4024.117 | P69: 3930.409 | Q69: 3962.464 | R69: 4033.755 | S69: 4059.912 | T69: 4098.128 | U69: 4313.789 | V69: 4595.783 | W69: 4773.24 | X69: 5055.029 | Y69: 5408.766
E70: Výdaje na střední školy, konzervatoře a VOŠ v % HDP | J70: =J13/J69/1000000 -> 0.009773330247 | K70: =K13/K69/1000000 -> 0.009071462759 | L70: =L13/L69/1000000 -> 0.2263970335 | M70: =M13/M69/1000000 -> 0.008917541352 | N70: =N13/N69/1000000 -> 0.008388884162 | O70: =O13/O69/1000000 -> 0.008346007686 | P70: 0.009034559716 | Q70: 0.008686107132 | R70: 0.008403877251 | S70: 0.00819608846 | T70: 0.007817903947 | U70: 0.007528324199 | V70: 0.007491395191 | W70: =W13/W69/1000000 -> 0.006843344166 | X70: =X13/X69/1000000 -> 0.007011309923 | Y70: =Y13/Y69/1000000 -> 0.007995089129
E71: z toho konzervatoře v % HDP | J71: . | K71: . | L71: . | M71: . | N71: =N19/1000000/N69 -> 0.0001529166429 | O71: 0.0001450414041 | P71: 0.0001652827606 | Q71: 0.0001900925005 | R71: 0.0001825585007 | S71: 0.0001599452088 | T71: 0.0001616415836 | U71: =U19/1000000/U69 -> 0.0001567193499 | V71: =V19/1000000/V69 -> 0.0001426475943 | W71: =W19/1000000/W69 -> 0.0001410948635 | X71: =X19/1000000/X69 -> 0.0001472058183 | Y71: =Y19/1000000/Y69 -> 0.0001628638095
E72: z toho VOŠ v % HDP | J72: =J25/J69/1000000 -> 0.0002544628432 | K72: 0.0002513704303 | L72: 0.005584978496 | M72: 0.00020674802 | N72: 0.0001851196513 | O72: 0.0001695932325 | P72: 0.0001796005937 | Q72: 0.0001760832654 | R72: 0.0001651663164 | S72: 0.000134752511 | T72: 0.0001462060948 | U72: =U25/U69/1000000 -> 0.0001468529372 | V72: =V25/V69/1000000 -> 0.0001188586019 | W72: =W25/W69/1000000 -> 0.000100663786 | X72: =X25/X69/1000000 -> 9.550896918e-05 | Y72: =Y25/Y69/1000000 -> 0.0001502400269
D73: Dotace soukromým a církevním středním školám3), konzervatořím a VOŠ z kapitoly 333-MŠMT
E74: Celkem5) | J74: 2488853.961 | K74: 2662863.356 | L74: 2839042.419 | M74: 3137995.727 | N74: 3277006.9 | O74: . | P74: . | Q74: . | R74: . | S74: . | T74: . | U74: . | V74: . | W74: . | X74: . | Y74: .
E75: soukromé střední školy, konzervatoře, VOŠ5) | J75: 2145789.97 | K75: 2297292.792 | L75: 2453251.922 | M75: 2718042.165 | N75: 2828901.9 | O75: . | P75: . | Q75: . | R75: . | S75: . | T75: . | U75: . | V75: . | W75: . | X75: . | Y75: .
E76: z toho výdaje na konzervatoře2) | J76: . | K76: . | L76: . | M76: . | N76: 23879.274 | O76: . | P76: . | Q76: . | R76: . | S76: . | T76: . | U76: . | V76: . | W76: . | X76: . | Y76: .
E77: z toho výdaje na VOŠ | J77: 172818.077 | K77: 188611.543 | L77: 199595.911 | M77: 225920.801 | N77: 217632.935 | O77: . | P77: . | Q77: . | R77: . | S77: . | T77: . | U77: . | V77: . | W77: . | X77: . | Y77: .
E78: církevní střední školy, konzervatoře, VOŠ 6) | J78: 343063.991 | K78: 365570.564 | L78: 385790.497 | M78: 419953.562 | N78: 448105 | O78: 486414.467 | P78: 489493.2 | Q78: 498474 | R78: 507128 | S78: 524860 | T78: 545005 | U78: 554173 | V78: 568647 | W78: 490323 | X78: 633058.544 | Y78: 697907.4
E79: z toho výdaje na konzervatoře2) | J79: . | K79: . | L79: . | M79: . | N79: 23333 | O79: 24894 | P79: 27969 | Q79: 29782 | R79: 30272 | S79: 32701 | T79: 36820 | U79: 38664 | V79: 39520 | W79: 38817 | X79: 36487.271 | Y79: 41436.175
E80: z toho výdaje na VOŠ | J80: 53408 | K80: 52340 | L80: 60109 | M80: 65136 | N80: 53508 | O80: 52595 | P80: 49921 | Q80: 51957 | R80: 56549 | S80: 58208 | T80: 60509 | U80: 58500 | V80: 61123 | W80: 66136 | X80: 62055.887 | Y80: 62552.844
D81: Komentáře: | Y81: Zdroj: Státní závěrečný účet, ZÚ - kapitola 333-MŠMT; 700-Obce a DSO, KÚ; ostatní resorty, ČSÚ; monitor.statnipokladna.cz
D82: 1) | E82: Celkové výdaje kapitoly 333-MŠMT a kapitoly 700-Obce (část vzdělávání). Nejsou zahrnuty výdaje Ministerstva obrany.
D83: 2) | E83: Konzervatoře jsou v rozpočtové skladbě sledovány odděleně od roku 2007.
D84: 3) | E84: Podle změn v rozpočtové skladbě platných od září 2006 došlo k zahrnutí školních hospodářství pod paragraf středisek praktického vyučování a vzhledem k nemožnosti je oddělit jsou od roku 2007 uváděna v rámci výdajů na střední odborná učiliště a střední školy.
D86: 4) | E86: Meziroční snížení výdajů v roce 2008 je dáno aplikací zákona č. 26/2008 Sb. a z něj vyplývajícím nepřeváděním nevyčerpaných prostředků OSS do rezervních fondů, a tudíž jejich nezahrnutím do čerpání.
D87: 5) | E87: Od roku 2008 nejsou k dispozici údaje o dotacích soukromým školám v potřebném členění.
D88: 6) | E88: Jedná se o uvolněné prostředky odpovídající hodnotám, na co bylo příjemcům dotačních prostředků vystavena rozhodnutí o poskytnutí dotace a co příjemcům dotačních prostředků skutečně v součtu za všechna rozhodnutí o poskytnutí dotace v příslušném roce odešlo.

Sheet GB1
D4: Obr. B1: | H4: SŠ, denní forma vzdělávání – žáci na úrovni středního vzdělávání vzhledem k populaci 15–18letých ve školním roce 2008/09 až 2018/19
K10: 2003/04 | L10: 2004/05 | M10: 2005/06 | N10: 2007/08 | O10: 2008/09 | P10: 2009/10 | Q10: 2010/11 | R10: 2011/12 | S10: 2012/13 | T10: 2013/14 | U10: 2014/15 | V10: 2015/16 | W10: 2016/17 | X10: 2017/18 | Y10: 2018/19
J11: střední vzdělávání s maturitní zkouškou | K11: 329910 | L11: 335931 | M11: 340036 | N11: 347052 | O11: 348130 | P11: 344075 | Q11: 327526 | R11: 308401 | S11: 287863 | T11: 272711 | U11: 265683 | V11: 262810 | W11: 263844 | X11: 265401 | Y11: 266849
J12: střední vzdělávání s výučním listem | K12: 146509 | L12: 141058 | M12: 135162 | N12: 122135 | O12: 115063 | P12: 112031 | Q12: 106684 | R12: 101694 | S12: 98233 | T12: 94638 | U12: 91601 | V12: 88543 | W12: 85985 | X12: 83763 | Y12: 82963
J13: střední vzdělávání | K13: 2790 | L13: 2586 | M13: 2296 | N13: 1692 | O13: 1675 | P13: 1802 | Q13: 1962 | R13: 1966 | S13: 1940 | T13: 1933 | U13: 2000 | V13: 2162 | W13: 2369 | X13: 2579 | Y13: 2690
J14: populace 15–18letých | K14: 528264 | L14: 521695 | M14: 520460 | N14: 511481 | O14: 505731 | P14: 483436 | Q14: 451310 | R14: 417679 | S14: 387456 | T14: 370835 | U14: 364310 | V14: 364651 | W14: 365542 | X14: 369401 | Y14: 375247
J15: podíl na přísl. populaci | K15: 0.9071392334 | L15: 0.919263171 | M15: 0.9174403412 | N15: 0.9208729161 | O15: 0.9189648252 | P15: 0.9471946649 | Q15: 0.9664576455 | R15: 0.9865494794 | S15: 1.001496944 | T15: 0.9958121537 | U15: 0.986204057 | V15: 0.9694612109 | W15: 0.9634953029 | X15: 0.9521982886 | Y15: 0.9393865907
D38: Komentáře: | Y38: Zdroj: databáze MŠMT, ČSÚ
D39: 1) | E39: Střední vzdělávání s výučním listem a střední vzdělávání s maturitní zkouškou je bez zkráceného studia.

Sheet GB2
D4: Obr. B2: | H4: Střední školy – struktura škol ve školním roce 2008/09 až 2018/19 – podle zřizovatele
K10: 2003/04 | L10: 2004/05 | M10: 2005/06 | N10: 2007/08 | O10: 2008/09 | P10: 2009/10 | Q10: 2010/11 | R10: 2011/12 | S10: 2012/13 | T10: 2013/14 | U10: 2014/15 | V10: 2015/16 | W10: 2016/17 | X10: 2017/18 | Y10: 2018/19
J11: veřejný | K11: 0.8005982054 | L11: 0.7950152594 | M11: 0.7964071856 | N11: 0.7477539737 | O11: 0.7433936022 | P11: 0.7431960921 | Q11: 0.7463106114 | R11: 0.7430007179 | S11: 0.7401633259 | T11: 0.7422990233 | U11: 0.7419847328 | V11: 0.745398773 | W11: 0.7444529457 | X11: 0.746941896 | Y11: 0.7457364341
J12: privátní sektor | K12: 0.1799601196 | L12: 0.1846388606 | M12: 0.1831337325 | N12: 0.2273669661 | O12: 0.2315716273 | P12: 0.2316817865 | Q12: 0.2283907238 | R12: 0.2304379038 | S12: 0.2323682257 | T12: 0.2299023291 | U12: 0.2282442748 | V12: 0.2246932515 | W12: 0.2249426167 | X12: 0.2224770642 | Y12: 0.2217054264
J13: církev | K13: 0.01944167498 | L13: 0.02034587996 | M13: 0.02045908184 | N13: 0.02487906012 | O13: 0.02503477051 | P13: 0.02512212142 | Q13: 0.02529866479 | R13: 0.02656137832 | S13: 0.0274684484 | T13: 0.02779864763 | U13: 0.02977099237 | V13: 0.02990797546 | W13: 0.03060443764 | X13: 0.03058103976 | Y13: 0.03255813953
Y35: Zdroj: databáze MŠMT

Sheet GB3
D4: Obr. B3: | H4: Střední školy – struktura žáků ve školním roce 2008/09 až 2018/19
K10: 2003/04 | L10: 2004/05 | M10: 2005/06 | N10: 2007/08 | O10: 2008/09 | P10: 2009/10 | Q10: 2010/11 | R10: 2011/12 | S10: 2012/13 | T10: 2013/14 | U10: 2014/15 | V10: 2015/16 | W10: 2016/17 | X10: 2017/18 | Y10: 2018/19
J11: všeobecné vzdělávání na SŠ | K11: 0.2484985649 | L11: 0.2476441101 | M11: 0.2503527497 | N11: 0.2571201211 | O11: 0.2587529194 | P11: 0.2586038903 | Q11: 0.2609519663 | R11: 0.2692729739 | S11: 0.2783045922 | T11: 0.2863843384 | U11: 0.2931198369 | V11: 0.2997960698 | W11: 0.3036231696 | X11: 0.3073386552 | Y11: 0.3092411374
J12: odborné vzdělávání na SŠ s maturitní zkouškou | K12: 0.4144637236 | L12: 0.423751305 | M12: 0.4306766735 | N12: 0.4463722647 | O12: 0.4519550756 | P12: 0.4536781361 | Q12: 0.4503675988 | R12: 0.4469793703 | S12: 0.4398305697 | T12: 0.4329979144 | U12: 0.4323785077 | V12: 0.4321703929 | W12: 0.4354629527 | X12: 0.4399302549 | Y12: 0.4433431397
J13: odborné vzdělávání na SŠ bez maturitní zkoušky | K13: 0.261387581 | L13: 0.25080888 | M13: 0.2406211858 | N13: 0.2201058554 | O13: 0.2094463129 | P13: 0.2076834574 | Q13: 0.2076041717 | R13: 0.2109612545 | S13: 0.2177846604 | T13: 0.2216082283 | U13: 0.222249519 | V13: 0.220183701 | W13: 0.216243889 | X13: 0.2136216447 | Y13: 0.2122386613
J14: nástavbové studium | K14: 0.0756501305 | L14: 0.07779570496 | M14: 0.07834939102 | N14: 0.07640175875 | O14: 0.07984569203 | P14: 0.08003451623 | Q14: 0.08107626314 | R14: 0.07278640118 | S14: 0.06408017776 | T14: 0.05900951889 | U14: 0.05225213642 | V14: 0.04784983622 | W14: 0.04466998863 | X14: 0.03910944524 | Y14: 0.0351770616
V16: 427107 | W16: 424849 | X16: 421535 | Y16: 420814
V17: 128045 | W17: 128994 | X17: 129554 | Y17: 130133
V18: 184583 | W18: 185006 | X18: 185446 | Y18: 186565
V19: 94042 | W19: 91871 | X19: 90049 | Y19: 89313
V20: 20437 | W20: 18978 | X20: 16486 | Y20: 14803
V22: 0.2997960698 | W22: =W17/$W$16 -> 0.3036231696 | X22: =X17/$X$16 -> 0.3073386552 | Y22: =Y17/$Y$16 -> 0.3092411374
V23: 0.4321703929 | W23: =W18/$W$16 -> 0.4354629527 | X23: =X18/$X$16 -> 0.4399302549 | Y23: =Y18/$Y$16 -> 0.4433431397
V24: 0.220183701 | W24: 0.216243889 | X24: 0.2136216447 | Y24: 0.2122386613
V25: 0.04784983622 | W25: 0.04466998863 | X25: 0.03910944524 | Y25: 0.0351770616
D36: Komentáře: | Y36: Zdroj: databáze MŠMT
D37: 1) | E37: Do odborného vzdělávání na SŠ jsou zahrnuta lycea.

Sheet GB4
D4: Obr. B4: | H4: Střední školy – struktura nově přijatých do oborů středního vzdělávání s maturitní zkouškou a oborů středního
D5: vzdělávání a středního vzdělávání s výučním listem ve školním roce 2008/09 až 2018/19
K10: 2003/04 | L10: 2004/05 | M10: 2005/06 | N10: 2007/08 | O10: 2008/09 | P10: 2009/10 | Q10: 2010/11 | R10: 2011/12 | S10: 2012/13 | T10: 2013/14 | U10: 2014/15 | V10: 2015/16 | W10: 2016/17 | X10: 2017/18 | Y10: 2018/19
J11: obory středního vzdělávání s maturitní zkouškou | K11: 92291 | L11: 93006 | M11: 92800 | N11: 95037 | O11: 94717 | P11: 90458 | Q11: 80672 | R11: 75812 | S11: 72216 | T11: 72888 | U11: 72692 | V11: 72927 | W11: 73545 | X11: 73507 | Y11: 73684
J12: obory středního vzdělávání a středního vzdělávání s výučním listem | K12: 53437 | L12: 51259 | M12: 48358 | N12: 43530 | O12: 41378 | P12: 41439 | Q12: 37082 | R12: 35953 | S12: 35428 | T12: 34122 | U12: 33871 | V12: 32953 | W12: 32210 | X12: 32474 | Y12: 32534
J13: obory středního vzdělávání s maturitní zkouškou | K13: 0.6333100022 | L13: 0.6446885939 | M13: 0.6574193457 | N13: 0.6858559397 | O13: 0.6959623792 | P13: 0.6858230286 | Q13: 0.6850892539 | R13: 0.6783161097 | S13: 0.6708780796 | T13: 0.6811326044 | U13: 0.682150465 | V13: 0.688770306 | W13: 0.6954281121 | X13: 0.6935865863 | Y13: 0.6937053983
J14: obory středního vzdělávání a středního vzdělávání s výučním listem | K14: 0.3666899978 | L14: 0.3553114061 | M14: 0.3425806543 | N14: 0.3141440603 | O14: 0.3040376208 | P14: 0.3141769714 | Q14: 0.3149107461 | R14: 0.3216838903 | S14: 0.3291219204 | T14: 0.3188673956 | U14: 0.317849535 | V14: 0.311229694 | W14: 0.3045718879 | X14: 0.3064134137 | Y14: 0.3062946017
D37: Komentáře: | Y37: Zdroj: databáze MŠMT
D38: 1) | E38: Bez nástavbového studia.
D39: 2) | E39: Obory středního vzdělávání s výučním listem a středního vzdělávání s maturitní zkouškou včetně zkráceného studia.

Sheet GB5
D4: Obr. B5: | H4: Střední školy včetně VOŠ a konzervatoří – všichni zřizovatelé – přepočtené počty
D5: zaměstnanců a učitelů a jejich průměrné měsíční nominální a reálné mzdy v letech 2008 až 2018
J10: zam.
K11: 2003 | L11: 2004 | M11: 2005 | N11: 2007 | O11: 2008 | P11: 2009 | Q11: 2010 | R11: 2011 | S11: 2012 | T11: 2013 | U11: 2014 | V11: 2015 | W11: 2016 | X11: 2017 | Y11: 2018
J12: nominální mzdy | K12: 18231.4461 | L12: 18889.76855 | M12: 20039.95942 | N12: 22543.09373 | O12: ='B5.1.21'!O14 -> 23357.00565 | P12: ='B5.1.21'!P14 -> 24728.70227 | Q12: ='B5.1.21'!Q14 -> 24375.19597 | R12: ='B5.1.21'!R14 -> 24935.25351 | S12: ='B5.1.21'!S14 -> 25220.05061 | T12: ='B5.1.21'!T14 -> 25406.19707 | U12: ='B5.1.21'!U14 -> 25901.51469 | V12: ='B5.1.21'!V14 -> 26302.46153 | W12: ='B5.1.21'!W14 -> 27490.24518 | X12: ='B5.1.21'!X14 -> 29745.20792 | Y12: ='B5.1.21'!Y14 -> 33128.74205
J13: reálné mzdy | K13: 19090.51948 | L13: 19255.62544 | M13: 20039.95942 | N13: 26428.0114 | O13: ='B5.1.21'!O17 -> 25751.93567 | P13: ='B5.1.21'!P17 -> 26966.95994 | Q13: ='B5.1.21'!Q17 -> 26209.88814 | R13: ='B5.1.21'!R17 -> 26303.01003 | S13: ='B5.1.21'!S17 -> 25761.03229 | T13: ='B5.1.21'!T17 -> 25585.29413 | U13: ='B5.1.21'!U17 -> 25979.45304 | V13: ='B5.1.21'!V17 -> 26302.46153 | W13: ='B5.1.21'!W17 -> 27299.15112 | X13: ='B5.1.21'!X17 -> 28850.83212 | Y13: ='B5.1.21'!Y17 -> 31461.2935
J14: počty | K14: 63.989332 | L14: 64.252444 | M14: 64.149321 | N14: 63.756378 | O14: ='B5.1.20'!O14/1000 -> 63.029906 | P14: ='B5.1.20'!P14/1000 -> 62.461673 | Q14: ='B5.1.20'!Q14/1000 -> 61.699143 | R14: ='B5.1.20'!R14/1000 -> 59.769264 | S14: ='B5.1.20'!S14/1000 -> 57.440859 | T14: ='B5.1.20'!T14/1000 -> 55.196555 | U14: ='B5.1.20'!U14/1000 -> 53.732076 | V14: ='B5.1.20'!V14/1000 -> 52.635552 | W14: ='B5.1.20'!W14/1000 -> 51.783095 | X14: ='B5.1.20'!X14/1000 -> 51.748787 | Y14: ='B5.1.20'!Y14/1000 -> 51.8071849
J16: učitelé
K17: 2003 | L17: 2004 | M17: 2005 | N17: 2007 | O17: 2008 | P17: 2009 | Q17: 2010 | R17: 2011 | S17: 2012 | T17: 2013 | U17: 2014 | V17: 2015 | W17: 2016 | X17: 2017 | Y17: 2018
J18: nominální mzdy | K18: 20800.7832 | L18: 21489.12985 | M18: 22661.49147 | N18: 25719.12818 | O18: ='B5.1.21'!O15 -> 26573.55439 | P18: ='B5.1.21'!P15 -> 27845.30974 | Q18: ='B5.1.21'!Q15 -> 27210.6607 | R18: ='B5.1.21'!R15 -> 27887.13466 | S18: ='B5.1.21'!S15 -> 28020.27357 | T18: ='B5.1.21'!T15 -> 28209.18274 | U18: ='B5.1.21'!U15 -> 28767.8601 | V18: ='B5.1.21'!V15 -> 31100.88541 | W18: ='B5.1.21'!W15 -> 32677.57922 | X18: ='B5.1.21'!X15 -> 33267.03189 | Y18: ='B5.1.21'!Y15 -> 37023.2278
J19: reálné mzdy | K19: 21780.92481 | L19: 21905.33114 | M19: 22661.49147 | N19: 30151.38122 | O19: ='B5.1.21'!O18 -> 29298.29591 | P19: ='B5.1.21'!P18 -> 30365.65948 | Q19: ='B5.1.21'!Q18 -> 29258.77495 | R19: ='B5.1.21'!R18 -> 29416.80871 | S19: ='B5.1.21'!S18 -> 28621.32131 | T19: ='B5.1.21'!T18 -> 28408.03901 | U19: ='B5.1.21'!U18 -> 28854.42337 | V19: ='B5.1.21'!V18 -> 31100.88541 | W19: ='B5.1.21'!W18 -> 32450.42623 | X19: ='B5.1.21'!X18 -> 32266.76226 | Y19: ='B5.1.21'!Y18 -> 35159.76049
J20: počty | K20: 39.978354 | L20: 40.434779 | M20: 43.227007 | N20: 40.61349 | O20: ='B5.1.20'!O15/1000 -> 40.49802 | P20: ='B5.1.20'!P15/1000 -> 40.365859 | Q20: ='B5.1.20'!Q15/1000 -> 40.046228 | R20: ='B5.1.20'!R15/1000 -> 39.224192 | S20: ='B5.1.20'!S15/1000 -> 37.885927 | T20: ='B5.1.20'!T15/1000 -> 36.378018 | U20: ='B5.1.20'!U15/1000 -> 35.209344 | V20: ='B5.1.20'!V15/1000 -> 34.420605 | W20: ='B5.1.20'!W15/1000 -> 33.798402 | X20: ='B5.1.20'!X15/1000 -> 33.756559 | Y20: ='B5.1.20'!Y15/1000 -> 33.7381882
D45: Komentáře: | Y45: Zdroj: databáze MŠMT, ČSÚ
E46: Průměrná reálná měsíční mzda ve stálých cenách roku 2015.
D47: 1) | E47: Učitelé včetně vedoucích zaměstnanců.
